{"text_format":"1","workbook":"xlsx","n_sheets":10,"sheets":["Inicio","Informacion General","Medidas Pasivas de energia","Medidas Activas de energia","Medidas de ahorro Agua","Validacion de cumplimiento","Matriz de ahorros energia","Matriz de ahorros agua","Listas","Anexo 2 - municipios"],"not_rendered":{"charts":0,"images":3,"macros":1,"external_links":0,"defined_names":8,"comments":0,"pivot_tables":0},"unopened":[],"bounds":{"document_bytes":16777216,"sheet_cells":100000,"rows_first":2000,"rows_last":500,"rows_between":2000,"halvings":0,"cell_chars":16384,"cell_head_chars":4096},"cells_cut":0,"cells_raw":0,"read":"whole","date_system":"1900"}

{"sheet":"Inicio","index":0,"n_rows":1,"n_cols":1,"rows_kept":1,"cut":false,"hidden":false,"merged":[[0,0,25,20]]}
[{"$error":"#VALUE!"}]

{"sheet":"Informacion General","index":1,"n_rows":68,"n_cols":14,"rows_kept":68,"cut":false,"hidden":false,"merged":[[63,2,64,3],[65,2,65,3],[2,2,2,3],[5,2,8,3],[11,2,12,3],[45,2,46,3],[55,2,56,3]]}
[]
[]
[null,null,"MECANISMO DE VERIFICACIÓN - RESOLUCIÓN 0549"]
[]
[]
[null,null,"•Diligenciar el siguiente formulario para los proyectos en su empresa que busquen una licencia de construcción\n•En las casillas que contienen desplegables seleccionar aquella opción que mejor se ajuste a las características de su proyecto\n•En caso de dudas dirigirse al instructivo "]
[]
[]
[]
[]
[]
[null,null,"1. Información General del Proyecto"]
[]
[null,null,"Nombre de la empresa"]
[null,null,"Nombre del proyecto"]
[null,null,"Tipo de Proyecto"]
[null,null,"Departamento"]
[null,null,"Ciudad/Municipio"]
[null,null,"Clima",null,null,null,null,null,null,null,null,{"$f":"L20","v":""},{"$f":"M20","v":""},""]
[null,null,"Dirección del proyecto",null,null,null,null,null,null,null,{"$f":"IFERROR(LEFT(D20,(SEARCH(\" \",D20))-1),\"\")","v":""},{"$f":"IFERROR(LEFT(RIGHT(D20,LEN(D20)-LEN(LEFT(D20,(SEARCH(\" \",D20))-1))-1),(SEARCH(\"# \",RIGHT(D20,LEN(D20)-LEN(LEFT(D20,(SEARCH(\" \",D20))-1))-1)))-1),\"\")","v":""},{"$f":"IFERROR(LEFT(M21,LEN(M21)-2-(LEN(M21)-SEARCH(\"- \",M21))),\"\")","v":""},{"$f":"IFERROR(RIGHT(D20,LEN(D20)-SEARCH(\"- \",D20)),\"\")","v":""}]
[null,null,"Área construida total (m2)",null,null,null,null,null,null,null,null,null,{"$f":"IFERROR(LEFT(RIGHT(D20,LEN(D20)-LEN(LEFT(D20,(SEARCH(\"# \",D20))-1))-1),(SEARCH(\"- \",RIGHT(D20,LEN(D20)-LEN(LEFT(D20,(SEARCH(\" \",D20))-1))-1)))-1),\"\")","v":""}]
[null,null,"Área Vendible (si aplica - m2)"]
[null,null,"Área de parqueaderos (si aplica - m2)"]
[null,null,"Proyección año de Inicio de Obra"]
[null,null,"Proyección año de finalización de Obra"]
[null,null,"Número de pisos arriba del suelo"]
[null,null,"Número de pisos debajo del suelo"]
[null,null,"Altura del edificio (m)"]
[null,null,"Altura promedio de piso a piso (m)"]
[null,null,"Altura piso a cielo raso (m)"]
[null,null,"Forma del edificio (la que mejor se ajuste)"]
[null,null,"Huella del edificio aproximada (m2)"]
[null,null,"Materialidad de la pared externa"]
[null,null,"Valor U Aproximado muro ext (W/m2.K)",{"$f":"IFERROR(VLOOKUP(D33,Listas!$U$3:$V$8,2,FALSE),\"\")","v":""}]
[null,null,"Materialidad de la pared interna"]
[null,null,"Materialidad de cubierta"]
[null,null,"Valor U Aproximado de cubierta (W/m2.K)",{"$f":"IFERROR(VLOOKUP(D36,Listas!Y3:Z8,2,FALSE),\"\")","v":""}]
[null,null,"Relación Muro/Ventana (%)"]
[null,null,"Altura promedio de ventana (m)"]
[null,null,"Tipo de ventana"]
[null,null,"Dispositivos de sombra para ventanas"]
[null,null,"Numero de ocupantes esperados pico (personas, estudiantes,etc, en un día pico)"]
[null,null,"Combustibles disponibles"]
[]
[]
[null,null,"2. Energía"]
[]
[null,null,"Iluminación interior instalada"]
[null,null,"Tipo de sistema de aire acondicionado y ventilación mecánica"]
[null,null,"Indique que parte de su edificio está atendiendo los sistemas seleccionados (seleccione las que mejor se adecuen)"]
[null,null,"Potencia instalada de Sistema fotovoltaico (si aplica - kWp)"]
[null,null,"Horario de operación típico (seleccione el que mejor se adecue)"]
[null,null,"Ventilación natural"]
[]
[]
[null,null,"3. Agua"]
[]
[null,null,"Recolección y reutilización de aguas lluvias"]
[null,null,"Planta de tratamiento de aguas lluvias"]
[null,null,"Recolección y reutilización de aguas negras"]
[null,null,"Planta de tratamiento de aguas negras"]
[]
[]
[null,null,"4. Observaciones especiales"]
[]
[]
[null,null,"Diligencie esta casilla solo si tiene alguna situación especial a tener en cuenta en su proyecto para la evaluación del cumplimiento de la resolución 0549"]
[null,null,{"$f":"\"Fecha y hora de impresión \"&TEXT(NOW(),\"d/mm/yyyy h:mm\")","v":"Fecha y hora de impresión 23/04/2025 10:04"}]

{"sheet":"Medidas Pasivas de energia","index":2,"n_rows":42,"n_cols":10,"rows_kept":42,"cut":false,"hidden":false,"merged":[[37,2,37,6],[38,2,39,2],[38,3,39,3],[21,2,21,3],[38,4,38,6],[32,2,32,6],[33,2,33,6],[34,4,34,6],[34,3,35,3],[34,2,35,2],[12,2,13,3],[3,2,3,6],[19,2,19,3],[12,4,13,4],[12,5,13,5],[6,2,9,6],[12,6,13,6],[15,4,15,6]]}
[]
[]
[]
[null,null,"MECANISMO DE VERIFICACIÓN - RESOLUCIÓN 0549"]
[]
[]
[null,null,"• Del siguiente formulario, seleccione las estrategias que ha implementado en su proyecto\n• En la casilla de constructor, marque la casilla una vez ha sido verificada su implementación en obra\n• Firme en la parte inferior de este formulario y coloque al fecha de verificación interna"]
[]
[]
[]
[]
[]
[null,null,"2. Energía -  Medidas pasivas incorporadas al proyecto",null,"Verificado por constructor","Verificado por autoridad","N/A"]
[]
[]
[null,null,"Medida","Observaciones"]
[null,null,"Manejo de Ventaneria","Valor"]
[null,null,"U vidrio (W/m2.K)",null,null,null,null,null,null,"AJUSTAR FORMULAS"]
[null,null,"SHGC de ventanería",null,null,null,null,null,null,"AJUSTAR FORMULAS"]
[null,null,"Manejo de Sombreado"]
[]
[null,null,"Otras estrategias"]
[]
[]
[]
[]
[]
[]
[]
[]
[]
[]
[null,null,"Firma Digital"]
[null,null,"Firma del Titular o Solicitante"]
[null,null,"Nombre","Firma","Fecha de diligenciamiento"]
[]
[]
[null,null,"Representante de la Autoridad"]
[null,null,"Nombre","Firma","Fecha de diligenciamiento"]
[null,null,null,null,"Mes","Dia","Año"]
[]
[null,null,{"$f":"\"Fecha y hora de impresión \"&TEXT(NOW(),\"d/mm/yyyy h:mm\")","v":"Fecha y hora de impresión 23/04/2025 10:04"}]

{"sheet":"Medidas Activas de energia","index":3,"n_rows":44,"n_cols":7,"rows_kept":44,"cut":false,"hidden":false,"merged":[[3,2,3,6],[12,2,13,3],[12,4,13,4],[12,5,13,5],[12,6,13,6],[39,2,39,6],[40,2,41,2],[40,3,41,3],[40,4,40,6],[6,2,9,6],[15,4,15,6],[34,2,34,6],[35,2,35,6],[36,2,37,2],[36,3,37,3],[36,4,36,6],[19,4,19,6],[17,4,17,6]]}
[]
[]
[]
[null,null,"MECANISMO DE VERIFICACIÓN - RESOLUCIÓN 0549"]
[]
[]
[null,null,"• Del siguiente formulario, seleccione las estrategias que ha implementado en su proyecto\n• En la casilla de constructor, marque la casilla una vez ha sido verificada su implementación en obra\n• Firme en la parte inferior de este formulario y coloque al fecha de verificación interna"]
[]
[]
[]
[]
[]
[null,null,"3. Energía -  Medidas activas incorporadas al proyecto",null,"Verificado por constructor","Verificado por autoridad","N/A"]
[]
[]
[null,null,"Agua caliente solar","% de cubrimiento"]
[]
[null,null,"Sistema Fotovoltaico","% de cubrimiento"]
[]
[null,null,"Medida","Comentarios"]
[]
[]
[]
[]
[]
[]
[]
[]
[]
[]
[]
[]
[]
[]
[null,null,"Firma Digital"]
[]
[null,null,"Nombre","Firma","Fecha de diligenciamiento"]
[null,null,null,null,"Mes","Dia","Año"]
[null,null,{"$f":"IF('Medidas Pasivas de energia'!C37=\"\",\"\",'Medidas Pasivas de energia'!C37)","v":""},{"$f":"IF('Medidas Pasivas de energia'!D37=\"\",\"\",'Medidas Pasivas de energia'!D37)","v":""},{"$f":"IF('Medidas Pasivas de energia'!E37=\"\",\"\",'Medidas Pasivas de energia'!E37)","v":""},{"$f":"IF('Medidas Pasivas de energia'!F37=\"\",\"\",'Medidas Pasivas de energia'!F37)","v":""},{"$f":"IF('Medidas Pasivas de energia'!G37=\"\",\"\",'Medidas Pasivas de energia'!G37)","v":""}]
[null,null,"Representante de la Autoridad"]
[null,null,"Nombre","Firma","Fecha de diligenciamiento"]
[null,null,null,null,"Mes","Dia","Año"]
[]
[null,null,{"$f":"\"Fecha y hora de impresión \"&TEXT(NOW(),\"d/mm/yyyy h:mm\")","v":"Fecha y hora de impresión 23/04/2025 10:04"}]

{"sheet":"Medidas de ahorro Agua","index":4,"n_rows":37,"n_cols":7,"rows_kept":37,"cut":false,"hidden":false,"merged":[[15,4,15,6],[27,2,27,6],[28,2,28,6],[3,2,3,6],[6,2,9,6],[12,2,13,3],[12,4,13,4],[12,5,13,5],[12,6,13,6],[20,4,20,6],[29,2,30,2],[29,3,30,3],[29,4,29,6],[32,2,32,6],[33,2,34,2],[33,3,34,3],[33,4,33,6]]}
[]
[]
[]
[null,null,"MECANISMO DE VERIFICACIÓN - RESOLUCIÓN 0549"]
[]
[]
[null,null,"• Del siguiente formulario, seleccione las estrategias que ha implementado en su proyecto\n• En la casilla de constructor, marque la casilla una vez ha sido verificada su implementación en obra\n• Firme en la parte inferior de este formulario y coloque al fecha de verificación interna"]
[]
[]
[]
[]
[]
[null,null,"4. Agua -  Medidas de ahorro de agua incorporadas al proyecto",null,"Verificado por constructor","Verificado por autoridad","N/A"]
[]
[]
[null,null,"Aparatos Sanitarios","Consumo"]
[null,null,"Lavamanos (lpm)"]
[null,null,"Duchas (lpm)"]
[null,null,"Orinales (lpm)"]
[null,null,"Inodoros (lpm)"]
[null,null,"Medida","Observaciones"]
[]
[]
[]
[]
[]
[]
[null,null,"Firma Digital"]
[null,null,"Firma del Titular o Solicitante"]
[null,null,"Nombre","Firma","Fecha de diligenciamiento"]
[]
[null,null,{"$f":"IF('Medidas Pasivas de energia'!C37=\"\",\"\",'Medidas Pasivas de energia'!C37)","v":""},{"$f":"IF('Medidas Pasivas de energia'!D37=\"\",\"\",'Medidas Pasivas de energia'!D37)","v":""},{"$f":"IF('Medidas Pasivas de energia'!E37=\"\",\"\",'Medidas Pasivas de energia'!E37)","v":""},{"$f":"IF('Medidas Pasivas de energia'!F37=\"\",\"\",'Medidas Pasivas de energia'!F37)","v":""},{"$f":"IF('Medidas Pasivas de energia'!G37=\"\",\"\",'Medidas Pasivas de energia'!G37)","v":""}]
[null,null,"Representante de la Autoridad"]
[null,null,"Nombre","Firma","Fecha de diligenciamiento"]
[null,null,null,null,"Mes","Dia","Año"]
[]
[null,null,{"$f":"\"Fecha y hora de impresión \"&TEXT(NOW(),\"d/mm/yyyy h:mm\")","v":"Fecha y hora de impresión 23/04/2025 10:04"}]

{"sheet":"Validacion de cumplimiento","index":5,"n_rows":63,"n_cols":16,"rows_kept":63,"cut":false,"hidden":false,"merged":[[42,4,42,5],[53,4,53,5],[59,4,59,5],[55,4,55,5],[2,4,2,5],[14,4,14,5],[26,4,26,5],[12,4,12,5]]}
[]
[]
[null,null,null,null,"MECANISMO DE VERIFICACIÓN - RESOLUCIÓN 0549"]
[]
[]
[null,null,null,null,"Departamento",{"$f":"'Informacion General'!D17","v":0}]
[null,null,null,null,"Municipio",{"$f":"'Informacion General'!D18","v":0}]
[null,null,null,null,"Clima seleccionado",{"$f":"'Informacion General'!D19","v":0},{"$f":"IF(F8=\"Frio\",\"F\",IF(F8=\"Templado\",\"T\",IF(F8=\"Cálido Seco\",\"CS\",IF(F8=\"Cálido Húmedo\",\"CH\",NA))))","v":{"$error":"#NAME?"}}]
[null,null,null,null,"Uso",{"$f":"'Informacion General'!D16","v":0}]
[null,null,null,null,"Meta de cumplimiento agua (%)",{"$f":"IFERROR(INDEX(Listas!AT4:AW19,MATCH(F9,Listas!AS4:AS19,0),MATCH(F8,Listas!AT3:AW3,0)),\"\")","v":""}]
[null,null,null,null,"Meta de cumplimiento energía (%)",{"$f":"IFERROR(INDEX(Listas!AN4:AQ19,MATCH(F9,Listas!AM4:AM19,0),MATCH(F8,Listas!AN3:AQ3,0)),\"\")","v":""}]
[]
[null,null,null,null,"ENERGÍA"]
[null,null,null,null,"Estrategias Incorporadas","Validación de la autoridad"]
[null,null,null,null,"Pasivas"]
[null,null,null,null,{"$f":"IF(VLOOKUP('Medidas Pasivas de energia'!D18,Listas!BO:BP,2,0)=\"No\",\"\",'Medidas Pasivas de energia'!C18)","v":{"$error":"#N/A"}},null,{"$f":"INDEX('Matriz de ahorros energia'!$D$5:$DG$20, MATCH($F$9,'Matriz de ahorros energia'!$C$5:$C$20,0), MATCH(E16&$G$8,'Matriz de ahorros energia'!$D$3:$DG$3&'Matriz de ahorros energia'!$D$4:$DG$4,0))","v":{"$error":"#N/A"}},{"$f":"INDEX(Listas!AH3:AH5, MATCH(E16, Listas!AG3:AG5,0))","v":{"$error":"#N/A"}},null,null,{"$f":"IF(G16=\"N/A\",0,IF(H16=\"N/A\",0,H16*G16))","v":{"$error":"#N/A"}},null,null,null,{"$f":"COUNTIF(E16:E26,E16)","v":2},{"$f":"IF(O16>1,0,K16)","v":0}]
[null,null,null,null,{"$f":"IF(VLOOKUP('Medidas Pasivas de energia'!D19,Listas!BQ:BR,2,0)=\"No\",\"\",'Medidas Pasivas de energia'!C19)","v":{"$error":"#N/A"}},null,{"$f":"INDEX('Matriz de ahorros energia'!$D$5:$DG$20, MATCH($F$9,'Matriz de ahorros energia'!$C$5:$C$20,0), MATCH(E17&$G$8,'Matriz de ahorros energia'!$D$3:$DG$3&'Matriz de ahorros energia'!$D$4:$DG$4,0))","v":{"$error":"#N/A"}},{"$f":"INDEX(Listas!AH4:AH6, MATCH(E17, Listas!AG4:AG6,0))","v":{"$error":"#N/A"}},null,null,{"$f":"IF(G17=\"N/A\",0,IF(H17=\"N/A\",0,H17*G17))","v":{"$error":"#N/A"}}]
[null,null,null,null,{"$f":"IF('Medidas Pasivas de energia'!C21=\"\",\"\",'Medidas Pasivas de energia'!C21)","v":""},null,{"$f":"INDEX('Matriz de ahorros energia'!$D$5:$DG$20, MATCH($F$9,'Matriz de ahorros energia'!$C$5:$C$20,0), MATCH(E18&$G$8,'Matriz de ahorros energia'!$D$3:$DG$3&'Matriz de ahorros energia'!$D$4:$DG$4,0))","v":{"$error":"#N/A"}},{"$f":"INDEX(Listas!AF3:AF5, MATCH(E18, Listas!AE3:AE5,0))","v":{"$error":"#N/A"}},null,null,{"$f":"IF(G18=\"N/A\",0,IF(H18=\"N/A\",0,H18*G18))","v":{"$error":"#N/A"}},null,null,null,{"$f":"COUNTIF(E18:E27,E18)","v":9},{"$f":"IF(O18>1,0,K18)","v":0}]
[null,null,null,null,{"$f":"IF('Medidas Pasivas de energia'!C23=\"\",\"\",'Medidas Pasivas de energia'!C23)","v":""},null,{"$f":"INDEX('Matriz de ahorros energia'!$D$5:$DG$20, MATCH($F$9,'Matriz de ahorros energia'!$C$5:$C$20,0), MATCH(E19&$G$8,'Matriz de ahorros energia'!$D$3:$DG$3&'Matriz de ahorros energia'!$D$4:$DG$4,0))","v":{"$error":"#N/A"}},{"$f":"INDEX(Listas!$AD$3:$AD$10, MATCH(E19, Listas!$AC$3:$AC$10,0))","v":{"$error":"#N/A"}},null,null,{"$f":"IF(G19=\"N/A\",0,IF(H19=\"N/A\",0,H19*G19))","v":{"$error":"#N/A"}},null,null,null,{"$f":"COUNTIF(E19:E28,E19)","v":9},0]
[null,null,null,null,{"$f":"IF('Medidas Pasivas de energia'!C24=\"\",\"\",'Medidas Pasivas de energia'!C24)","v":""},null,{"$f":"INDEX('Matriz de ahorros energia'!$D$5:$DG$20, MATCH($F$9,'Matriz de ahorros energia'!$C$5:$C$20,0), MATCH(E20&$G$8,'Matriz de ahorros energia'!$D$3:$DG$3&'Matriz de ahorros energia'!$D$4:$DG$4,0))","v":{"$error":"#N/A"}},{"$f":"INDEX(Listas!$AD$3:$AD$10, MATCH(E20, Listas!$AC$3:$AC$10,0))","v":{"$error":"#N/A"}},null,null,{"$f":"IF(G20=\"N/A\",0,H20*G20)","v":{"$error":"#N/A"}},null,null,null,{"$f":"COUNTIF(E20:E30,E20)","v":10},0]
[null,null,null,null,{"$f":"IF('Medidas Pasivas de energia'!C25=\"\",\"\",'Medidas Pasivas de energia'!C25)","v":""},null,{"$f":"INDEX('Matriz de ahorros energia'!$D$5:$DG$20, MATCH($F$9,'Matriz de ahorros energia'!$C$5:$C$20,0), MATCH(E21&$G$8,'Matriz de ahorros energia'!$D$3:$DG$3&'Matriz de ahorros energia'!$D$4:$DG$4,0))","v":{"$error":"#N/A"}},{"$f":"INDEX(Listas!$AD$3:$AD$10, MATCH(E21, Listas!$AC$3:$AC$10,0))","v":{"$error":"#N/A"}},null,null,{"$f":"IF(G21=\"N/A\",0,H21*G21)","v":{"$error":"#N/A"}},null,null,null,10,0]
[null,null,null,null,{"$f":"IF('Medidas Pasivas de energia'!C26=\"\",\"\",'Medidas Pasivas de energia'!C26)","v":""},null,{"$f":"INDEX('Matriz de ahorros energia'!$D$5:$DG$20, MATCH($F$9,'Matriz de ahorros energia'!$C$5:$C$20,0), MATCH(E22&$G$8,'Matriz de ahorros energia'!$D$3:$DG$3&'Matriz de ahorros energia'!$D$4:$DG$4,0))","v":{"$error":"#N/A"}},{"$f":"INDEX(Listas!$AD$3:$AD$10, MATCH(E22, Listas!$AC$3:$AC$10,0))","v":{"$error":"#N/A"}},null,null,{"$error":"#N/A"},null,null,null,10,0]
[null,null,null,null,{"$f":"IF('Medidas Pasivas de energia'!C27=\"\",\"\",'Medidas Pasivas de energia'!C27)","v":""},null,{"$f":"INDEX('Matriz de ahorros energia'!$D$5:$DG$20, MATCH($F$9,'Matriz de ahorros energia'!$C$5:$C$20,0), MATCH(E23&$G$8,'Matriz de ahorros energia'!$D$3:$DG$3&'Matriz de ahorros energia'!$D$4:$DG$4,0))","v":{"$error":"#N/A"}},{"$f":"INDEX(Listas!$AD$3:$AD$10, MATCH(E23, Listas!$AC$3:$AC$10,0))","v":{"$error":"#N/A"}},null,null,{"$error":"#N/A"},null,null,null,10,0]
[null,null,null,null,{"$f":"IF('Medidas Pasivas de energia'!C28=\"\",\"\",'Medidas Pasivas de energia'!C28)","v":""},null,{"$f":"INDEX('Matriz de ahorros energia'!$D$5:$DG$20, MATCH($F$9,'Matriz de ahorros energia'!$C$5:$C$20,0), MATCH(E24&$G$8,'Matriz de ahorros energia'!$D$3:$DG$3&'Matriz de ahorros energia'!$D$4:$DG$4,0))","v":{"$error":"#N/A"}},{"$f":"INDEX(Listas!$AD$3:$AD$10, MATCH(E24, Listas!$AC$3:$AC$10,0))","v":{"$error":"#N/A"}},null,null,{"$error":"#N/A"},null,null,null,10,0]
[null,null,null,null,{"$f":"IF('Medidas Pasivas de energia'!C29=\"\",\"\",'Medidas Pasivas de energia'!C29)","v":""},null,{"$f":"INDEX('Matriz de ahorros energia'!$D$5:$DG$20, MATCH($F$9,'Matriz de ahorros energia'!$C$5:$C$20,0), MATCH(E25&$G$8,'Matriz de ahorros energia'!$D$3:$DG$3&'Matriz de ahorros energia'!$D$4:$DG$4,0))","v":{"$error":"#N/A"}},{"$f":"INDEX(Listas!$AD$3:$AD$10, MATCH(E25, Listas!$AC$3:$AC$10,0))","v":{"$error":"#N/A"}},null,null,{"$error":"#N/A"},null,null,null,10,0]
[null,null,null,null,{"$f":"IF('Medidas Pasivas de energia'!C30=\"\",\"\",'Medidas Pasivas de energia'!C30)","v":""},null,{"$f":"INDEX('Matriz de ahorros energia'!$D$5:$DG$20, MATCH($F$9,'Matriz de ahorros energia'!$C$5:$C$20,0), MATCH(E26&$G$8,'Matriz de ahorros energia'!$D$3:$DG$3&'Matriz de ahorros energia'!$D$4:$DG$4,0))","v":{"$error":"#N/A"}},{"$f":"INDEX(Listas!$AD$3:$AD$10, MATCH(E26, Listas!$AC$3:$AC$10,0))","v":{"$error":"#N/A"}},null,null,{"$error":"#N/A"},{"$f":"ROUND(SUMIF((P16:P26),\">-1000000\"),2)","v":0},null,null,10,0]
[null,null,null,null,"Activas"]
[null,null,null,null,{"$f":"IF('Medidas Activas de energia'!C17=\"SI\",\"Agua caliente solar\",\"\")","v":""},null,{"$f":"INDEX('Matriz de ahorros energia'!$D$5:$DG$20, MATCH($F$9,'Matriz de ahorros energia'!$C$5:$C$20,0), MATCH(E28&$G$8,'Matriz de ahorros energia'!$D$3:$DG$3&'Matriz de ahorros energia'!$D$4:$DG$4,0))","v":{"$error":"#N/A"}},{"$f":"INDEX(Listas!$AJ$3:$AJ$15, MATCH(E28, Listas!$AI$3:$AI$15,0))","v":{"$error":"#N/A"}},{"$f":"'Medidas Activas de energia'!D17/80","v":0},null,{"$f":"IF(G28=\"N/A\",0,H28*G28*I28)","v":{"$error":"#N/A"}},null,null,null,{"$f":"COUNTIF(E28:E41,E28)","v":14},0]
[null,null,null,null,{"$f":"IF('Medidas Activas de energia'!C19=\"SI\",\"Energia solar fotovoltaica\",\"\")","v":""},null,{"$f":"IF('Medidas Activas de energia'!C19=\"Si\",'Medidas Activas de energia'!D19/100,0)","v":0},1,null,null,0,null,null,null,null,0]
[null,null,null,null,{"$f":"IF('Medidas Activas de energia'!C21=\"\",\"\",'Medidas Activas de energia'!C21)","v":""},null,{"$f":"INDEX('Matriz de ahorros energia'!$D$5:$DG$20, MATCH($F$9,'Matriz de ahorros energia'!$C$5:$C$20,0), MATCH(E30&$G$8,'Matriz de ahorros energia'!$D$3:$DG$3&'Matriz de ahorros energia'!$D$4:$DG$4,0))","v":{"$error":"#N/A"}},{"$f":"INDEX(Listas!$AJ$3:$AJ$15, MATCH(E30, Listas!$AI$3:$AI$15,0))","v":{"$error":"#N/A"}},null,null,{"$error":"#N/A"},null,null,null,{"$f":"COUNTIF(E30:E42,E30)","v":13},0]
[null,null,null,null,{"$f":"IF('Medidas Activas de energia'!C22=\"\",\"\",'Medidas Activas de energia'!C22)","v":""},null,{"$f":"INDEX('Matriz de ahorros energia'!$D$5:$DG$20, MATCH($F$9,'Matriz de ahorros energia'!$C$5:$C$20,0), MATCH(E31&$G$8,'Matriz de ahorros energia'!$D$3:$DG$3&'Matriz de ahorros energia'!$D$4:$DG$4,0))","v":{"$error":"#N/A"}},{"$f":"INDEX(Listas!$AJ$3:$AJ$15, MATCH(E31, Listas!$AI$3:$AI$15,0))","v":{"$error":"#N/A"}},null,null,{"$error":"#N/A"},null,null,null,12,0]
[null,null,null,null,{"$f":"IF('Medidas Activas de energia'!C23=\"\",\"\",'Medidas Activas de energia'!C23)","v":""},null,{"$f":"INDEX('Matriz de ahorros energia'!$D$5:$DG$20, MATCH($F$9,'Matriz de ahorros energia'!$C$5:$C$20,0), MATCH(E32&$G$8,'Matriz de ahorros energia'!$D$3:$DG$3&'Matriz de ahorros energia'!$D$4:$DG$4,0))","v":{"$error":"#N/A"}},{"$f":"INDEX(Listas!$AJ$3:$AJ$15, MATCH(E32, Listas!$AI$3:$AI$15,0))","v":{"$error":"#N/A"}},null,null,{"$error":"#N/A"},null,null,null,11,0]
[null,null,null,null,{"$f":"IF('Medidas Activas de energia'!C24=\"\",\"\",'Medidas Activas de energia'!C24)","v":""},null,{"$f":"INDEX('Matriz de ahorros energia'!$D$5:$DG$20, MATCH($F$9,'Matriz de ahorros energia'!$C$5:$C$20,0), MATCH(E33&$G$8,'Matriz de ahorros energia'!$D$3:$DG$3&'Matriz de ahorros energia'!$D$4:$DG$4,0))","v":{"$error":"#N/A"}},{"$f":"INDEX(Listas!$AJ$3:$AJ$15, MATCH(E33, Listas!$AI$3:$AI$15,0))","v":{"$error":"#N/A"}},null,null,{"$error":"#N/A"},null,null,null,10,0]
[null,null,null,null,{"$f":"IF('Medidas Activas de energia'!C25=\"\",\"\",'Medidas Activas de energia'!C25)","v":""},null,{"$f":"INDEX('Matriz de ahorros energia'!$D$5:$DG$20, MATCH($F$9,'Matriz de ahorros energia'!$C$5:$C$20,0), MATCH(E34&$G$8,'Matriz de ahorros energia'!$D$3:$DG$3&'Matriz de ahorros energia'!$D$4:$DG$4,0))","v":{"$error":"#N/A"}},{"$f":"INDEX(Listas!$AJ$3:$AJ$15, MATCH(E34, Listas!$AI$3:$AI$15,0))","v":{"$error":"#N/A"}},null,null,{"$error":"#N/A"},null,null,null,9,0]
[null,null,null,null,{"$f":"IF('Medidas Activas de energia'!C26=\"\",\"\",'Medidas Activas de energia'!C26)","v":""},null,{"$f":"INDEX('Matriz de ahorros energia'!$D$5:$DG$20, MATCH($F$9,'Matriz de ahorros energia'!$C$5:$C$20,0), MATCH(E35&$G$8,'Matriz de ahorros energia'!$D$3:$DG$3&'Matriz de ahorros energia'!$D$4:$DG$4,0))","v":{"$error":"#N/A"}},{"$f":"INDEX(Listas!$AJ$3:$AJ$15, MATCH(E35, Listas!$AI$3:$AI$15,0))","v":{"$error":"#N/A"}},null,null,{"$error":"#N/A"},null,null,null,8,0]
[null,null,null,null,{"$f":"IF('Medidas Activas de energia'!C27=\"\",\"\",'Medidas Activas de energia'!C27)","v":""},null,{"$f":"INDEX('Matriz de ahorros energia'!$D$5:$DG$20, MATCH($F$9,'Matriz de ahorros energia'!$C$5:$C$20,0), MATCH(E36&$G$8,'Matriz de ahorros energia'!$D$3:$DG$3&'Matriz de ahorros energia'!$D$4:$DG$4,0))","v":{"$error":"#N/A"}},{"$f":"INDEX(Listas!$AJ$3:$AJ$15, MATCH(E36, Listas!$AI$3:$AI$15,0))","v":{"$error":"#N/A"}},null,null,{"$error":"#N/A"},null,null,null,7,0]
[null,null,null,null,{"$f":"IF('Medidas Activas de energia'!C28=\"\",\"\",'Medidas Activas de energia'!C28)","v":""},null,{"$f":"INDEX('Matriz de ahorros energia'!$D$5:$DG$20, MATCH($F$9,'Matriz de ahorros energia'!$C$5:$C$20,0), MATCH(E37&$G$8,'Matriz de ahorros energia'!$D$3:$DG$3&'Matriz de ahorros energia'!$D$4:$DG$4,0))","v":{"$error":"#N/A"}},{"$f":"INDEX(Listas!$AJ$3:$AJ$15, MATCH(E37, Listas!$AI$3:$AI$15,0))","v":{"$error":"#N/A"}},null,null,{"$error":"#N/A"},null,null,null,7,0]
[null,null,null,null,{"$f":"IF('Medidas Activas de energia'!C29=\"\",\"\",'Medidas Activas de energia'!C29)","v":""},null,{"$f":"INDEX('Matriz de ahorros energia'!$D$5:$DG$20, MATCH($F$9,'Matriz de ahorros energia'!$C$5:$C$20,0), MATCH(E38&$G$8,'Matriz de ahorros energia'!$D$3:$DG$3&'Matriz de ahorros energia'!$D$4:$DG$4,0))","v":{"$error":"#N/A"}},{"$f":"INDEX(Listas!$AJ$3:$AJ$15, MATCH(E38, Listas!$AI$3:$AI$15,0))","v":{"$error":"#N/A"}},null,null,{"$error":"#N/A"},null,null,null,7,0]
[null,null,null,null,{"$f":"IF('Medidas Activas de energia'!C30=\"\",\"\",'Medidas Activas de energia'!C30)","v":""},null,{"$f":"INDEX('Matriz de ahorros energia'!$D$5:$DG$20, MATCH($F$9,'Matriz de ahorros energia'!$C$5:$C$20,0), MATCH(E39&$G$8,'Matriz de ahorros energia'!$D$3:$DG$3&'Matriz de ahorros energia'!$D$4:$DG$4,0))","v":{"$error":"#N/A"}},{"$f":"INDEX(Listas!$AJ$3:$AJ$15, MATCH(E39, Listas!$AI$3:$AI$15,0))","v":{"$error":"#N/A"}},null,null,{"$error":"#N/A"},null,null,null,7,0]
[null,null,null,null,{"$f":"IF('Medidas Activas de energia'!C31=\"\",\"\",'Medidas Activas de energia'!C31)","v":""},null,{"$f":"INDEX('Matriz de ahorros energia'!$D$5:$DG$20, MATCH($F$9,'Matriz de ahorros energia'!$C$5:$C$20,0), MATCH(E40&$G$8,'Matriz de ahorros energia'!$D$3:$DG$3&'Matriz de ahorros energia'!$D$4:$DG$4,0))","v":{"$error":"#N/A"}},{"$f":"INDEX(Listas!$AJ$3:$AJ$15, MATCH(E40, Listas!$AI$3:$AI$15,0))","v":{"$error":"#N/A"}},null,null,{"$error":"#N/A"},null,null,null,7,0]
[null,null,null,null,{"$f":"IF('Medidas Activas de energia'!C32=\"\",\"\",'Medidas Activas de energia'!C32)","v":""},null,{"$f":"INDEX('Matriz de ahorros energia'!$D$5:$DG$20, MATCH($F$9,'Matriz de ahorros energia'!$C$5:$C$20,0), MATCH(E41&$G$8,'Matriz de ahorros energia'!$D$3:$DG$3&'Matriz de ahorros energia'!$D$4:$DG$4,0))","v":{"$error":"#N/A"}},{"$f":"INDEX(Listas!$AJ$3:$AJ$15, MATCH(E41, Listas!$AI$3:$AI$15,0))","v":{"$error":"#N/A"}},null,null,{"$error":"#N/A"},{"$f":"ROUND(SUMIF((P28:P41),\">-1000000\"),2)","v":0},null,null,7,0]
[]
[null,null,null,null,"AGUA"]
[null,null,null,null,"Estrategias Incorporadas","Validación de la autoridad"]
[null,null,null,null,{"$f":"IF('Medidas de ahorro Agua'!D17>=6,\"\",'Medidas de ahorro Agua'!C17)","v":"Lavamanos (lpm)"},null,{"$f":"INDEX('Matriz de ahorros agua'!$D$5:$DG$20, MATCH($F$9,'Matriz de ahorros agua'!$C$5:$C$20,0), MATCH(E45&$G$8,'Matriz de ahorros agua'!$D$3:$DG$3&'Matriz de ahorros agua'!$D$4:$DG$4,0))","v":{"$error":"#N/A"}},{"$f":"INDEX(Listas!$AZ$3:$AZ$10, MATCH(E45, Listas!$AY$3:$AY$10,0))","v":1},{"$f":"3/'Medidas de ahorro Agua'!D17","v":{"$error":"#DIV/0!"}},{"$f":"IF(I45>5,5,I45)","v":{"$error":"#DIV/0!"}},{"$f":"IF(G45=\"N/A\",0,H45*G45*J45)","v":{"$error":"#N/A"}},null,null,null,{"$f":"COUNTIF(E45:E52,E45)","v":1},{"$f":"IF(O45>1,0,K45)","v":{"$error":"#N/A"}}]
[null,null,null,null,{"$f":"IF('Medidas de ahorro Agua'!D18>=8,\"\",'Medidas de ahorro Agua'!C18)","v":"Duchas (lpm)"},null,{"$f":"INDEX('Matriz de ahorros agua'!$D$5:$DG$20, MATCH($F$9,'Matriz de ahorros agua'!$C$5:$C$20,0), MATCH(E46&$G$8,'Matriz de ahorros agua'!$D$3:$DG$3&'Matriz de ahorros agua'!$D$4:$DG$4,0))","v":{"$error":"#N/A"}},{"$f":"INDEX(Listas!$AZ$3:$AZ$10, MATCH(E46, Listas!$AY$3:$AY$10,0))","v":1},{"$f":"6/'Medidas de ahorro Agua'!D18","v":{"$error":"#DIV/0!"}},{"$f":"IF(I46>5,5,I46)","v":{"$error":"#DIV/0!"}},{"$f":"IF(G46=\"N/A\",0,H46*G46*J46)","v":{"$error":"#N/A"}},null,null,null,{"$f":"COUNTIF(E46:E53,E46)","v":1},{"$error":"#N/A"}]
[null,null,null,null,{"$f":"IF('Medidas de ahorro Agua'!D19>=4,\"\",'Medidas de ahorro Agua'!C19)","v":"Orinales (lpm)"},null,{"$f":"INDEX('Matriz de ahorros agua'!$D$5:$DG$20, MATCH($F$9,'Matriz de ahorros agua'!$C$5:$C$20,0), MATCH(E47&$G$8,'Matriz de ahorros agua'!$D$3:$DG$3&'Matriz de ahorros agua'!$D$4:$DG$4,0))","v":{"$error":"#N/A"}},{"$f":"INDEX(Listas!$AZ$3:$AZ$10, MATCH(E47, Listas!$AY$3:$AY$10,0))","v":{"$error":"#N/A"}},{"$f":"2/'Medidas de ahorro Agua'!D19","v":{"$error":"#DIV/0!"}},{"$error":"#DIV/0!"},{"$f":"IF(G47=\"N/A\",0,H47*G47*J47)","v":{"$error":"#N/A"}},null,null,null,1,{"$error":"#N/A"}]
[null,null,null,null,{"$f":"IF('Medidas de ahorro Agua'!D20>=6,\"\",'Medidas de ahorro Agua'!C20)","v":"Inodoros (lpm)"},null,{"$f":"INDEX('Matriz de ahorros agua'!$D$5:$DG$20, MATCH($F$9,'Matriz de ahorros agua'!$C$5:$C$20,0), MATCH(E48&$G$8,'Matriz de ahorros agua'!$D$3:$DG$3&'Matriz de ahorros agua'!$D$4:$DG$4,0))","v":{"$error":"#N/A"}},{"$f":"INDEX(Listas!$AZ$3:$AZ$10, MATCH(E48, Listas!$AY$3:$AY$10,0))","v":{"$error":"#N/A"}},{"$f":"4.5/'Medidas de ahorro Agua'!D20","v":{"$error":"#DIV/0!"}},{"$f":"IF(I48>5,5,I48)","v":{"$error":"#DIV/0!"}},{"$error":"#N/A"},null,null,null,1,{"$error":"#N/A"}]
[null,null,null,null,{"$f":"IF('Medidas de ahorro Agua'!C22=\"\",\"\",'Medidas de ahorro Agua'!C22)","v":""},null,{"$f":"INDEX('Matriz de ahorros agua'!$D$5:$DG$20, MATCH($F$9,'Matriz de ahorros agua'!$C$5:$C$20,0), MATCH(E49&$G$8,'Matriz de ahorros agua'!$D$3:$DG$3&'Matriz de ahorros agua'!$D$4:$DG$4,0))","v":{"$error":"#N/A"}},{"$f":"INDEX(Listas!$AZ$3:$AZ$10, MATCH(E49, Listas!$AY$3:$AY$10,0))","v":{"$error":"#N/A"}},null,null,{"$error":"#N/A"},null,null,null,{"$f":"COUNTIF(E49:E56,E49)","v":6},0]
[null,null,null,null,{"$f":"IF('Medidas de ahorro Agua'!C23=\"\",\"\",'Medidas de ahorro Agua'!C23)","v":""},null,{"$f":"INDEX('Matriz de ahorros agua'!$D$5:$DG$20, MATCH($F$9,'Matriz de ahorros agua'!$C$5:$C$20,0), MATCH(E50&$G$8,'Matriz de ahorros agua'!$D$3:$DG$3&'Matriz de ahorros agua'!$D$4:$DG$4,0))","v":{"$error":"#N/A"}},{"$f":"INDEX(Listas!$AZ$3:$AZ$10, MATCH(E50, Listas!$AY$3:$AY$10,0))","v":{"$error":"#N/A"}},null,null,{"$error":"#N/A"},null,null,null,5,0]
[null,null,null,null,{"$f":"IF('Medidas de ahorro Agua'!C24=\"\",\"\",'Medidas de ahorro Agua'!C24)","v":""},null,{"$f":"INDEX('Matriz de ahorros agua'!$D$5:$DG$20, MATCH($F$9,'Matriz de ahorros agua'!$C$5:$C$20,0), MATCH(E51&$G$8,'Matriz de ahorros agua'!$D$3:$DG$3&'Matriz de ahorros agua'!$D$4:$DG$4,0))","v":{"$error":"#N/A"}},{"$f":"INDEX(Listas!$AZ$3:$AZ$10, MATCH(E51, Listas!$AY$3:$AY$10,0))","v":{"$error":"#N/A"}},null,null,{"$error":"#N/A"},null,null,null,4,0]
[null,null,null,null,{"$f":"IF('Medidas de ahorro Agua'!C25=\"\",\"\",'Medidas de ahorro Agua'!C25)","v":""},null,{"$f":"INDEX('Matriz de ahorros agua'!$D$5:$DG$20, MATCH($F$9,'Matriz de ahorros agua'!$C$5:$C$20,0), MATCH(E52&$G$8,'Matriz de ahorros agua'!$D$3:$DG$3&'Matriz de ahorros agua'!$D$4:$DG$4,0))","v":{"$error":"#N/A"}},{"$f":"INDEX(Listas!$AZ$3:$AZ$10, MATCH(E52, Listas!$AY$3:$AY$10,0))","v":{"$error":"#N/A"}},null,null,{"$error":"#N/A"},{"$f":"ROUND(SUMIF((P45:P52),\">-1000000\"),2)","v":0},null,null,4,0]
[]
[null,null,null,null,"RESULTADOS DE CUMPLIMIENTO"]
[]
[null,null,null,null,"Resultados energía"]
[null,null,null,null,"Porcentaje alcanzado de ahorro energía (%)",{"$f":"(L26+L41)*100","v":0}]
[null,null,null,null,"Cumplimiento",{"$f":"IF(F57>=F11,\"SI\",\"NO\")","v":"NO"}]
[]
[null,null,null,null,"Resultados agua"]
[null,null,null,null,"Porcentaje alcanzado de ahorro agua (%)",{"$f":"+L52*100","v":0}]
[null,null,null,null,"Cumplimiento",{"$f":"IF(F61>=F10,\"SI\",\"NO\")","v":"NO"}]
[null,null,null,null,{"$f":"\"Fecha y hora de impresión \"&TEXT(NOW(),\"d/mm/yyyy h:mm\")","v":"Fecha y hora de impresión 23/04/2025 10:04"}]

{"sheet":"Matriz de ahorros energia","index":6,"n_rows":20,"n_cols":111,"rows_kept":20,"cut":false,"hidden":false,"merged":[]}
[]
[]
[null,null,null,"Relación Muro ventana","Relación Muro ventana","Relación Muro ventana","Relación Muro ventana","Angulo de sombreado vertical","Angulo de sombreado vertical","Angulo de sombreado vertical","Angulo de sombreado vertical","Angulo de sombreado horizontal","Angulo de sombreado horizontal","Angulo de sombreado horizontal","Angulo de sombreado horizontal","Sombreado combinado","Sombreado combinado","Sombreado combinado","Sombreado combinado","U vidrio (W/m2.K)","U vidrio (W/m2.K)","U vidrio (W/m2.K)","U vidrio (W/m2.K)","SHGC de ventanería","SHGC de ventanería","SHGC de ventanería","SHGC de ventanería","Conjunto U & SHGC","Conjunto U & SHGC","Conjunto U & SHGC","Conjunto U & SHGC","Valor U de cubierta","Valor U de cubierta","Valor U de cubierta","Valor U de cubierta","SRI de Cubierta","SRI de Cubierta","SRI de Cubierta","SRI de Cubierta","Valor U de paredes Exteriores","Valor U de paredes Exteriores","Valor U de paredes Exteriores","Valor U de paredes Exteriores","SR de pared exterior","SR de pared exterior","SR de pared exterior","SR de pared exterior","Cubierta verde","Cubierta verde","Cubierta verde","Cubierta verde","Night Flush","Night Flush","Night Flush","Night Flush","Inercia Térmica","Inercia Térmica","Inercia Térmica","Inercia Térmica","Iluminación Natural","Iluminación Natural","Iluminación Natural","Iluminación Natural","Sensores de CO2","Sensores de CO2","Sensores de CO2","Sensores de CO2","VSD en bombas de HVAC","VSD en bombas de HVAC","VSD en bombas de HVAC","VSD en bombas de HVAC","Recuperación de calor","Recuperación de calor","Recuperación de calor","Recuperación de calor","Sensores de ocupación y zonificación","Sensores de ocupación y zonificación","Sensores de ocupación y zonificación","Sensores de ocupación y zonificación","Sensores fotométricos y dimerización","Sensores fotométricos y dimerización","Sensores fotométricos y dimerización","Sensores fotométricos y dimerización","Densidad de potencia de Luz","Densidad de potencia de Luz","Densidad de potencia de Luz","Densidad de potencia de Luz","DOAS -  Sistema dedicado de renovacion de aire","DOAS -  Sistema dedicado de renovacion de aire","DOAS -  Sistema dedicado de renovacion de aire","DOAS -  Sistema dedicado de renovacion de aire","COP - Mejora en coeficiente de desempeño","COP - Mejora en coeficiente de desempeño","COP - Mejora en coeficiente de desempeño","COP - Mejora en coeficiente de desempeño","VSD Torres de enfriamiento","VSD Torres de enfriamiento","VSD Torres de enfriamiento","VSD Torres de enfriamiento","Sensores CO parqueaderos","Sensores CO parqueaderos","Sensores CO parqueaderos","Sensores CO parqueaderos","Enfriamiento evaporativo","Enfriamiento evaporativo","Enfriamiento evaporativo","Enfriamiento evaporativo","Agua caliente solar","Agua caliente solar","Agua caliente solar","Agua caliente solar"]
[null,null,"Tipo de uso","F","T","CS","CH","F","T","CS","CH","F","T","CS","CH","F","T","CS","CH","F","T","CS","CH","F","T","CS","CH","F","T","CS","CH","F","T","CS","CH","F","T","CS","CH","F","T","CS","CH","F","T","CS","CH","F","T","CS","CH","F","T","CS","CH","F","T","CS","CH","F","T","CS","CH","F","T","CS","CH","F","T","CS","CH","F","T","CS","CH","F","T","CS","CH","F","T","CS","CH","F","T","CS","CH","F","T","CS","CH","F","T","CS","CH","F","T","CS","CH","F","T","CS","CH","F","T","CS","CH","F","T","CS","CH"]
[null,null,"Vivienda VIP Unifamiliar",-0.17599999999999999,1.7100000000000001E-2,-0.10272149250831952,-0.10272149250831952,-1.0999999999999999E-2,3.1600000000000003E-2,1.8072447656793278E-2,1.8072447656793278E-2,1E-3,3.1600000000000003E-2,1.5003924055720708E-2,1.5003924055720708E-2,7.0000000000000001E-3,3.9E-2,2.5232336059295868E-2,2.5232336059295868E-2,"N/A","N/A","N/A","N/A","N/A","N/A","N/A","N/A","N/A","N/A","N/A","N/A",2.3E-2,8.3999999999999995E-3,2.0517627811956651E-2,2.0517627811956651E-2,4.1000000000000002E-2,3.0800000000000001E-2,4.574662783167216E-2,4.574662783167216E-2,"N/A","N/A","N/A","N/A",4.1000000000000002E-2,9.8400000000000001E-2,8.3883067326504746E-2,8.3883067326504746E-2,"N/A","N/A","N/A","N/A","N/A","N/A","N/A","N/A",9.0999999999999998E-2,4.2000000000000003E-2,2.9710237851041876E-2,2.9710237851041876E-2,"N/A","N/A","N/A","N/A",0,0,0,0,"N/A","N/A","N/A","N/A","N/A","N/A","N/A","N/A","N/A","N/A","N/A","N/A","N/A","N/A","N/A","N/A",5.7200000000000001E-2,5.1900000000000002E-2,4.8099999999999997E-2,4.1300000000000003E-2,"N/A","N/A","N/A","N/A","N/A","N/A","N/A","N/A","N/A","N/A","N/A","N/A",0,0,0,0,"N/A","N/A","N/A","N/A",0.54500000000000004,0.67810000000000004,0.69797278952950348,0.69797278952950348]
[null,null,"Vivienda VIP Multifamiliar",-6.9000000000000006E-2,-5.0799999999999998E-2,-2.0906927690431676E-3,-2.0906927690431676E-3,4.5999999999999999E-2,1.1299999999999999E-2,6.2062637131773846E-2,6.2062637131773846E-2,4.5999999999999999E-2,2.0799999999999999E-2,6.2062637131773846E-2,6.2062637131773846E-2,6.8000000000000005E-2,2.7400000000000001E-2,0.12519932401026335,0.12519932401026335,"N/A","N/A","N/A","N/A","N/A","N/A","N/A","N/A","N/A","N/A","N/A","N/A",1.7999999999999999E-2,1.43E-2,0.2188899237542854,0.2188899237542854,2.3E-2,2.41E-2,0.23620294417350673,0.23620294417350673,"N/A","N/A","N/A","N/A",8.3000000000000004E-2,4.7E-2,0.20972429471633269,0.20972429471633269,"N/A","N/A","N/A","N/A","N/A","N/A","N/A","N/A",0.105,6.3100000000000003E-2,4.6814130582264357E-2,4.6814130582264357E-2,"N/A","N/A","N/A","N/A",0,0,0,0,"N/A","N/A","N/A","N/A","N/A","N/A","N/A","N/A","N/A","N/A","N/A","N/A","N/A","N/A","N/A","N/A",5.3499999999999999E-2,4.1300000000000003E-2,3.8399999999999997E-2,3.56E-2,"N/A","N/A","N/A","N/A","N/A","N/A","N/A","N/A","N/A","N/A","N/A","N/A",0,0,0,0,"N/A","N/A","N/A","N/A",0.55700000000000005,0.67569999999999997,0.72132737211001341,0.72132737211001341]
[null,null,"Vivienda VIS Unifamiliar",-9.6000000000000002E-2,-2.7000000000000001E-3,-0.10119407813759929,-0.14750156790743763,0.11799999999999999,4.5199999999999997E-2,3.8141472793417175E-2,2.9606677019000882E-2,0.11799999999999999,0.05,2.8564144298090066E-2,3.6703872050530273E-2,8.8999999999999996E-2,5.9700000000000003E-2,4.7418932885978538E-2,3.9759036144578208E-2,"N/A","N/A","N/A","N/A","N/A","N/A","N/A","N/A","N/A","N/A","N/A","N/A",0.10100000000000001,5.9299999999999999E-2,5.2174814771162148E-2,3.2707500697576108E-2,0.09,5.8799999999999998E-2,5.1642684913815184E-2,4.5781693109638533E-2,"N/A","N/A","N/A","N/A",9.4E-2,0.1065,9.8176736649218777E-2,0.12884723951348775,"N/A","N/A","N/A","N/A","N/A","N/A","N/A","N/A",0.124,6.3799999999999996E-2,5.1564236099060357E-2,4.3892649124780303E-2,"N/A","N/A","N/A","N/A",0,0,0,0,"N/A","N/A","N/A","N/A","N/A","N/A","N/A","N/A","N/A","N/A","N/A","N/A","N/A","N/A","N/A","N/A",5.67E-2,4.9500000000000002E-2,4.7500000000000001E-2,4.48E-2,"N/A","N/A","N/A","N/A","N/A","N/A","N/A","N/A","N/A","N/A","N/A","N/A",0,0,0,0,"N/A","N/A","N/A","N/A",0.69299999999999995,0.75249999999999995,0.75517342266828291,0.79152621175871873]
[null,null,"Vivienda VIS Multifamiliar",0.14000000000000001,-0.115,-0.10100000000000001,-0.02,2.5999999999999999E-2,8.9999999999999993E-3,8.9999999999999993E-3,7.0000000000000001E-3,2.8000000000000001E-2,1.4999999999999999E-2,8.9999999999999993E-3,1.4E-2,4.4999999999999998E-2,2.1000000000000001E-2,8.9999999999999993E-3,2.3E-2,"N/A","N/A","N/A","N/A","N/A","N/A","N/A","N/A","N/A","N/A","N/A","N/A",2.1999999999999999E-2,5.7000000000000002E-2,-1E-3,7.3999999999999996E-2,8.9999999999999993E-3,7.2999999999999995E-2,1.2999999999999999E-2,6.3E-2,"N/A","N/A","N/A","N/A",3.4000000000000002E-2,7.0999999999999994E-2,3.5000000000000003E-2,0.03,"N/A","N/A","N/A","N/A","N/A","N/A","N/A","N/A",6.8000000000000005E-2,3.2000000000000001E-2,4.3999999999999997E-2,2.5999999999999999E-2,"N/A","N/A","N/A","N/A",0,0,0,0,"N/A","N/A","N/A","N/A","N/A","N/A","N/A","N/A","N/A","N/A","N/A","N/A","N/A","N/A","N/A","N/A",4.2500000000000003E-2,4.2900000000000001E-2,3.8399999999999997E-2,3.61E-2,"N/A","N/A","N/A","N/A","N/A","N/A","N/A","N/A","N/A","N/A","N/A","N/A",0,0,0,0,"N/A","N/A","N/A","N/A",0.61,0.70099999999999996,0.70499999999999996,0.74099999999999999]
[null,null,"Vivienda No VIS Unifamiliar",6.0000000000000001E-3,-0.1133,-0.17110517492552657,-5.2203577573536331E-2,-3.2000000000000001E-2,3.3700000000000001E-2,4.399303798223031E-2,3.334316921663294E-2,-3.2000000000000001E-2,3.9600000000000003E-2,4.6574479176261785E-2,5.2897803466601778E-2,-4.3999999999999997E-2,4.8399999999999999E-2,4.9374079488816669E-2,6.4682454208040419E-2,1.9E-2,1.5E-3,-8.8285974631707731E-3,1.7364441249764218E-2,8.0000000000000002E-3,5.9700000000000003E-2,6.9781138009837651E-2,7.9961037568456184E-2,1.9E-2,7.1400000000000005E-2,4.3604540069553055E-2,9.7296370438258006E-2,0.16,0.18729999999999999,1.2037466109078632E-2,-1.7587630755477202E-2,-5.0000000000000001E-3,0.2334,3.8165681510414551E-2,7.8275016659440366E-3,6.6000000000000003E-2,7.1400000000000005E-2,6.9508659814598195E-2,5.2534932766122866E-2,8.9999999999999993E-3,0.1061,0.10628573147981002,4.274144531463353E-2,7.0000000000000001E-3,0.1288,7.5052314193489122E-2,-5.9675394181717412E-3,"N/A","N/A","N/A","N/A",0.13800000000000001,4.82E-2,2.2495008264685867E-2,2.0496254036351802E-3,"N/A","N/A","N/A","N/A",0,0,0,0,"N/A","N/A","N/A","N/A",0.51400000000000001,"N/A","N/A","N/A","N/A","N/A","N/A","N/A","N/A","N/A","N/A","N/A",3.2300000000000002E-2,3.1899999999999998E-2,3.2099999999999997E-2,2.6599999999999999E-2,"N/A","N/A","N/A","N/A",-0.02,6.5299999999999997E-2,5.9336245734083692E-2,6.8329326908678101E-2,"N/A","N/A","N/A","N/A",0,0,0,0,"N/A","N/A","N/A","N/A",0.74099999999999999,0.75139999999999996,0.760084168978715,0.7971866299447572]
[null,null,"Vivienda No VIS Multifamiliar",-0.154,1.2E-2,-8.8161344991759982E-2,-0.17308037405627119,-2E-3,4.02E-2,3.4746184796059398E-2,3.1798968012390016E-2,-2E-3,4.0099999999999997E-2,3.2151290042574221E-2,3.6078499459525459E-2,2.1000000000000001E-2,4.58E-2,3.9827850943290666E-2,4.038919016105269E-2,1.2999999999999999E-2,6.9999999999999999E-4,3.4743192143053658E-2,2.8278143537504463E-2,-2.9000000000000001E-2,4.5600000000000002E-2,6.5205985587727611E-2,5.678457280320115E-2,4.1000000000000002E-2,5.6800000000000003E-2,0.10642700435578545,8.0029468224051659E-2,3.1E-2,3.4799999999999998E-2,3.4672344639246289E-2,3.256175170621034E-2,-2E-3,5.7000000000000002E-2,5.5161806718468154E-2,3.5272772665882246E-2,0.02,5.6800000000000003E-2,5.5248348836485217E-2,8.4343794880130774E-2,-5.8999999999999997E-2,6.8099999999999994E-2,5.5147273655244966E-2,4.5514941134105813E-2,4.2000000000000003E-2,5.6899999999999999E-2,4.4903829507390025E-2,3.952640043077682E-2,"N/A","N/A","N/A","N/A",6.3E-2,1.2E-2,3.4729082486028906E-2,1.5324927255092269E-2,"N/A","N/A","N/A","N/A",0,0,0,0,"N/A","N/A","N/A","N/A","N/A","N/A","N/A","N/A","N/A","N/A","N/A","N/A","N/A","N/A","N/A","N/A",4.2099999999999999E-2,3.5400000000000001E-2,3.4599999999999999E-2,3.2099999999999997E-2,"N/A","N/A","N/A","N/A",6.3E-2,6.3E-2,6.5414152879355036E-2,7.5759348732584164E-2,"N/A","N/A","N/A","N/A",0,0,0,0,"N/A","N/A","N/A","N/A",0.60499999999999998,0.74629999999999996,0.75954065179536878,0.77452723209784002]
[null,null,"Centro Educativo Básica",-0.01,-7.7999999999999996E-3,-8.8140588617076111E-3,1.2028533687327684E-2,1.7999999999999999E-2,3.5299999999999998E-2,9.7044359712177619E-2,3.5964604545067488E-2,2.1999999999999999E-2,0.05,0.10499604946280718,4.795758064444456E-2,2.1000000000000001E-2,4.8599999999999997E-2,0.10456031778859069,4.5542440196016172E-2,-0.01,8.0999999999999996E-3,1.4918749860027612E-2,1.967442767911386E-2,5.2999999999999999E-2,3.1E-2,3.7846136167327606E-2,4.0878328899939712E-2,3.7999999999999999E-2,3.3300000000000003E-2,4.5637314852662481E-2,4.8890547209307078E-2,3.0000000000000001E-3,1.2800000000000001E-2,2.0466412438168297E-2,1.6426492291955929E-2,4.9000000000000002E-2,4.1700000000000001E-2,5.4676211358776913E-2,3.2250200042386538E-2,-2.3E-2,5.0000000000000001E-3,1.5495833193443069E-2,6.5315423820409097E-3,2.4E-2,1.44E-2,2.5920403042093067E-2,8.1812443179945793E-3,5.0999999999999997E-2,5.4899999999999997E-2,6.7642812916911543E-2,3.9812286682318315E-2,3.3000000000000002E-2,3.5999999999999997E-2,5.8670328996714996E-2,2.7251395865491176E-2,2.7E-2,1.23E-2,1.2653517028375846E-2,1.0962055017844875E-2,2.93E-2,1.84E-2,1.66E-2,1.3899999999999999E-2,0,0,0,0,"N/A","N/A","N/A","N/A",-1.9E-2,4.2099999999999999E-2,8.8493452631743866E-2,0.15132639676621928,3.61E-2,2.2700000000000001E-2,2.0400000000000001E-2,1.72E-2,3.3000000000000002E-2,2.1000000000000001E-2,1.8599999999999998E-2,1.6400000000000001E-2,5.4199999999999998E-2,3.4000000000000002E-2,3.0700000000000002E-2,2.5700000000000001E-2,0.17899999999999999,0.20979999999999999,0.18759994563458654,0.1449041708031315,3.6999999999999998E-2,6.25E-2,8.3570331819594557E-2,0.10217178117805882,"N/A","N/A","N/A","N/A",0,0,0,0,0.20300000000000001,0.38569999999999999,0.32375063998480275,6.65597998851582E-2,0.08,0.06,0.05,0.03]
[null,null,"Centro Educativo Profesional",-2.9000000000000001E-2,-1.8599999999999998E-2,-1.471782123836898E-2,-2.235468806924203E-2,1.6E-2,5.7299999999999997E-2,9.7360807701323007E-2,5.6564729499598343E-2,1.2999999999999999E-2,5.8599999999999999E-2,9.5046752419609595E-2,6.7425594063313832E-2,1.4E-2,5.7799999999999997E-2,0.10079646138099786,6.0355366588097037E-2,-8.0000000000000002E-3,1.78E-2,1.3619354993954875E-2,1.4737656044607316E-2,4.3999999999999997E-2,3.7999999999999999E-2,2.6351496649046346E-2,2.4945710575674178E-2,3.9E-2,4.2700000000000002E-2,3.3315441025263015E-2,3.3318381527109427E-2,3.0000000000000001E-3,2.1100000000000001E-2,1.3727644004139601E-2,9.8706086145252305E-3,2.5999999999999999E-2,3.3500000000000002E-2,2.9873736870790264E-2,1.8228043523833861E-2,-2.8000000000000001E-2,1.3100000000000001E-2,1.8092914571083071E-2,1.2533611321347265E-2,-3.1E-2,1.8100000000000002E-2,2.3587497383689468E-2,-7.9040111423791543E-3,5.7000000000000002E-2,3.8699999999999998E-2,4.8608549979168983E-2,3.1347035752657487E-2,6.2E-2,4.6199999999999998E-2,3.2595683205059574E-2,4.0603705861559813E-2,0.05,3.1300000000000001E-2,2.491179405895335E-2,1.7558551578077303E-2,1.84E-2,1.15E-2,7.9000000000000008E-3,6.8999999999999999E-3,0,0,0,0,"N/A","N/A","N/A","N/A","N/A",0.1154,0.11406199966678486,0.13586464663607459,2.98E-2,1.8599999999999998E-2,1.2800000000000001E-2,1.11E-2,2.9000000000000001E-2,1.83E-2,1.29E-2,1.12E-2,4.4699999999999997E-2,2.8000000000000001E-2,1.9099999999999999E-2,1.67E-2,0.159,0.314,0.15387399929247828,8.0957253412819924E-2,4.7E-2,0.1328,0.16648839611069188,0.1814437489539748,"N/A","N/A","N/A","N/A",0,0,0,0,0.254,0.45710000000000001,0.32345395175999425,-1.7065509693120894E-3,0.06,0.04,0.03,0.02]
[null,null,"Oficinas hasta 1000m2",-8.9999999999999993E-3,2.0199999999999999E-2,-3.300109441672916E-5,-9.1668476434250135E-3,1.2E-2,1.7600000000000001E-2,2.2467200627641404E-2,1.677573687045697E-2,1.2E-2,4.6899999999999997E-2,3.7434206284430172E-2,2.873710260195983E-2,1.2E-2,4.6899999999999997E-2,4.7508763714968927E-2,3.5913922040861523E-2,0,3.6600000000000001E-2,2.0207814049311157E-2,9.670558966333509E-3,3.4000000000000002E-2,6.8699999999999997E-2,3.5096260241801347E-2,3.7770366140832623E-2,4.7E-2,6.59E-2,4.5153917958021705E-2,5.1737754536282377E-2,-1.2E-2,5.8000000000000003E-2,6.2715141819611686E-2,2.6144057098998252E-2,3.4000000000000002E-2,3.85E-2,4.710869571332521E-2,1.6454691124471288E-2,3.0000000000000001E-3,2.3199999999999998E-2,1.7489169943278648E-2,4.7708529483657669E-3,-3.0000000000000001E-3,3.1199999999999999E-2,1.494602826447966E-2,-2.8533363183758098E-5,2.1999999999999999E-2,4.9500000000000002E-2,6.4948298079349098E-2,2.3648632051248231E-2,0.04,0.15140000000000001,6.5017511810514517E-2,3.2998217518326545E-2,8.9999999999999993E-3,1.24E-2,4.9614454725276369E-3,-1.1858341925702787E-2,3.49E-2,3.0200000000000001E-2,2.7900000000000001E-2,2.64E-2,0,0,0,0,8.9999999999999993E-3,2.0199999999999999E-2,1.95E-2,2.5899999999999999E-2,3.5000000000000003E-2,2.8199999999999999E-2,3.5033884248966363E-2,6.365758308331515E-2,2.2499999999999999E-2,1.95E-2,1.7999999999999999E-2,1.7000000000000001E-2,4.4999999999999998E-2,4.4999999999999998E-2,4.4999999999999998E-2,4.4999999999999998E-2,3.3799999999999997E-2,2.92E-2,2.7E-2,2.5600000000000001E-2,0.189,8.8999999999999996E-2,9.9227673864142885E-3,6.5647788684649155E-2,6.5000000000000002E-2,8.0500000000000002E-2,6.9819866278485132E-2,5.1757110226685166E-2,8.9999999999999993E-3,2.3E-2,0.03,3.5400000000000001E-2,0,0,0,0,0.16700000000000001,0.15210000000000001,0.10483031463658388,-0.2450564210955577,0.05,0.04,0.03,0.02]
[null,null,"Oficinas > 1000m2",-2.5000000000000001E-2,1.0699999999999999E-2,-4.6993422225224402E-2,1.6349928695267191E-2,3.7999999999999999E-2,2.07E-2,2.4452681894702066E-2,3.1497913017000667E-2,2.1999999999999999E-2,4.4699999999999997E-2,3.5446433895787943E-2,3.8387307252500946E-2,2.5999999999999999E-2,4.2700000000000002E-2,3.928876749960708E-2,4.4662950596408457E-2,-3.0000000000000001E-3,1.6000000000000001E-3,6.4376979613787189E-3,2.401193857613515E-2,1.6E-2,2.0799999999999999E-2,3.2901211524756446E-2,4.041520945803323E-2,1E-3,3.7100000000000001E-2,2.1490408922153259E-2,5.0106978643119193E-2,2.1000000000000001E-2,4.1000000000000003E-3,4.8440182534670306E-3,1.809601803326899E-3,3.1E-2,1.23E-2,4.8440182534670306E-3,9.0555124725347769E-3,-3.0000000000000001E-3,9.5999999999999992E-3,4.8440182534670306E-3,1.1405457839440691E-2,6.0000000000000001E-3,2.0400000000000001E-2,1.4449782943290912E-2,1.6462999643451881E-2,4.7E-2,1.23E-2,1.0889241493755364E-2,9.5482745250098366E-3,0.13300000000000001,5.11E-2,4.0351109647866701E-2,3.4674893425998388E-2,1.9E-2,-1.7299999999999999E-2,-3.0588636191550833E-3,-3.005345067606191E-3,2.6200000000000001E-2,2.2599999999999999E-2,2.18E-2,1.9900000000000001E-2,0,0,0,0,3.7999999999999999E-2,9.5999999999999992E-3,1.21E-2,5.6500000000000002E-2,0.41199999999999998,3.4599999999999999E-2,5.5937020511588775E-2,6.8603245438532245E-2,2.3599999999999999E-2,2.0299999999999999E-2,1.9699999999999999E-2,1.7899999999999999E-2,3.7999999999999999E-2,3.7999999999999999E-2,3.7999999999999999E-2,3.7999999999999999E-2,3.5400000000000001E-2,3.0499999999999999E-2,2.9499999999999998E-2,2.69E-2,0.20899999999999999,8.8700000000000001E-2,7.2052916012014134E-2,0.13163950437647975,0.10100000000000001,8.5900000000000004E-2,7.6991486986132451E-2,0.14135945627601731,3.2000000000000001E-2,1.26E-2,2.18E-2,6.6199999999999995E-2,0,0,0,0,0.14499999999999999,0.30819999999999997,0.17461427916164207,-0.1746542630967538,0.03,0.02,0.01,0.01]
[null,null,"Hotel hasta 3 estrellas",-0.14599999999999999,-4.7E-2,-3.9E-2,6.0999999999999999E-2,2E-3,1.7000000000000001E-2,3.3000000000000002E-2,4.7E-2,-0.111,0.01,3.6999999999999998E-2,5.1999999999999998E-2,-0.127,2.4E-2,3.5000000000000003E-2,5.6000000000000001E-2,6.9000000000000006E-2,1.2E-2,1.2E-2,1.4999999999999999E-2,2.9000000000000001E-2,3.7999999999999999E-2,3.1E-2,0.03,7.8E-2,4.8000000000000001E-2,4.2000000000000003E-2,4.2999999999999997E-2,5.5E-2,0.06,8.2000000000000003E-2,8.2000000000000003E-2,7.0000000000000001E-3,6.7000000000000004E-2,8.5999999999999993E-2,5.8000000000000003E-2,9.0999999999999998E-2,1.4999999999999999E-2,1.4E-2,1.7999999999999999E-2,-1.4999999999999999E-2,1.7000000000000001E-2,5.8999999999999997E-2,4.5999999999999999E-2,4.3999999999999997E-2,4.4999999999999998E-2,6.5000000000000002E-2,8.2000000000000003E-2,"N/A","N/A","N/A","N/A",5.5E-2,2.4E-2,2.7E-2,7.0000000000000001E-3,3.1099999999999999E-2,0.04,3.5900000000000001E-2,3.1699999999999999E-2,0,0,0,0,"N/A","N/A","N/A","N/A",-1.7999999999999999E-2,2.7E-2,6.0000000000000001E-3,4.2999999999999997E-2,1.4200000000000001E-2,1.8200000000000001E-2,1.6400000000000001E-2,1.4500000000000001E-2,"N/A","N/A","N/A","N/A",2.1299999999999999E-2,2.7300000000000001E-2,2.46E-2,2.1700000000000001E-2,0.48299999999999998,0.161,0.154,4.8000000000000001E-2,6.7000000000000004E-2,0.03,6.3E-2,9.7000000000000003E-2,"N/A","N/A","N/A","N/A",0,0,0,0,"N/A","N/A","N/A","N/A",0.28999999999999998,0.27,0.26,0.23]
[null,null,"Hotel 4 y 5 estrellas",-3.2000000000000001E-2,5.9700000000000003E-2,8.6332112749152312E-3,-4.31217950945606E-3,-1.4E-2,1.77E-2,2.011849500281937E-2,3.8804202878557792E-2,-2.1999999999999999E-2,5.1299999999999998E-2,2.011849500281937E-2,3.8740425867207939E-2,-0.03,3.09E-2,2.011849500281937E-2,4.7415382857585286E-2,3.2000000000000001E-2,1.7999999999999999E-2,1.9947596489535924E-2,1.7226554212138923E-2,-1.7999999999999999E-2,5.4100000000000002E-2,4.2751476840874103E-2,3.2301553442864561E-2,0.04,6.0100000000000001E-2,4.2642600195567093E-2,4.0912311778831034E-2,1.2999999999999999E-2,1.49E-2,4.272980358765488E-2,3.0167843746497724E-2,-4.0000000000000001E-3,8.6E-3,4.259868974208636E-2,2.8932335755442518E-2,1.7999999999999999E-2,5.8299999999999998E-2,3.1413484811234738E-2,2.1594436193418387E-2,-8.9999999999999993E-3,2.07E-2,3.128385820928592E-2,4.1355775610032453E-3,4.0000000000000001E-3,2.9899999999999999E-2,5.4024290446143874E-2,3.4435131073460412E-2,"N/A","N/A","N/A","N/A",0.04,3.3300000000000003E-2,3.137047661205894E-2,2.1519293573936893E-2,5.6599999999999998E-2,3.9E-2,3.3300000000000003E-2,2.7799999999999998E-2,0,0,0,0,"N/A",2.7E-2,6.54E-2,6.4699999999999994E-2,3.0000000000000001E-3,0.03,3.1434914269727332E-2,2.1519293573936893E-2,3.2099999999999997E-2,2.2100000000000002E-2,1.89E-2,1.5699999999999999E-2,"N/A","N/A","N/A","N/A",4.8099999999999997E-2,3.32E-2,2.8400000000000002E-2,2.3599999999999999E-2,3.5999999999999997E-2,1.7999999999999999E-2,3.1667406634268258E-2,-3.8647732405546531E-2,1.7999999999999999E-2,0.21879999999999999,8.1745367424316262E-3,1.2908773285669417E-2,"N/A",2.8999999999999998E-3,3.1399999999999997E-2,1.29E-2,0,0,0,0,"N/A","N/A","N/A","N/A",0.27,0.21290000000000001,0.20050000000000001,0.24199999999999999]
[null,null,"Hospital de 1er y 2do nivel",-6.9000000000000006E-2,2.9700000000000001E-2,5.0681355570699749E-3,-3.5113527025018465E-2,-3.5999999999999997E-2,-3.8E-3,5.9384909068779246E-3,2.7475376431658316E-2,-4.2000000000000003E-2,-3.8999999999999998E-3,6.0734237408834879E-3,2.7454611511438465E-2,-4.2200000000000001E-2,-3.8999999999999998E-3,1.5981639187540808E-2,2.743898396501887E-2,1.2999999999999999E-2,3.5000000000000001E-3,2.8884856588036745E-2,5.629753897887535E-2,0.04,2.41E-2,6.1104607208014583E-2,6.5940541700607591E-2,5.0999999999999997E-2,3.5299999999999998E-2,8.8682211808984723E-2,8.0350863854940724E-2,0.16,5.7799999999999997E-2,4.7349967003739724E-2,9.4827596731150154E-2,0.154,5.2900000000000003E-2,4.2653502308674596E-2,8.5189213268030861E-2,6.7000000000000004E-2,1.2999999999999999E-2,4.2707806564305617E-2,6.110819043442417E-2,8.8999999999999996E-2,7.3000000000000001E-3,8.8487496237390051E-2,5.1513590488415861E-2,0.127,6.3299999999999995E-2,4.7330363483762516E-2,8.5155999465746035E-2,"N/A","N/A","N/A","N/A",0.13800000000000001,1.8499999999999999E-2,6.6998828596731563E-4,5.1561305486426123E-2,4.0800000000000003E-2,2.9899999999999999E-2,2.6800000000000001E-2,2.4899999999999999E-2,0,0,0,0,"N/A","N/A","N/A","N/A","N/A",-3.8999999999999998E-3,2.4406770877195227E-2,4.1860321149548962E-2,2.7699999999999999E-2,2.0199999999999999E-2,1.8200000000000001E-2,1.6799999999999999E-2,0.27300000000000002,0.29499999999999998,0.2475,0.17530000000000001,4.1500000000000002E-2,3.0300000000000001E-2,2.7300000000000001E-2,2.53E-2,0.50900000000000001,0.38840000000000002,0.43368667105180025,0.27778208421261597,7.2999999999999995E-2,7.4000000000000003E-3,4.2805077224089882E-2,4.1897326511172062E-2,"N/A","N/A","N/A","N/A",0,0,0,0,"N/A","N/A","N/A","N/A",0.57499999999999996,0.39350000000000002,0.44390000000000002,0.37790000000000001]
[null,null,"Hospital de 3er y 4to nivel",-0.19900000000000001,-4.6800000000000001E-2,-3.8978526885430576E-2,2.3976235594107109E-2,4.3999999999999997E-2,1.72E-2,2.8949053258552349E-2,4.6653699403856885E-2,-0.16200000000000001,0.01,3.3136927276140593E-2,5.2349599071894848E-2,-0.17899999999999999,2.4299999999999999E-2,3.5278317026390726E-2,5.6150083289551178E-2,3.7999999999999999E-2,1.2200000000000001E-2,1.1948984779699523E-2,1.4616870335286802E-2,3.7999999999999999E-2,3.8399999999999997E-2,3.1039793332558352E-2,2.9585621431840625E-2,7.3999999999999996E-2,4.7800000000000002E-2,4.1648909041314908E-2,4.2690024094547807E-2,3.9E-2,4.6300000000000001E-2,5.2187983631928447E-2,4.4560799820041908E-2,3.4000000000000002E-2,2.4199999999999999E-2,3.1060943882598391E-2,5.7638605487169592E-2,4.9000000000000002E-2,1.47E-2,1.4075892067050511E-2,1.8336270876364802E-2,1.4999999999999999E-2,1.7100000000000001E-2,5.0940759745085606E-2,8.3775536379184112E-2,3.9E-2,4.5400000000000003E-2,2.6766147112652683E-2,8.1930810076404237E-2,"N/A","N/A","N/A","N/A",4.9000000000000002E-2,2.4199999999999999E-2,2.6811839494301326E-2,7.1475987471885105E-3,1.0500000000000001E-2,1.2800000000000001E-2,1.14E-2,8.6E-3,0,0,0,0,"N/A","N/A","N/A","N/A",0.13700000000000001,2.6599999999999999E-2,4.8234325115103394E-2,6.1352436999820514E-2,1.12E-2,1.3599999999999999E-2,1.21E-2,9.1000000000000004E-3,"N/A","N/A","N/A","N/A",1.6799999999999999E-2,2.0500000000000001E-2,1.8200000000000001E-2,1.37E-2,7.5999999999999998E-2,0.1613,0.15420963971814361,4.8304849804249761E-2,0.10100000000000001,2.9499999999999998E-2,6.2739990582098115E-2,9.6867667334135987E-2,"N/A","N/A","N/A","N/A",0,0,0,0,"N/A","N/A","N/A","N/A",9.0999999999999998E-2,8.5000000000000006E-2,6.5000000000000002E-2,4.2999999999999997E-2]
[null,null,"Centro Comercial hasta 5000m2",3.4000000000000002E-2,1.3899999999999999E-2,3.5466201010956544E-2,3.0601691808568865E-2,"N/A",4.2799999999999998E-2,4.7992611184634382E-2,8.1312963152651241E-2,1E-3,4.7E-2,4.4153902778000687E-2,8.6253676960672321E-2,-7.0000000000000001E-3,5.2900000000000003E-2,4.6369306711722014E-2,9.1930295244205373E-2,2.8000000000000001E-2,4.5600000000000002E-2,5.9164051614615354E-2,8.9090469341053025E-2,3.1E-2,7.1800000000000003E-2,7.2273726783301351E-2,0.10182259378988401,4.4999999999999998E-2,7.9399999999999998E-2,8.5739854604914734E-2,0.11145349651706093,0.14799999999999999,7.0599999999999996E-2,9.0684928185282287E-2,0.10692982993081945,-1.7000000000000001E-2,0.1208,0.12246231199456714,8.4924642580081033E-2,0.03,-0.12,4.9106409607065804E-2,8.1952837960709957E-2,0.02,4.8399999999999999E-2,5.4905059463964068E-2,8.1616946776859267E-2,0.113,0.10150000000000001,0.12259344326477106,4.889319852034002E-2,2.9000000000000001E-2,0.14510000000000001,0.14632819421924259,0.19271175016498021,1.9E-2,4.1399999999999999E-2,5.2304800798409157E-2,7.8621625647631199E-2,3.3799999999999997E-2,3.8399999999999997E-2,3.0200000000000001E-2,2.9100000000000001E-2,0,0,0,0,"N/A","N/A","N/A","N/A",3.2000000000000001E-2,5.0599999999999999E-2,0.10194781971166711,0.16885901084788446,3.3099999999999997E-2,3.7499999999999999E-2,2.9499999999999998E-2,2.8500000000000001E-2,9.6000000000000002E-2,8.8999999999999996E-2,8.5999999999999993E-2,6.6000000000000003E-2,4.9599999999999998E-2,5.6300000000000003E-2,4.4200000000000003E-2,4.2700000000000002E-2,0.44700000000000001,0.2762,0.29547766792521479,0.20019296345790505,0.05,5.1700000000000003E-2,6.1053766664566633E-2,9.2674519435324232E-2,"N/A","N/A","N/A","N/A",0,0,0,0,0.35099999999999998,0.2671,0.30206889264332804,-9.0579026184871791E-2,1.4999999999999999E-2,8.0000000000000002E-3,6.0000000000000001E-3,4.0000000000000001E-3]
[null,null,"Centro Comercial > 5000m2","N/A","N/A","N/A","N/A","N/A","N/A","N/A","N/A","N/A","N/A","N/A","N/A","N/A","N/A","N/A","N/A",1E-3,2.4500000000000001E-2,8.087117565239943E-3,7.5214034540058705E-3,1.0999999999999999E-2,2.35E-2,1.6097575175384793E-2,7.4385356066818398E-3,6.0000000000000001E-3,2.52E-2,1.6097575175384793E-2,7.4218867142232803E-3,0.04,1.6799999999999999E-2,3.9533367159116928E-5,2.2426732164167795E-2,6.9000000000000006E-2,4.9399999999999999E-2,3.2157031741886888E-2,2.2426732164168128E-2,0,1.47E-2,3.2157031741886888E-2,-8.9346174102722387E-5,7.0000000000000001E-3,1.49E-2,3.2118753993001903E-2,2.076593183357156E-2,0.13,6.4000000000000001E-2,4.0051922182037902E-2,2.2561819188119503E-2,0.02,7.5300000000000006E-2,0.10806916426512969,8.7352343691219581E-2,2.3E-2,2.46E-2,3.2118753993001903E-2,2.7161236927243926E-2,4.9799999999999997E-2,2.75E-2,2.6599999999999999E-2,2.4899999999999999E-2,0,0,0,0,8.9999999999999993E-3,1.2999999999999999E-2,3.2099999999999997E-2,1.4999999999999999E-2,1.2999999999999999E-2,4.1399999999999999E-2,5.6996477745757335E-2,6.5909261906553218E-2,4.82E-2,2.6599999999999999E-2,2.5700000000000001E-2,2.41E-2,"N/A","N/A","N/A","N/A",7.2300000000000003E-2,3.9899999999999998E-2,3.8600000000000002E-2,3.61E-2,5.6000000000000001E-2,0.2737,0.16824893171737465,0.1052886815825087,4.0000000000000001E-3,6.9000000000000006E-2,3.8984950368235682E-2,2.2646903919945727E-2,1E-3,1.8100000000000002E-2,2.1000000000000001E-2,2.1999999999999999E-2,0,0,0,0,9.4E-2,0.33400000000000002,0.14434298478319096,4.486962114879911E-2,4.4999999999999997E-3,3.5000000000000001E-3,2.2000000000000001E-3,1E-3]

{"sheet":"Matriz de ahorros agua","index":7,"n_rows":20,"n_cols":35,"rows_kept":20,"cut":false,"hidden":false,"merged":[]}
[]
[]
[null,null,null,"Lavamanos (lpm)","Lavamanos (lpm)","Lavamanos (lpm)","Lavamanos (lpm)","Duchas (lpm)","Duchas (lpm)","Duchas (lpm)","Duchas (lpm)","Orinales (lpd)","Orinales (lpd)","Orinales (lpd)","Orinales (lpd)","Inodoros (lpd)","Inodoros (lpd)","Inodoros (lpd)","Inodoros (lpd)","PTAR","PTAR","PTAR","PTAR","PTALL Aguas lluvias","PTALL Aguas lluvias","PTALL Aguas lluvias","PTALL Aguas lluvias","Paisajismo de bajo consumo","Paisajismo de bajo consumo","Paisajismo de bajo consumo","Paisajismo de bajo consumo","Recuperación de agua de Cond","Recuperación de agua de Cond","Recuperación de agua de Cond","Recuperación de agua de Cond"]
[null,null,"Tipo de uso","F","T","CS","CH","F","T","CS","CH","F","T","CS","CH","F","T","CS","CH","F","T","CS","CH","F","T","CS","CH","F","T","CS","CH","F","T","CS","CH"]
[null,null,"Vivienda VIP Unifamiliar",7.7200000000000005E-2,7.5700000000000003E-2,7.1199999999999999E-2,7.0900000000000005E-2,0.11890000000000001,0.113,0.11749999999999999,0.1153,"N/A","N/A","N/A","N/A",4.7500000000000001E-2,4.5199999999999997E-2,3.7900000000000003E-2,3.73E-2,0.26579999999999998,0.2432,0.17369999999999999,0.16789999999999999,0.17760000000000001,0.2092,0.23380000000000001,0.21759999999999999,0.04,0.05,5.5E-2,0.06,1.6000000000000001E-3,1.8499999999999999E-2,3.9300000000000002E-2,5.45E-2]
[null,null,"Vivienda VIP Multifamiliar",7.8600000000000003E-2,7.6999999999999999E-2,7.22E-2,7.1800000000000003E-2,0.1245,0.1181,0.123,0.1206,"N/A","N/A","N/A","N/A",4.9799999999999997E-2,4.7199999999999999E-2,3.9300000000000002E-2,3.8699999999999998E-2,0.28739999999999999,0.26290000000000002,0.18779999999999999,0.18149999999999999,0.14760000000000001,0.16919999999999999,0.1938,0.20760000000000001,0.03,3.5000000000000003E-2,3.9E-2,4.1000000000000002E-2,2.2000000000000001E-3,1.72E-2,2.87E-2,3.78E-2]
[null,null,"Vivienda VIS Unifamiliar",7.8100000000000003E-2,7.5600000000000001E-2,7.3200000000000001E-2,7.2400000000000006E-2,0.1225,0.1124,0.12920000000000001,0.1241,"N/A","N/A","N/A","N/A",4.9000000000000002E-2,4.4900000000000002E-2,4.1000000000000002E-2,3.9600000000000003E-2,0.27979999999999999,0.24079999999999999,0.20369999999999999,0.1905,0.1835,0.19620000000000001,0.2344,0.24,5.3999999999999999E-2,5.8000000000000003E-2,5.8999999999999997E-2,0.06,3.8999999999999998E-3,1.9599999999999999E-2,3.7600000000000001E-2,5.2299999999999999E-2]
[null,null,"Vivienda VIS Multifamiliar",8.9599999999999999E-2,7.6799999999999993E-2,7.4200000000000002E-2,7.3400000000000007E-2,0.12839999999999999,0.11749999999999999,0.1356,0.13009999999999999,"N/A","N/A","N/A","N/A",5.1299999999999998E-2,4.7E-2,4.2700000000000002E-2,4.1200000000000001E-2,0.3024,0.26029999999999998,0.22020000000000001,0.2059,0.1535,0.15620000000000001,0.18440000000000001,0.19,3.4000000000000002E-2,3.9E-2,4.9000000000000002E-2,0.06,2.8E-3,7.3000000000000001E-3,1.06E-2,2.18E-2]
[null,null,"Vivienda No VIS Unifamiliar",7.4700000000000003E-2,7.2700000000000001E-2,7.0300000000000001E-2,7.0599999999999996E-2,0.109,0.1009,0.1116,0.1137,"N/A","N/A","N/A","N/A",4.36E-2,4.0300000000000002E-2,3.6299999999999999E-2,3.6900000000000002E-2,0.22770000000000001,0.1963,0.15840000000000001,0.1638,0.25740000000000002,0.26800000000000002,0.28699999999999998,0.32719999999999999,0.11,0.13,0.13800000000000001,0.14000000000000001,6.7000000000000002E-3,2.5399999999999999E-2,3.8899999999999997E-2,4.9799999999999997E-2]
[null,null,"Vivienda No VIS Multifamiliar",7.5899999999999995E-2,7.3700000000000002E-2,7.1099999999999997E-2,7.1499999999999994E-2,0.1138,0.105,0.1166,0.1188,"N/A","N/A","N/A","N/A",4.5499999999999999E-2,4.2000000000000003E-2,3.7600000000000001E-2,3.8199999999999998E-2,0.2462,0.2122,0.17119999999999999,0.17699999999999999,0.18740000000000001,0.20799999999999999,0.23699999999999999,0.25719999999999998,0.09,9.5000000000000001E-2,9.9000000000000005E-2,0.10100000000000001,1.5E-3,6.7000000000000002E-3,8.8999999999999999E-3,1.11E-2]
[null,null,"Centro Educativo Básica",0.1027,9.0200000000000002E-2,7.0900000000000005E-2,6.93E-2,2E-3,2E-3,2E-3,1.5E-3,8.8400000000000006E-2,7.7700000000000005E-2,6.1100000000000002E-2,5.9700000000000003E-2,9.2299999999999993E-2,8.1100000000000005E-2,6.3799999999999996E-2,6.2300000000000001E-2,0.218,0.1915,0.15060000000000001,0.1472,0.22309999999999999,0.26550000000000001,0.26929999999999998,0.33429999999999999,0.05,0.06,0.06,0.08,3.5000000000000001E-3,1.7399999999999999E-2,3.7100000000000001E-2,4.4400000000000002E-2]
[null,null,"Centro Educativo Profesional",0.1027,9.0200000000000002E-2,7.0900000000000005E-2,6.93E-2,2E-3,2E-3,2E-3,2E-3,8.8400000000000006E-2,7.7700000000000005E-2,6.1100000000000002E-2,5.9700000000000003E-2,9.2299999999999993E-2,8.1100000000000005E-2,6.3799999999999996E-2,6.2300000000000001E-2,0.218,0.1915,0.15060000000000001,0.1472,0.1472,0.16650000000000001,0.22270000000000001,0.21560000000000001,0.05,0.06,0.06,0.08,5.1999999999999998E-3,1.7100000000000001E-2,2.6200000000000001E-2,3.2599999999999997E-2]
[null,null,"Oficinas hasta 1000m2",8.6900000000000005E-2,7.6399999999999996E-2,6.0100000000000001E-2,5.8700000000000002E-2,3.0000000000000001E-3,3.0000000000000001E-3,4.0000000000000001E-3,4.0000000000000001E-3,7.4899999999999994E-2,6.5799999999999997E-2,5.1700000000000003E-2,5.0599999999999999E-2,7.8100000000000003E-2,6.8599999999999994E-2,5.3999999999999999E-2,5.28E-2,0.10539999999999999,9.2600000000000002E-2,7.2800000000000004E-2,7.1199999999999999E-2,0.35,0.42580000000000001,0.45850000000000002,0.47739999999999999,0.02,2.3E-2,3.7999999999999999E-2,0.04,1.2999999999999999E-3,1.2200000000000001E-2,2.2700000000000001E-2,3.39E-2]
[null,null,"Oficinas > 1000m2",8.6900000000000005E-2,7.6399999999999996E-2,6.0100000000000001E-2,5.8700000000000002E-2,1.5E-3,1.5E-3,2E-3,2E-3,7.4899999999999994E-2,6.5799999999999997E-2,5.1700000000000003E-2,5.0599999999999999E-2,7.8100000000000003E-2,6.8599999999999994E-2,5.3999999999999999E-2,5.28E-2,0.10539999999999999,9.2600000000000002E-2,7.2800000000000004E-2,7.1199999999999999E-2,6.9000000000000006E-2,7.7799999999999994E-2,8.2600000000000007E-2,7.3200000000000001E-2,1.4999999999999999E-2,2.3E-2,3.4500000000000003E-2,0.04,5.3E-3,2.6700000000000002E-2,3.8399999999999997E-2,5.4399999999999997E-2]
[null,null,"Hotel hasta 3 estrellas",6.3899999999999998E-2,6.4299999999999996E-2,5.7000000000000002E-2,5.6300000000000003E-2,9.8000000000000004E-2,0.1022,0.1032,8.2400000000000001E-2,5.0000000000000001E-4,5.0000000000000001E-4,4.0000000000000002E-4,4.0000000000000002E-4,6.5299999999999997E-2,6.0999999999999999E-2,5.4399999999999997E-2,5.3800000000000001E-2,0.36359999999999998,0.31940000000000002,0.25119999999999998,0.24560000000000001,0.1459,0.1913,0.21840000000000001,0.23669999999999999,2.5999999999999999E-2,3.3000000000000002E-2,0.04,7.0000000000000007E-2,8.9999999999999993E-3,1.9E-2,2.3E-2,3.2000000000000001E-2]
[null,null,"Hotel 4 y 5 estrellas",6.9000000000000006E-2,6.4299999999999996E-2,5.7000000000000002E-2,5.6300000000000003E-2,0.11799999999999999,0.11219999999999999,0.1032,0.1124,5.0000000000000001E-4,5.0000000000000001E-4,4.0000000000000002E-4,4.0000000000000002E-4,6.5299999999999997E-2,6.0999999999999999E-2,5.4399999999999997E-2,5.3800000000000001E-2,0.36359999999999998,0.31940000000000002,0.25119999999999998,0.24560000000000001,0.16059999999999999,6.8500000000000005E-2,5.0500000000000003E-2,4.6399999999999997E-2,5.6000000000000001E-2,6.3E-2,7.0999999999999994E-2,7.9000000000000001E-2,8.9999999999999993E-3,2.5000000000000001E-2,3.3000000000000002E-2,4.2000000000000003E-2]
[null,null,"Hospital de 1er y 2do nivel",7.3499999999999996E-2,7.1900000000000006E-2,7.9299999999999995E-2,6.9099999999999995E-2,2.47E-2,2.41E-2,2.3199999999999998E-2,2.3099999999999999E-2,7.1199999999999999E-2,7.0999999999999994E-2,7.0800000000000002E-2,7.0800000000000002E-2,8.4599999999999995E-2,8.2799999999999999E-2,8.0100000000000005E-2,8.9800000000000005E-2,4.9299999999999997E-2,4.3299999999999998E-2,3.4099999999999998E-2,3.3300000000000003E-2,0.1094,0.1237,9.1200000000000003E-2,7.1599999999999997E-2,0.06,7.0999999999999994E-2,7.8E-2,0.08,6.9999999999999999E-4,4.1000000000000003E-3,2.3E-2,4.4999999999999998E-2]
[null,null,"Hospital de 3er y 4to nivel",7.3499999999999996E-2,7.1900000000000006E-2,7.9299999999999995E-2,6.9099999999999995E-2,1.4999999999999999E-2,1.2999999999999999E-2,1.0999999999999999E-2,8.9999999999999993E-3,7.1199999999999999E-2,7.0999999999999994E-2,7.0800000000000002E-2,7.0800000000000002E-2,8.4599999999999995E-2,0.08,8.0100000000000005E-2,8.9800000000000005E-2,4.9299999999999997E-2,4.3299999999999998E-2,3.4099999999999998E-2,3.3300000000000003E-2,0.16389999999999999,0.17230000000000001,0.15329999999999999,9.6799999999999997E-2,0.03,3.4000000000000002E-2,4.7E-2,5.0999999999999997E-2,1E-3,1.0999999999999999E-2,2.4E-2,2.8199999999999999E-2]
[null,null,"Centro Comercial hasta 5000m2",6.0299999999999999E-2,5.67E-2,5.0999999999999997E-2,5.0500000000000003E-2,6.0000000000000001E-3,5.0000000000000001E-3,5.0000000000000001E-3,4.0000000000000001E-3,6.2899999999999998E-2,6.0100000000000001E-2,5.5800000000000002E-2,5.5399999999999998E-2,5.8999999999999997E-2,5.5399999999999998E-2,0.05,5.96E-2,0.15329999999999999,0.13469999999999999,0.10589999999999999,0.10349999999999999,0.14410000000000001,0.2417,0.2702,0.31890000000000002,2.3E-2,3.04E-2,3.2000000000000001E-2,4.8000000000000001E-2,8.3999999999999995E-3,1.8700000000000001E-2,2.41E-2,3.8600000000000002E-2]
[null,null,"Centro Comercial > 5000m2",6.0299999999999999E-2,5.67E-2,5.0999999999999997E-2,5.0500000000000003E-2,1E-3,2E-3,2E-3,2.5000000000000001E-3,6.2899999999999998E-2,6.0100000000000001E-2,5.5800000000000002E-2,5.5399999999999998E-2,6.9000000000000006E-2,6.54E-2,0.06,6.9599999999999995E-2,0.15329999999999999,0.13469999999999999,0.10589999999999999,0.10349999999999999,0.14410000000000001,0.2417,0.22020000000000001,0.1789,3.3000000000000002E-2,3.9E-2,4.3999999999999997E-2,4.9000000000000002E-2,5.7000000000000002E-3,1.4200000000000001E-2,2.9600000000000001E-2,4.7E-2]

{"sheet":"Listas","index":8,"n_rows":2212,"n_cols":70,"rows_kept":2212,"cut":false,"hidden":false,"merged":[[1,39,1,42],[1,45,1,48]]}
[null,null,null,null,null,null,null,null,null,null,null,null,null,null,null,null,null,null,null,null,null,null,null,null,null,null,null,null,null,null,null,null,null,null,null,null,null,null,"Ahorro energía",null,null,null,null,null,"Ahorro Agua"]
[null,"Tipo de Proyecto","Departamento","Departamento","Municipio","Clasificación climática",{"$f":"_xlfn.UNIQUE(D2:D2212)","v":"Departamento"},{"$f":"_xlfn.UNIQUE(_xlfn._xlws.FILTER(E3:E2212,D3:D2212='Informacion General'!D17,\"\"))","v":""},{"$f":"_xlfn.UNIQUE(_xlfn._xlws.FILTER(F3:F2212,E3:E2212='Informacion General'!D18,\"\"))","v":""},"Forma","Materialidad pared externa","Materialidad Pared interna","Materialidad de cubierta","Tipo de Ventana","Sombra para ventanas","Ventilación natural","Iluminación interior",null,"Si/No","WWR","Materialidad pared externa","Valor U Asociado W/M2.K","Materialidad Pared interna","Valor U Asociado W/M2.K","Materialidad de cubierta","Valor U Asociado W/M2.K","Combustibles disponibles en el edificio","Tipo de sistema de aire acondicionado y ventilación mecánica","Medida de eficiencia energética pasiva",null,"Manejo de sombreado",null,"Manejo de ventaneria",null,"Medida de eficiencia energética activa",null,null,null,"Línea base propuesta","Porcentajes requeridos propuestos ",null,null,null,null,"Línea base propuesta","Porcentajes requeridos propuestos ",null,null,null,null,"Medida de ahorro agua",null,null,"Zonas con aire acondicionado",null,null,null,null,null,null,null,null,"Combustible","Horario de Operación",null,null,"U vidrio (W/m2.K)",null,"SHGC de ventanería"]
[null,"Hotel hasta 3 estrellas","Amazonas","Amazonas","El Encanto","Cálido Húmedo","Amazonas",null,null,"Triangular","Bloque FalG","Bloque FalG","Canales para techo de ferrocemento","Batiente","Cortasoles","Ambas","Fluorescente",null,"Si","5-10%","Muro de concreto vaciado en obra",3.1,"Muro de concreto vaciado en obra",null,"Cubierta en concreto vaciado en obra",4.4000000000000004,"Diésel","100% ventilación mecánica","Cubierta verde",0.1,"Angulo de sombreado horizontal",0.8,"U vidrio (W/m2.K)",0.1,"COP - Mejora en coeficiente de desempeño",1,null,null,"Tipología","Frio","Templado","Cálido Seco","Cálido Húmedo",null,"Tipología","Frio","Templado","Cálido Seco","Cálido Húmedo",null,"Lavamanos (lpm)",1,"SI","100% acondicionado",null,null,null,null,null,null,"Avenida calle",null,"Electricidad","7 am a 12 m",null,null,"menor a 2,3","Si",0.1,"Si"]
[null,"Hotel 4 y 5 estrellas","Antioquia","Amazonas","La Chorrera","Cálido Húmedo","Antioquia",null,null,"Cuadrada","Bloques de concreto celular","Bloques de arcilla en forma de panal con yeso en ambas caras","Concreto en obra con más de un 30% de cenizas de combustible pulverizado","Corredera","Persianas","Aperturas operables","Halógena",null,"No","10-15%","Muro cortina en aluminio",5.2,"Muro de mampostería de bloque de concreto ",null,"Cubierta en losa aligerada de concreto con bloques de poliestireno",0.5,"Energía Eléctrica","Agua helada (chillers)","Inercia Térmica",1,"Angulo de sombreado vertical",0.8,"SHGC de ventanería",1,"Densidad de potencia de luz",1,null,null,"Hotel hasta 3 estrellas",15,20,20,20,null,"Hotel hasta 3 estrellas",25,25,20,20,null,"Duchas (lpm)",1,"NO","Aulas / salas de reunion",null,null,null,null,null,null,"Calle",null,"Gas natural","7 am a 4 pm",null,null,"de 2,4 a 3,7","Si",0.2,"Si"]
[null,"Hospital de 1er y 2do nivel","Arauca","Amazonas","La Pedrera","Cálido Húmedo","Arauca",null,null,"Hexagonal","Bloques de concreto celular ligero","Bloques de concreto celular","Concreto en obra dcon más e un 25% de escorias granuladas molidas de alto horno","Fija","No aplica","Rejillas fijas","Incandescente",null,null,"15-20%","Muro en ladrillo común",2.2000000000000002,"Muro en drywall",null,"Cubierta en panel tipo sándwich revestido de aluminio",0.8,"Gas","Expansión directa - Unidad central de acondicionamiento (paquetes)","Night Flush",1,"Sombreado combinado",0.8,"Conjunto U & SHGC",1,"DOAS -  Sistema dedicado de renovacion de aire",0.7,null,null,"Hotel 4 y 5 estrellas",10,15,15,15,null,"Hotel 4 y 5 estrellas",30,30,25,20,null,"Orinales (lpd)",1,null,"Dormitorios y zonas comunes",null,null,null,null,null,null,"Carrera",null,"Diesel","7 am a 7 pm",null,null,"de 3,8 a 5,3","Si",0.3,"Si"]
[null,"Hospital de 3er y 4to nivel","Archipiélago de San Andrés, Providencia y Santa Catalina","Amazonas","La Victoria","Cálido Húmedo","Archipiélago de San Andrés, Providencia y Santa Catalina",null,null,"Circular","Bloques de concreto huecos de peso mediano","Bloques de concreto celular ligero","Concreto en obra de compuestos y base de acero (encofrado permanente)","Oscilante",null,"Ninguna","LED",null,null,"20-25%","Muro en ladrillo portante",2.5,"Muro en ladrillo común",null,"Cubierta en tejas asfálticas",5.2,"Gasolina","Expansión directa - Unidades split (uno a uno)","Relación Muro ventana",1,null,null,null,null,"Enfriamiento evaporativo",0.7,null,null,"Hospital de 1er y 2do nivel",20,20,20,20,null,"Hospital de 1er y 2do nivel",20,20,15,15,null,"Inodoros (lpd)",1,null,"Oficinas y salas de reunion",null,null,null,null,null,null,"Circular",null,"GLP","7 am a 10 pm",null,null,"de 5,4 a 6,1","No",0.4,"Si"]
[null,"Oficinas hasta 1000m2","Atlántico","Amazonas","Leticia","Cálido Húmedo","Atlántico",null,null,"Rectangular","Bloques de concreto macizo y pesado","Bloques de concreto huecos de peso mediano","Losa aligerada de concreto","Oscilo-batiente",null,null,"Plasma",null,null,"25-30%","Muro portante de mampostería reforzada",2.8,"Muro en ladrillo número 4 o similar",null,"Cubierta en tejas de arcilla",5.2,null,"No aplica","SR de pared exterior",1,null,null,null,null,"Iluminación Natural",1,null,null,"Hospital de 3er y 4to nivel",15,15,15,15,null,"Hospital de 3er y 4to nivel",20,20,15,15,null,"PTAR",1,null,"Zonas comerciales",null,null,null,null,null,null,"Circunvalar",null,"Leña","8 am a 12 m",null,null,"mayor a 6,1","No",0.5,"Si"]
[null,"Oficinas > 1000m2","Bolívar","Amazonas","Mirití-Paraná","Cálido Húmedo","Bolívar",null,null,"En H","Bloques de paja","Bloques de concreto macizo y pesado","Losa aligerada de concreto","Oscilo-paralela",null,null,null,null,null,"30-35%","Muro reforzado con núcleo de poliestireno. Durapanel",0.5,"Muro en sistema Durapanel Dry",null,"Cubierta metálica",5.5,null,"Refrigerante variable","SRI de Cubierta",0.1,null,null,null,null,"Recuperación de calor",1,null,null,"Oficinas hasta 1000m2",15,20,20,15,null,"Oficinas hasta 1000m2",25,25,20,20,null,"PTALL Aguas lluvias",1,null,"Zonas comerciales y administrativas",null,null,null,null,null,null,"Diagonal",null,"Carbon","8 am a 4 pm",null,null,null,null,0.6,"Si"]
[null,"Centro Comercial hasta 5000m2","Boyacá","Amazonas","Puerto Alegría","Cálido Húmedo","Boyacá",null,null,"En L","Bloques de piedra","Bloques de paja","Losa aligerada de concreto con bloques de poliestireno","Pivotante",null,null,null,null,null,"35-40%",null,null,null,null,null,null,null,"Sistemas evaporativos (lavadoras de aire)","Valor U de cubierta",0.1,null,null,null,null,"Sensores CO parqueaderos",1,null,null,"Oficinas > 1000m2",15,15,15,15,null,"Oficinas > 1000m2",30,30,25,20,null,"Paisajismo de bajo consumo",1,null,"Zonas comunes",null,null,null,null,null,null,"Transversal",null,"Otro","8 am a 6 pm",null,null,null,null,0.7,"No"]
[null,"Centro Comercial > 5000m2","Caldas","Amazonas","Puerto Arica","Cálido Húmedo","Caldas",null,null,"En C","Bloques de piedra cortados a máquina sin pulir","Bloques de piedra","Losa aligerada de concreto con bloques de poliestireno","Plegable",null,null,null,null,null,"40-45%",null,null,null,null,null,null,null,"Torres de enfriamiento o Sistema de agua de condensación","Valor U de paredes Exteriores",1,null,null,null,null,"Sensores de CO2",1,null,null,"Centro Comercial hasta 5000m2",15,20,20,20,null,"Centro Comercial hasta 5000m2",25,25,25,20,null,"Recuperación de agua de Cond",1,null,"Zonas de uso especial",null,null,null,null,null,null,null,null,null,"8 am a 10 pm",null,null,null,null,0.8,"No"]
[null,"Centro Educativo Básica","Caquetá","Amazonas","Puerto Nariño","Cálido Húmedo","Caquetá",null,null,"Cuadrada Hueca","Bloques de suelo estabilizado con cenizas volantes","Bloques de piedra cortados a máquina sin pulir","Losa hueca prefabricada",null,null,null,null,null,null,"45-50%",null,null,null,null,null,null,null,null,null,null,null,null,null,null,"Sensores de ocupación y zonificación",0.35,null,null,"Centro Comercial > 5000m2",10,15,15,10,null,"Centro Comercial > 5000m2",25,25,25,20,null,null,null,null,null,null,null,null,null,null,null,null,null,null,"10 am a 4 pm",null,null,null,null,0.9,"No"]
[null,"Centro Educativo Profesional","Casanare","Amazonas","Santander","Cálido Húmedo","Casanare",null,null,"Rectangular Hueca","Bloques de suelo estabilizado con escorias granuladas molidas de alto horno","Bloques de suelo estabilizado con cenizas volantes","Losa hueca prefabricada",null,null,null,null,null,null,"50-55%",null,null,null,null,null,null,null,null,null,null,null,null,null,null,"Sensores fotométricos y dimerización",0.35,null,null,"Centro Educativo Básica",10,10,15,15,null,"Centro Educativo Básica",30,30,25,25,null,null,null,null,null,null,null,null,null,null,null,null,null,null,"10 am a 6 pm"]
[null,"Vivienda No VIS Unifamiliar","Cauca","Amazonas","Tarapacá","Cálido Húmedo","Cauca",null,null,"Otra","Bloques de tierra comprimida estabilizada","Bloques de suelo estabilizado con escorias granuladas molidas de alto horno","Losa reforzada de concreto en obra",null,null,null,null,null,null,"55-60%",null,null,null,null,null,null,null,null,null,null,null,null,null,null,"VSD en bombas de HVAC",0.03,null,null,"Centro Educativo Profesional",10,15,15,15,null,"Centro Educativo Profesional",30,30,25,25,null,null,null,null,null,null,null,null,null,null,null,null,null,null,"10 am a 10 pm"]
[null,"Vivienda No VIS Multifamiliar","Cesar","Antioquia","Abejorral","Cálido Húmedo","Cesar",null,null,null,"Bloques/paredes de tierra apisionada","Bloques de tierra comprimida estabilizada","Losa reforzada de concreto en obra",null,null,null,null,null,null,"60-65%",null,null,null,null,null,null,null,null,null,null,null,null,null,null,"VSD Torres de enfriamiento",0.1,null,null,"Vivienda No VIS Unifamiliar",15,20,20,20,null,"Vivienda No VIS Unifamiliar",25,25,20,20,null,null,null,null,null,null,null,null,null,null,null,null,null,null,"10 am a 12 pm"]
[null,"Vivienda VIS Unifamiliar","Chocó","Antioquia","Abejorral","Frio","Chocó",null,null,null,"Bloqus de arcilla en forma de panal con yeso en ambas caras","Bloques/paredes de tierra apisionada","Losa reticular de concreto en obra",null,null,null,null,null,null,"65-70%",null,null,null,null,null,null,null,null,null,null,null,null,null,null,null,null,null,null,"Vivienda No VIS Multifamiliar",15,20,20,20,null,"Vivienda No VIS Multifamiliar",25,25,20,20,null,null,null,null,null,null,null,null,null,null,null,null,null,null,"24 hrs"]
[null,"Vivienda VIS Multifamiliar","Córdoba","Antioquia","Abejorral","Templado","Córdoba",null,null,null,"Capa polimérica sobre bloques de concreto","Ladrillos huecos (con orificios) con yeso en ambos lados","Losas finas de compuestos con perfil doble T de acero",null,null,null,null,null,null,"70-75%",null,null,null,null,null,null,null,null,null,null,null,null,null,null,null,null,null,null,"Vivienda VIS Unifamiliar",15,15,15,15,null,"Vivienda VIS Unifamiliar",15,15,15,15]
[null,"Vivienda VIP Unifamiliar","Cundinamarca","Antioquia","Abriaquí","Frio","Cundinamarca",null,null,null,"Capa polimérica sobre ladrillo","Ladrillos huecos (con orificios) sin acabado","Panel sándwich revestido de aluminio",null,null,null,null,null,null,">75%",null,null,null,null,null,null,null,null,null,null,null,null,null,null,null,null,null,null,"Vivienda VIS Multifamiliar",10,10,10,10,null,"Vivienda VIS Multifamiliar",15,15,15,15]
[null,"Vivienda VIP Multifamiliar","Guainía","Antioquia","Abriaquí","Templado","Guainía",null,null,null,"Ladrillo a la vista y bloques de concreto hueco","Malla 3D con concreto proyectado en ambas caras","Panel tipo sándwich  revestio de aluminio",null,null,null,null,null,null,null,null,null,null,null,null,null,null,null,null,null,null,null,null,null,null,null,null,null,"Vivienda VIP Unifamiliar",10,15,15,15,null,"Vivienda VIP Unifamiliar",15,15,15,15]
[null,null,"Guaviare","Antioquia","Alejandría","Templado","Guaviare",null,null,null,"Ladrillo a la vista y bloques de concreto macizo","Malla 3D con concreto proyectado en ambas caras y aislamiento","Planchas de acero sobre vigas de acero",null,null,null,null,null,null,null,null,null,null,null,null,null,null,null,null,null,null,null,null,null,null,null,null,null,"Vivienda VIP Multifamiliar",5,10,10,10,null,"Vivienda VIP Multifamiliar",15,15,15,15]
[null,null,"Huila","Antioquia","Amagá","Cálido Húmedo","Huila",null,null,null,"Ladrillo a la vista y montante de madera","Panel mural de ferrocemento","Planchas de acero sobre vigas de madera"]
[null,null,"La Guajira","Antioquia","Amagá","Templado","La Guajira",null,null,null,"Ladrillos huecos (con orificios) con yeso externo e interno","Panel sándwich de concreto prefabricado","Planchas de aluminio sobre vigas de acero"]
[null,null,"Magdalena","Antioquia","Amalfi","Cálido Húmedo","Magdalena",null,null,null,"Ladrillos huecos (con orificios) vistos con yeso interno","Paneles de concreto prefabricado","Planchas de aluminio sobre vigas de madera"]
[null,null,"Meta","Antioquia","Amalfi","Templado","Meta",null,null,null,"Listón de madera sobre montantes de madera","Pared de ladrillo común con yeso externo e interno","Planchas de cobre sobre vigas de acero"]
[null,null,"N/A","Antioquia","Andes","Frio","N/A",null,null,null,"Listón de UPVC sobre montantes de madera","Pared de ladrillo común sin acabado","Planchas de cobre sobre vigas de madera"]
[null,null,"Nariño","Antioquia","Andes","Templado","Nariño",null,null,null,"Malla 3D con concreto proyectado en ambas caras","Pared reforzada en obra","Reutilización del techo existente"]
[null,null,"Norte de Santander","Antioquia","Angelópolis","Templado","Norte de Santander",null,null,null,"Muro cortina (elemento opaco)","Placas de yeso sobre montantes de madera","Sistema de planchas y vías prefabricadas de concreto reforzado"]
[null,null,"Putumayo","Antioquia","Angostura","Frio","Putumayo",null,null,null,"Panel de fosfoyeso","Placas de yeso sobre montantes de madera con aislamiento","Sistema de techo con paneles de ladrillo"]
[null,null,"Quindío","Antioquia","Angostura","Templado","Quindío",null,null,null,"Panel mural de ferrocemento","Placas de yeso sobre montantes metálicos","Tejas de arcilla"]
[null,null,"Risaralda","Antioquia","Anorí","Cálido Húmedo","Risaralda",null,null,null,"Panel sándwich de concreto prefabricado","Placas de yeso sobre montantes metálicos con aislamiento","Tejas de arcilla sobre vigas de acero"]
[null,null,"Santander","Antioquia","Anorí","Templado","Santander",null,null,null,"Panel sándwich de concreto prefabricado con revestimiento de piedra","Reutilización de pared existente","Tejas de arcilla sobre vigas de madera"]
[null,null,"Sucre","Antioquia","Anorí","Templado","Sucre",null,null,null,"Panel sándwich de concreto prefabricado para ladrillo a la vista","Stone Blocks - Hand Cut","Tejas de asfalto sobre vigas de acero"]
[null,null,"Tolima","Antioquia","Anzá","Cálido Húmedo","Tolima",null,null,null,"Panel sándwich revestido de acero","Tablas de fibrocemento sobre montantes de madera","Tejas de asfalto sobre vigas de madera"]
[null,null,"Valle del Cauca","Antioquia","Anzá","Frio","Valle del Cauca",null,null,null,"Panel sándwich revestido de aluminio","Tablas de fibrocemento sobre montantes metálicos","Tejas de microconcreto sobre vigas de acero"]
[null,null,"Vaupés","Antioquia","Anzá","Templado","Vaupés",null,null,null,"Paneles de concreto prefabricado",null,"Tejas de microconcreto sobre vigas de madera"]
[null,null,"Vichada","Antioquia","Apartadó","Cálido Húmedo","Vichada",null,null,null,"Pared de ladrillo común con yeso externo e interno",null,"Unidades de concreto tipo doble T prefabricado"]
[null,null,null,"Antioquia","Apartadó","Templado",null,null,null,null,"Pared eladrillo a la vista con yeso interno"]
[null,null,null,"Antioquia","Arboletes","Cálido Húmedo",null,null,null,null,"Pared reforzada en obra"]
[null,null,null,"Antioquia","Argelia","Cálido Húmedo",null,null,null,null,"Placas de yeso sobre montantes de madera"]
[null,null,null,"Antioquia","Argelia","Frio",null,null,null,null,"Placas de yeso sobre montantes metálicos"]
[null,null,null,"Antioquia","Argelia","Templado",null,null,null,null,"Reutilización de pared existente"]
[null,null,null,"Antioquia","Armenia","Cálido Húmedo",null,null,null,null,"Revestimiento con perfil de acero"]
[null,null,null,"Antioquia","Armenia","Templado",null,null,null,null,"Revestimiento con perfil de aluminio"]
[null,null,null,"Antioquia","Barbosa","Templado",null,null,null,null,"Revestimiento con perfil de piedra"]
[null,null,null,"Antioquia","Bello","Frio",null,null,null,null,"Revestimiento de concreto reforzado con fibra de vidrio"]
[null,null,null,"Antioquia","Bello","Templado",null,null,null,null,"Revestimiento de tejas de arcilla sobre montantes metálicos"]
[null,null,null,"Antioquia","Belmira","Frio",null,null,null,null,"Stone Blocks - Hand Cut"]
[null,null,null,"Antioquia","Belmira","Templado",null,null,null,null,"Tablas de fibrocemento sobre montantes de madera"]
[null,null,null,"Antioquia","Betania","Frio",null,null,null,null,"Tablas de fibrocemento sobre montantes metálicos"]
[null,null,null,"Antioquia","Betania","Templado"]
[null,null,null,"Antioquia","Betulia","Cálido Húmedo"]
[null,null,null,"Antioquia","Betulia","Frio"]
[null,null,null,"Antioquia","Betulia","Templado"]
[null,null,null,"Antioquia","Briceño","Cálido Húmedo"]
[null,null,null,"Antioquia","Briceño","Frio"]
[null,null,null,"Antioquia","Briceño","Templado"]
[null,null,null,"Antioquia","Buriticá","Cálido Húmedo"]
[null,null,null,"Antioquia","Buriticá","Frio"]
[null,null,null,"Antioquia","Buriticá","Templado"]
[null,null,null,"Antioquia","Cáceres","Cálido Húmedo"]
[null,null,null,"Antioquia","Cáceres","Templado"]
[null,null,null,"Antioquia","Caicedo","Frio"]
[null,null,null,"Antioquia","Caicedo","Templado"]
[null,null,null,"Antioquia","Caldas","Frio"]
[null,null,null,"Antioquia","Caldas","Templado"]
[null,null,null,"Antioquia","Campamento","Cálido Húmedo"]
[null,null,null,"Antioquia","Campamento","Frio"]
[null,null,null,"Antioquia","Campamento","Templado"]
[null,null,null,"Antioquia","Cañasgordas","Frio"]
[null,null,null,"Antioquia","Cañasgordas","Templado"]
[null,null,null,"Antioquia","Caracolí","Cálido Húmedo"]
[null,null,null,"Antioquia","Caracolí","Templado"]
[null,null,null,"Antioquia","Caramanta","Cálido Húmedo"]
[null,null,null,"Antioquia","Caramanta","Frio"]
[null,null,null,"Antioquia","Caramanta","Templado"]
[null,null,null,"Antioquia","Carepa","Cálido Húmedo"]
[null,null,null,"Antioquia","Carepa","Templado"]
[null,null,null,"Antioquia","Carmen De Viboral","Cálido Húmedo"]
[null,null,null,"Antioquia","Carmen De Viboral","Frio"]
[null,null,null,"Antioquia","Carmen De Viboral","Templado"]
[null,null,null,"Antioquia","Carolina","Frio"]
[null,null,null,"Antioquia","Carolina","Templado"]
[null,null,null,"Antioquia","Caucasia","Cálido Húmedo"]
[null,null,null,"Antioquia","Chigorodó","Cálido Húmedo"]
[null,null,null,"Antioquia","Chigorodó","Templado"]
[null,null,null,"Antioquia","Cisneros","Templado"]
[null,null,null,"Antioquia","Ciudad Bolívar","Cálido Húmedo"]
[null,null,null,"Antioquia","Ciudad Bolívar","Frio"]
[null,null,null,"Antioquia","Ciudad Bolívar","Templado"]
[null,null,null,"Antioquia","Cocorná","Cálido Húmedo"]
[null,null,null,"Antioquia","Cocorná","Frio"]
[null,null,null,"Antioquia","Cocorná","Templado"]
[null,null,null,"Antioquia","Concepción","Templado"]
[null,null,null,"Antioquia","Concordia","Cálido Húmedo"]
[null,null,null,"Antioquia","Concordia","Frio"]
[null,null,null,"Antioquia","Concordia","Templado"]
[null,null,null,"Antioquia","Copacabana","Frio"]
[null,null,null,"Antioquia","Copacabana","Templado"]
[null,null,null,"Antioquia","Dabeiba","Cálido Húmedo"]
[null,null,null,"Antioquia","Dabeiba","Frio"]
[null,null,null,"Antioquia","Dabeiba","Templado"]
[null,null,null,"Antioquia","Donmatías","Frio"]
[null,null,null,"Antioquia","Donmatías","Templado"]
[null,null,null,"Antioquia","Ebéjico","Cálido Húmedo"]
[null,null,null,"Antioquia","Ebéjico","Templado"]
[null,null,null,"Antioquia","El Bagre","Cálido Húmedo"]
[null,null,null,"Antioquia","El Bagre","Templado"]
[null,null,null,"Antioquia","El Retiro","Frio"]
[null,null,null,"Antioquia","El Retiro","Templado"]
[null,null,null,"Antioquia","Entrerrios","Frio"]
[null,null,null,"Antioquia","Entrerrios","Templado"]
[null,null,null,"Antioquia","Envigado","Frio"]
[null,null,null,"Antioquia","Envigado","Templado"]
[null,null,null,"Antioquia","Fredonia","Cálido Húmedo"]
[null,null,null,"Antioquia","Fredonia","Frio"]
[null,null,null,"Antioquia","Fredonia","Templado"]
[null,null,null,"Antioquia","Frontino","Cálido Húmedo"]
[null,null,null,"Antioquia","Frontino","Frio"]
[null,null,null,"Antioquia","Frontino","Templado"]
[null,null,null,"Antioquia","Giraldo","Frio"]
[null,null,null,"Antioquia","Giraldo","Templado"]
[null,null,null,"Antioquia","Girardota","Frio"]
[null,null,null,"Antioquia","Girardota","Templado"]
[null,null,null,"Antioquia","Gómez Plata","Cálido Húmedo"]
[null,null,null,"Antioquia","Gómez Plata","Templado"]
[null,null,null,"Antioquia","Granada","Cálido Húmedo"]
[null,null,null,"Antioquia","Granada","Templado"]
[null,null,null,"Antioquia","Guadalupe","Cálido Húmedo"]
[null,null,null,"Antioquia","Guadalupe","Templado"]
[null,null,null,"Antioquia","Guarne","Frio"]
[null,null,null,"Antioquia","Guarne","Templado"]
[null,null,null,"Antioquia","Guatapé","Templado"]
[null,null,null,"Antioquia","Heliconia","Cálido Húmedo"]
[null,null,null,"Antioquia","Heliconia","Templado"]
[null,null,null,"Antioquia","Hispania","Cálido Húmedo"]
[null,null,null,"Antioquia","Hispania","Templado"]
[null,null,null,"Antioquia","Itagüí","Templado"]
[null,null,null,"Antioquia","Ituango","Cálido Húmedo"]
[null,null,null,"Antioquia","Ituango","Frio"]
[null,null,null,"Antioquia","Ituango","Templado"]
[null,null,null,"Antioquia","Jardín","Frio"]
[null,null,null,"Antioquia","Jardín","Templado"]
[null,null,null,"Antioquia","Jericó","Cálido Húmedo"]
[null,null,null,"Antioquia","Jericó","Frio"]
[null,null,null,"Antioquia","Jericó","Templado"]
[null,null,null,"Antioquia","La Ceja","Frio"]
[null,null,null,"Antioquia","La Ceja","Templado"]
[null,null,null,"Antioquia","La Estrella","Templado"]
[null,null,null,"Antioquia","La Pintada","Cálido Húmedo"]
[null,null,null,"Antioquia","La Pintada","Templado"]
[null,null,null,"Antioquia","La Unión","Frio"]
[null,null,null,"Antioquia","La Unión","Templado"]
[null,null,null,"Antioquia","Liborina","Cálido Húmedo"]
[null,null,null,"Antioquia","Liborina","Frio"]
[null,null,null,"Antioquia","Liborina","Templado"]
[null,null,null,"Antioquia","Maceo","Cálido Húmedo"]
[null,null,null,"Antioquia","Maceo","Templado"]
[null,null,null,"Antioquia","Marinilla","Templado"]
[null,null,null,"Antioquia","Medellín","Frio"]
[null,null,null,"Antioquia","Medellín","Templado"]
[null,null,null,"Antioquia","Montebello","Cálido Húmedo"]
[null,null,null,"Antioquia","Montebello","Templado"]
[null,null,null,"Antioquia","Murindó","Cálido Húmedo"]
[null,null,null,"Antioquia","Murindó","Templado"]
[null,null,null,"Antioquia","Mutatá","Cálido Húmedo"]
[null,null,null,"Antioquia","Mutatá","Frio"]
[null,null,null,"Antioquia","Mutatá","Templado"]
[null,null,null,"Antioquia","Nariño","Cálido Húmedo"]
[null,null,null,"Antioquia","Nariño","Frio"]
[null,null,null,"Antioquia","Nariño","Templado"]
[null,null,null,"Antioquia","Nechí","Cálido Húmedo"]
[null,null,null,"Antioquia","Necoclí","Cálido Húmedo"]
[null,null,null,"Antioquia","Olaya","Cálido Húmedo"]
[null,null,null,"Antioquia","Olaya","Frio"]
[null,null,null,"Antioquia","Olaya","Templado"]
[null,null,null,"Antioquia","Peñol","Templado"]
[null,null,null,"Antioquia","Peque","Cálido Húmedo"]
[null,null,null,"Antioquia","Peque","Frio"]
[null,null,null,"Antioquia","Peque","Templado"]
[null,null,null,"Antioquia","Pueblorrico","Cálido Húmedo"]
[null,null,null,"Antioquia","Pueblorrico","Templado"]
[null,null,null,"Antioquia","Puerto Berrío","Cálido Húmedo"]
[null,null,null,"Antioquia","Puerto Berrío","Templado"]
[null,null,null,"Antioquia","Puerto Nare","Cálido Húmedo"]
[null,null,null,"Antioquia","Puerto Nare","Templado"]
[null,null,null,"Antioquia","Puerto Triunfo","Cálido Húmedo"]
[null,null,null,"Antioquia","Remedios","Cálido Húmedo"]
[null,null,null,"Antioquia","Remedios","Templado"]
[null,null,null,"Antioquia","Rionegro","Frio"]
[null,null,null,"Antioquia","Rionegro","Templado"]
[null,null,null,"Antioquia","Sabanalarga","Cálido Húmedo"]
[null,null,null,"Antioquia","Sabanalarga","Frio"]
[null,null,null,"Antioquia","Sabanalarga","Templado"]
[null,null,null,"Antioquia","Sabaneta","Frio"]
[null,null,null,"Antioquia","Sabaneta","Templado"]
[null,null,null,"Antioquia","Salgar","Cálido Húmedo"]
[null,null,null,"Antioquia","Salgar","Frio"]
[null,null,null,"Antioquia","Salgar","Templado"]
[null,null,null,"Antioquia","San Andrés de Cuerquia","Cálido Húmedo"]
[null,null,null,"Antioquia","San Andrés de Cuerquia","Frio"]
[null,null,null,"Antioquia","San Andrés de Cuerquia","Templado"]
[null,null,null,"Antioquia","San Carlos","Cálido Húmedo"]
[null,null,null,"Antioquia","San Carlos","Templado"]
[null,null,null,"Antioquia","San Francisco","Cálido Húmedo"]
[null,null,null,"Antioquia","San Francisco","Templado"]
[null,null,null,"Antioquia","San Jerónimo","Cálido Húmedo"]
[null,null,null,"Antioquia","San Jerónimo","Frio"]
[null,null,null,"Antioquia","San Jerónimo","Templado"]
[null,null,null,"Antioquia","San José De La Montaña","Frio"]
[null,null,null,"Antioquia","San José De La Montaña","Templado"]
[null,null,null,"Antioquia","San Juan De Urabá","Cálido Húmedo"]
[null,null,null,"Antioquia","San Luis","Cálido Húmedo"]
[null,null,null,"Antioquia","San Luis","Templado"]
[null,null,null,"Antioquia","San Pedro De Los Milagros","Frio"]
[null,null,null,"Antioquia","San Pedro De Los Milagros","Templado"]
[null,null,null,"Antioquia","San Pedro De Urabá","Cálido Húmedo"]
[null,null,null,"Antioquia","San Rafael","Cálido Húmedo"]
[null,null,null,"Antioquia","San Rafael","Templado"]
[null,null,null,"Antioquia","San Roque","Cálido Húmedo"]
[null,null,null,"Antioquia","San Roque","Templado"]
[null,null,null,"Antioquia","San Vicente","Templado"]
[null,null,null,"Antioquia","Santa Bárbara","Cálido Húmedo"]
[null,null,null,"Antioquia","Santa Bárbara","Frio"]
[null,null,null,"Antioquia","Santa Bárbara","Templado"]
[null,null,null,"Antioquia","Santa Fe De Antioquia","Cálido Húmedo"]
[null,null,null,"Antioquia","Santa Fe De Antioquia","Frio"]
[null,null,null,"Antioquia","Santa Fe De Antioquia","Templado"]
[null,null,null,"Antioquia","Santa Rosa De Osos","Frio"]
[null,null,null,"Antioquia","Santa Rosa De Osos","Templado"]
[null,null,null,"Antioquia","Santo Domingo","Templado"]
[null,null,null,"Antioquia","Santuario","Frio"]
[null,null,null,"Antioquia","Santuario","Templado"]
[null,null,null,"Antioquia","Segovia","Cálido Húmedo"]
[null,null,null,"Antioquia","Segovia","Templado"]
[null,null,null,"Antioquia","Sonsón","Cálido Húmedo"]
[null,null,null,"Antioquia","Sonsón","Frio"]
[null,null,null,"Antioquia","Sonsón","Templado"]
[null,null,null,"Antioquia","Sopetrán","Cálido Húmedo"]
[null,null,null,"Antioquia","Sopetrán","Frio"]
[null,null,null,"Antioquia","Sopetrán","Templado"]
[null,null,null,"Antioquia","Támesis","Cálido Húmedo"]
[null,null,null,"Antioquia","Támesis","Frio"]
[null,null,null,"Antioquia","Támesis","Templado"]
[null,null,null,"Antioquia","Tarazá","Cálido Húmedo"]
[null,null,null,"Antioquia","Tarazá","Templado"]
[null,null,null,"Antioquia","Tarso","Cálido Húmedo"]
[null,null,null,"Antioquia","Tarso","Templado"]
[null,null,null,"Antioquia","Titiribí","Cálido Húmedo"]
[null,null,null,"Antioquia","Titiribí","Templado"]
[null,null,null,"Antioquia","Toledo","Cálido Húmedo"]
[null,null,null,"Antioquia","Toledo","Templado"]
[null,null,null,"Antioquia","Turbo","Cálido Húmedo"]
[null,null,null,"Antioquia","Turbo","Templado"]
[null,null,null,"Antioquia","Uramita","Cálido Húmedo"]
[null,null,null,"Antioquia","Uramita","Frio"]
[null,null,null,"Antioquia","Uramita","Templado"]
[null,null,null,"Antioquia","Urrao","Cálido Húmedo"]
[null,null,null,"Antioquia","Urrao","Frio"]
[null,null,null,"Antioquia","Urrao","Templado"]
[null,null,null,"Antioquia","Valdivia","Cálido Húmedo"]
[null,null,null,"Antioquia","Valdivia","Templado"]
[null,null,null,"Antioquia","Valparaiso","Cálido Húmedo"]
[null,null,null,"Antioquia","Valparaiso","Frio"]
[null,null,null,"Antioquia","Valparaiso","Templado"]
[null,null,null,"Antioquia","Vegachí","Cálido Húmedo"]
[null,null,null,"Antioquia","Vegachí","Templado"]
[null,null,null,"Antioquia","Venecia","Cálido Húmedo"]
[null,null,null,"Antioquia","Venecia","Templado"]
[null,null,null,"Antioquia","Vigía Del Fuerte","Cálido Húmedo"]
[null,null,null,"Antioquia","Vigía Del Fuerte","Templado"]
[null,null,null,"Antioquia","Yalí","Cálido Húmedo"]
[null,null,null,"Antioquia","Yalí","Templado"]
[null,null,null,"Antioquia","Yarumal","Cálido Húmedo"]
[null,null,null,"Antioquia","Yarumal","Frio"]
[null,null,null,"Antioquia","Yarumal","Templado"]
[null,null,null,"Antioquia","Yolombó","Cálido Húmedo"]
[null,null,null,"Antioquia","Yolombó","Templado"]
[null,null,null,"Antioquia","Yondó","Cálido Húmedo"]
[null,null,null,"Antioquia","Zaragoza","Cálido Húmedo"]
[null,null,null,"Arauca","Arauca","Cálido Húmedo"]
[null,null,null,"Arauca","Arauquita","Cálido Húmedo"]
[null,null,null,"Arauca","Cravo Norte","Cálido Húmedo"]
[null,null,null,"Arauca","Fortul","Cálido Húmedo"]
[null,null,null,"Arauca","Fortul","Frio"]
[null,null,null,"Arauca","Fortul","Templado"]
[null,null,null,"Arauca","Puerto Rondón","Cálido Húmedo"]
[null,null,null,"Arauca","Saravena","Cálido Húmedo"]
[null,null,null,"Arauca","Saravena","Templado"]
[null,null,null,"Arauca","Tame","Cálido Húmedo"]
[null,null,null,"Arauca","Tame","Frio"]
[null,null,null,"Arauca","Tame","Templado"]
[null,null,null,"Archipiélago de San Andrés, Providencia y Santa Catalina"," San Andrés","Cálido Húmedo"]
[null,null,null,"Archipiélago de San Andrés, Providencia y Santa Catalina","Providencia","Cálido Húmedo"]
[null,null,null,"Atlántico","Baranoa","Cálido Húmedo"]
[null,null,null,"Atlántico","Barranquilla","Cálido Húmedo"]
[null,null,null,"Atlántico","Campo De La Cruz","Cálido Húmedo"]
[null,null,null,"Atlántico","Candelaria","Cálido Húmedo"]
[null,null,null,"Atlántico","Galapa","Cálido Húmedo"]
[null,null,null,"Atlántico","Juan De Acosta","Cálido Húmedo"]
[null,null,null,"Atlántico","Luruaco","Cálido Húmedo"]
[null,null,null,"Atlántico","Malambo","Cálido Húmedo"]
[null,null,null,"Atlántico","Manatí","Cálido Húmedo"]
[null,null,null,"Atlántico","Palmar De Varela","Cálido Húmedo"]
[null,null,null,"Atlántico","Piojó","Cálido Húmedo"]
[null,null,null,"Atlántico","Polonuevo","Cálido Húmedo"]
[null,null,null,"Atlántico","Ponedera","Cálido Húmedo"]
[null,null,null,"Atlántico","Puerto Colombia","Cálido Húmedo"]
[null,null,null,"Atlántico","Repelón","Cálido Húmedo"]
[null,null,null,"Atlántico","Sabanagrande","Cálido Húmedo"]
[null,null,null,"Atlántico","Sabanalarga","Cálido Húmedo"]
[null,null,null,"Atlántico","Santa Lucía","Cálido Húmedo"]
[null,null,null,"Atlántico","Santo Tomás","Cálido Húmedo"]
[null,null,null,"Atlántico","Soledad","Cálido Húmedo"]
[null,null,null,"Atlántico","Suan","Cálido Húmedo"]
[null,null,null,"Atlántico","Tubará","Cálido Húmedo"]
[null,null,null,"Atlántico","Usiacurí","Cálido Húmedo"]
[null,null,null,"Bolívar","Achí","Cálido Húmedo"]
[null,null,null,"Bolívar","Altos Del Rosario","Cálido Húmedo"]
[null,null,null,"Bolívar","Arenal","Cálido Húmedo"]
[null,null,null,"Bolívar","Arenal","Templado"]
[null,null,null,"Bolívar","Arjona","Cálido Húmedo"]
[null,null,null,"Bolívar","Arroyohondo","Cálido Húmedo"]
[null,null,null,"Bolívar","Barranco De Loba","Cálido Húmedo"]
[null,null,null,"Bolívar","Calamar","Cálido Húmedo"]
[null,null,null,"Bolívar","Cantagallo","Cálido Húmedo"]
[null,null,null,"Bolívar","Cartagena De Indias","Cálido Húmedo"]
[null,null,null,"Bolívar","Cicuco","Cálido Húmedo"]
[null,null,null,"Bolívar","Clemencia","Cálido Húmedo"]
[null,null,null,"Bolívar","Córdoba","Cálido Húmedo"]
[null,null,null,"Bolívar","El Carmen De Bolívar","Cálido Húmedo"]
[null,null,null,"Bolívar","El Guamo","Cálido Húmedo"]
[null,null,null,"Bolívar","El Peñón","Cálido Húmedo"]
[null,null,null,"Bolívar","El Peñón","Cálido Seco"]
[null,null,null,"Bolívar","Hatillo De Loba","Cálido Húmedo"]
[null,null,null,"Bolívar","Hatillo De Loba","Cálido Seco"]
[null,null,null,"Bolívar","Magangué","Cálido Húmedo"]
[null,null,null,"Bolívar","Mahates","Cálido Húmedo"]
[null,null,null,"Bolívar","Margarita","Cálido Húmedo"]
[null,null,null,"Bolívar","María La Baja","Cálido Húmedo"]
[null,null,null,"Bolívar","Mompós","Cálido Húmedo"]
[null,null,null,"Bolívar","Montecristo","Cálido Húmedo"]
[null,null,null,"Bolívar","Montecristo","Templado"]
[null,null,null,"Bolívar","Morales","Cálido Húmedo"]
[null,null,null,"Bolívar","Morales","Templado"]
[null,null,null,"Bolívar","Norosí","Cálido Húmedo"]
[null,null,null,"Bolívar","Pinillos","Cálido Húmedo"]
[null,null,null,"Bolívar","Regidor","Cálido Húmedo"]
[null,null,null,"Bolívar","Rioviejo","Cálido Húmedo"]
[null,null,null,"Bolívar","Rioviejo","Templado"]
[null,null,null,"Bolívar","San Cristóbal","Cálido Húmedo"]
[null,null,null,"Bolívar","San Estanislao","Cálido Húmedo"]
[null,null,null,"Bolívar","San Fernando","Cálido Húmedo"]
[null,null,null,"Bolívar","San Jacinto","Cálido Húmedo"]
[null,null,null,"Bolívar","San Jacinto Del Cauca","Cálido Húmedo"]
[null,null,null,"Bolívar","San Juan Nepomuceno","Cálido Húmedo"]
[null,null,null,"Bolívar","San Martín De Loba","Cálido Húmedo"]
[null,null,null,"Bolívar","San Martín De Loba","Cálido Seco"]
[null,null,null,"Bolívar","San Pablo","Cálido Húmedo"]
[null,null,null,"Bolívar","San Pablo","Templado"]
[null,null,null,"Bolívar","Santa Catalina","Cálido Húmedo"]
[null,null,null,"Bolívar","Santa Rosa","Cálido Húmedo"]
[null,null,null,"Bolívar","Santa Rosa Del Sur","Cálido Húmedo"]
[null,null,null,"Bolívar","Santa Rosa Del Sur","Templado"]
[null,null,null,"Bolívar","Simití","Cálido Húmedo"]
[null,null,null,"Bolívar","Simití","Templado"]
[null,null,null,"Bolívar","Soplaviento","Cálido Húmedo"]
[null,null,null,"Bolívar","Talaigua Nuevo","Cálido Húmedo"]
[null,null,null,"Bolívar","Tiquisio","Cálido Húmedo"]
[null,null,null,"Bolívar","Turbaco","Cálido Húmedo"]
[null,null,null,"Bolívar","Turbana","Cálido Húmedo"]
[null,null,null,"Bolívar","Villanueva","Cálido Húmedo"]
[null,null,null,"Bolívar","Zambrano","Cálido Húmedo"]
[null,null,null,"Boyacá","Almeida","Frio"]
[null,null,null,"Boyacá","Almeida","Templado"]
[null,null,null,"Boyacá","Aquitania","Frio"]
[null,null,null,"Boyacá","Aquitania","Templado"]
[null,null,null,"Boyacá","Arcabuco","Frio"]
[null,null,null,"Boyacá","Arcabuco","Templado"]
[null,null,null,"Boyacá","Belén","Frio"]
[null,null,null,"Boyacá","Berbeo","Frio"]
[null,null,null,"Boyacá","Betéitiva","Frio"]
[null,null,null,"Boyacá","Betéitiva","Templado"]
[null,null,null,"Boyacá","Boavita","Frio"]
[null,null,null,"Boyacá","Boavita","Templado"]
[null,null,null,"Boyacá","Boyacá","Frio"]
[null,null,null,"Boyacá","Boyacá","Templado"]
[null,null,null,"Boyacá","Briceño","Frio"]
[null,null,null,"Boyacá","Briceño","Templado"]
[null,null,null,"Boyacá","Buenavista","Frio"]
[null,null,null,"Boyacá","Buenavista","Templado"]
[null,null,null,"Boyacá","Busbanzá","Frio"]
[null,null,null,"Boyacá","Caldas","Frio"]
[null,null,null,"Boyacá","Campohermoso","Cálido Húmedo"]
[null,null,null,"Boyacá","Campohermoso","Frio"]
[null,null,null,"Boyacá","Campohermoso","Templado"]
[null,null,null,"Boyacá","Cerinza","Frio"]
[null,null,null,"Boyacá","Chinavita","Frio"]
[null,null,null,"Boyacá","Chinavita","Templado"]
[null,null,null,"Boyacá","Chiquinquirá","Frio"]
[null,null,null,"Boyacá","Chiquinquirá","Templado"]
[null,null,null,"Boyacá","Chíquiza","Frio"]
[null,null,null,"Boyacá","Chíquiza","Templado"]
[null,null,null,"Boyacá","Chiscas","Frio"]
[null,null,null,"Boyacá","Chiscas","Templado"]
[null,null,null,"Boyacá","Chita","Frio"]
[null,null,null,"Boyacá","Chita","Templado"]
[null,null,null,"Boyacá","Chitaraque","Frio"]
[null,null,null,"Boyacá","Chitaraque","Templado"]
[null,null,null,"Boyacá","Chivatá","Frio"]
[null,null,null,"Boyacá","Chivor","Frio"]
[null,null,null,"Boyacá","Chivor","Templado"]
[null,null,null,"Boyacá","Ciénega","Frio"]
[null,null,null,"Boyacá","Ciénega","Templado"]
[null,null,null,"Boyacá","Cómbita","Frio"]
[null,null,null,"Boyacá","Coper","Cálido Húmedo"]
[null,null,null,"Boyacá","Coper","Frio"]
[null,null,null,"Boyacá","Coper","Templado"]
[null,null,null,"Boyacá","Corrales","Frio"]
[null,null,null,"Boyacá","Corrales","Templado"]
[null,null,null,"Boyacá","Covarachía","Frio"]
[null,null,null,"Boyacá","Covarachía","Templado"]
[null,null,null,"Boyacá","Cubará","Cálido Húmedo"]
[null,null,null,"Boyacá","Cubará","Frio"]
[null,null,null,"Boyacá","Cubará","Templado"]
[null,null,null,"Boyacá","Cucaita","Frio"]
[null,null,null,"Boyacá","Cuítiva","Frio"]
[null,null,null,"Boyacá","Duitama","Frio"]
[null,null,null,"Boyacá","El Cocuy","Frio"]
[null,null,null,"Boyacá","El Espino","Frio"]
[null,null,null,"Boyacá","El Espino","Templado"]
[null,null,null,"Boyacá","Firavitoba","Frio"]
[null,null,null,"Boyacá","Floresta","Frio"]
[null,null,null,"Boyacá","Gachantivá","Frio"]
[null,null,null,"Boyacá","Gachantivá","Templado"]
[null,null,null,"Boyacá","Gámeza","Frio"]
[null,null,null,"Boyacá","Gámeza","Templado"]
[null,null,null,"Boyacá","Garagoa","Frio"]
[null,null,null,"Boyacá","Garagoa","Templado"]
[null,null,null,"Boyacá","Guacamayas","Frio"]
[null,null,null,"Boyacá","Guacamayas","Templado"]
[null,null,null,"Boyacá","Guateque","Frio"]
[null,null,null,"Boyacá","Guateque","Templado"]
[null,null,null,"Boyacá","Guayatá","Frio"]
[null,null,null,"Boyacá","Guayatá","Templado"]
[null,null,null,"Boyacá","Güicán De La Sierra","Frio"]
[null,null,null,"Boyacá","Güicán De La Sierra","Templado"]
[null,null,null,"Boyacá","Iza","Frio"]
[null,null,null,"Boyacá","Jenesano","Frio"]
[null,null,null,"Boyacá","Jenesano","Templado"]
[null,null,null,"Boyacá","Jericó","Frio"]
[null,null,null,"Boyacá","Jericó","Templado"]
[null,null,null,"Boyacá","La Capilla","Frio"]
[null,null,null,"Boyacá","La Capilla","Templado"]
[null,null,null,"Boyacá","La Uvita","Frio"]
[null,null,null,"Boyacá","La Uvita","Templado"]
[null,null,null,"Boyacá","La Victoria","Templado"]
[null,null,null,"Boyacá","Labranzagrande","Cálido Húmedo"]
[null,null,null,"Boyacá","Labranzagrande","Frio"]
[null,null,null,"Boyacá","Labranzagrande","Templado"]
[null,null,null,"Boyacá","Macanal","Frio"]
[null,null,null,"Boyacá","Macanal","Templado"]
[null,null,null,"Boyacá","Maripí","Cálido Húmedo"]
[null,null,null,"Boyacá","Maripí","Frio"]
[null,null,null,"Boyacá","Maripí","Templado"]
[null,null,null,"Boyacá","Miraflores","Frio"]
[null,null,null,"Boyacá","Miraflores","Templado"]
[null,null,null,"Boyacá","Mongua","Frio"]
[null,null,null,"Boyacá","Mongua","Templado"]
[null,null,null,"Boyacá","Monguí","Frio"]
[null,null,null,"Boyacá","Moniquirá","Frio"]
[null,null,null,"Boyacá","Moniquirá","Templado"]
[null,null,null,"Boyacá","Motavita","Frio"]
[null,null,null,"Boyacá","Muzo","Cálido Húmedo"]
[null,null,null,"Boyacá","Muzo","Templado"]
[null,null,null,"Boyacá","Nobsa","Frio"]
[null,null,null,"Boyacá","Nuevo Colón","Frio"]
[null,null,null,"Boyacá","Oicatá","Frio"]
[null,null,null,"Boyacá","Otanche","Cálido Húmedo"]
[null,null,null,"Boyacá","Otanche","Templado"]
[null,null,null,"Boyacá","Pachavita","Frio"]
[null,null,null,"Boyacá","Pachavita","Templado"]
[null,null,null,"Boyacá","Páez","Cálido Húmedo"]
[null,null,null,"Boyacá","Páez","Frio"]
[null,null,null,"Boyacá","Páez","Templado"]
[null,null,null,"Boyacá","Paipa","Frio"]
[null,null,null,"Boyacá","Paipa","Templado"]
[null,null,null,"Boyacá","Pajarito","Frio"]
[null,null,null,"Boyacá","Pajarito","Templado"]
[null,null,null,"Boyacá","Panqueba","Frio"]
[null,null,null,"Boyacá","Panqueba","Templado"]
[null,null,null,"Boyacá","Pauna","Cálido Húmedo"]
[null,null,null,"Boyacá","Pauna","Frio"]
[null,null,null,"Boyacá","Pauna","Templado"]
[null,null,null,"Boyacá","Paya","Cálido Húmedo"]
[null,null,null,"Boyacá","Paya","Templado"]
[null,null,null,"Boyacá","Paz De Rio","Frio"]
[null,null,null,"Boyacá","Paz De Rio","Templado"]
[null,null,null,"Boyacá","Pesca","Frio"]
[null,null,null,"Boyacá","Pesca","Templado"]
[null,null,null,"Boyacá","Pisba","Frio"]
[null,null,null,"Boyacá","Pisba","Templado"]
[null,null,null,"Boyacá","Puerto Boyacá","Cálido Húmedo"]
[null,null,null,"Boyacá","Puerto Boyacá","Templado"]
[null,null,null,"Boyacá","Quípama","Cálido Húmedo"]
[null,null,null,"Boyacá","Quípama","Templado"]
[null,null,null,"Boyacá","Ramiriquí","Frio"]
[null,null,null,"Boyacá","Ramiriquí","Templado"]
[null,null,null,"Boyacá","Ráquira","Frio"]
[null,null,null,"Boyacá","Ráquira","Templado"]
[null,null,null,"Boyacá","Rondón","Frio"]
[null,null,null,"Boyacá","Rondón","Templado"]
[null,null,null,"Boyacá","Saboyá","Frio"]
[null,null,null,"Boyacá","Saboyá","Templado"]
[null,null,null,"Boyacá","Sáchica","Frio"]
[null,null,null,"Boyacá","Sáchica","Templado"]
[null,null,null,"Boyacá","Samacá","Frio"]
[null,null,null,"Boyacá","San Eduardo","Frio"]
[null,null,null,"Boyacá","San Eduardo","Templado"]
[null,null,null,"Boyacá","San José De Pare","Templado"]
[null,null,null,"Boyacá","San Luis De Gaceno","Cálido Húmedo"]
[null,null,null,"Boyacá","San Luis De Gaceno","Templado"]
[null,null,null,"Boyacá","San Mateo","Frio"]
[null,null,null,"Boyacá","San Mateo","Templado"]
[null,null,null,"Boyacá","San Miguel De Sema","Frio"]
[null,null,null,"Boyacá","San Pablo De Borbur","Cálido Húmedo"]
[null,null,null,"Boyacá","San Pablo De Borbur","Templado"]
[null,null,null,"Boyacá","Santa María","Cálido Húmedo"]
[null,null,null,"Boyacá","Santa María","Frio"]
[null,null,null,"Boyacá","Santa María","Templado"]
[null,null,null,"Boyacá","Santa Rosa De Viterbo","Frio"]
[null,null,null,"Boyacá","Santa Sofía","Frio"]
[null,null,null,"Boyacá","Santa Sofía","Templado"]
[null,null,null,"Boyacá","Santana","Templado"]
[null,null,null,"Boyacá","Sativanorte","Frio"]
[null,null,null,"Boyacá","Sativanorte","Templado"]
[null,null,null,"Boyacá","Sativasur","Frio"]
[null,null,null,"Boyacá","Sativasur","Templado"]
[null,null,null,"Boyacá","Siachoque","Frio"]
[null,null,null,"Boyacá","Soatá","Frio"]
[null,null,null,"Boyacá","Soatá","Templado"]
[null,null,null,"Boyacá","Socha","Frio"]
[null,null,null,"Boyacá","Socha","Templado"]
[null,null,null,"Boyacá","Socotá","Frio"]
[null,null,null,"Boyacá","Socotá","Templado"]
[null,null,null,"Boyacá","Sogamoso","Frio"]
[null,null,null,"Boyacá","Somondoco","Frio"]
[null,null,null,"Boyacá","Somondoco","Templado"]
[null,null,null,"Boyacá","Sora","Frio"]
[null,null,null,"Boyacá","Soracá","Frio"]
[null,null,null,"Boyacá","Sotaquirá","Frio"]
[null,null,null,"Boyacá","Sotaquirá","Templado"]
[null,null,null,"Boyacá","Susacón","Frio"]
[null,null,null,"Boyacá","Susacón","Templado"]
[null,null,null,"Boyacá","Sutamarchán","Frio"]
[null,null,null,"Boyacá","Sutamarchán","Templado"]
[null,null,null,"Boyacá","Sutatenza","Frio"]
[null,null,null,"Boyacá","Sutatenza","Templado"]
[null,null,null,"Boyacá","Tasco","Frio"]
[null,null,null,"Boyacá","Tasco","Templado"]
[null,null,null,"Boyacá","Tenza","Frio"]
[null,null,null,"Boyacá","Tenza","Templado"]
[null,null,null,"Boyacá","Tibaná","Frio"]
[null,null,null,"Boyacá","Tibaná","Templado"]
[null,null,null,"Boyacá","Tibasosa","Frio"]
[null,null,null,"Boyacá","Tinjacá","Frio"]
[null,null,null,"Boyacá","Tinjacá","Templado"]
[null,null,null,"Boyacá","Tipacoque","Frio"]
[null,null,null,"Boyacá","Tipacoque","Templado"]
[null,null,null,"Boyacá","Toca","Frio"]
[null,null,null,"Boyacá","Togüí","Frio"]
[null,null,null,"Boyacá","Togüí","Templado"]
[null,null,null,"Boyacá","Tópaga","Frio"]
[null,null,null,"Boyacá","Tota","Frio"]
[null,null,null,"Boyacá","Tunja","Frio"]
[null,null,null,"Boyacá","Tununguá","Cálido Húmedo"]
[null,null,null,"Boyacá","Tununguá","Templado"]
[null,null,null,"Boyacá","Turmequé","Frio"]
[null,null,null,"Boyacá","Tuta","Frio"]
[null,null,null,"Boyacá","Tutazá","Frio"]
[null,null,null,"Boyacá","Úmbita","Frio"]
[null,null,null,"Boyacá","Úmbita","Templado"]
[null,null,null,"Boyacá","Ventaquemada","Frio"]
[null,null,null,"Boyacá","Villa De Leiva","Frio"]
[null,null,null,"Boyacá","Villa De Leiva","Templado"]
[null,null,null,"Boyacá","Viracachá","Frio"]
[null,null,null,"Boyacá","Viracachá","Templado"]
[null,null,null,"Boyacá","Zetaquirá","Frio"]
[null,null,null,"Boyacá","Zetaquirá","Templado"]
[null,null,null,"Caldas","Aguadas","Cálido Húmedo"]
[null,null,null,"Caldas","Aguadas","Frio"]
[null,null,null,"Caldas","Aguadas","Templado"]
[null,null,null,"Caldas","Anserma","Cálido Húmedo"]
[null,null,null,"Caldas","Anserma","Templado"]
[null,null,null,"Caldas","Aranzazu","Frio"]
[null,null,null,"Caldas","Aranzazu","Templado"]
[null,null,null,"Caldas","Belalcázar","Templado"]
[null,null,null,"Caldas","Chinchiná","Templado"]
[null,null,null,"Caldas","Filadelfia","Cálido Húmedo"]
[null,null,null,"Caldas","Filadelfia","Templado"]
[null,null,null,"Caldas","La Dorada","Cálido Húmedo"]
[null,null,null,"Caldas","La Dorada","Cálido Seco"]
[null,null,null,"Caldas","La Merced","Cálido Húmedo"]
[null,null,null,"Caldas","La Merced","Templado"]
[null,null,null,"Caldas","Manizales","Cálido Húmedo"]
[null,null,null,"Caldas","Manizales","Frio"]
[null,null,null,"Caldas","Manizales","Templado"]
[null,null,null,"Caldas","Manzanares","Frio"]
[null,null,null,"Caldas","Manzanares","Templado"]
[null,null,null,"Caldas","Marmato","Cálido Húmedo"]
[null,null,null,"Caldas","Marmato","Templado"]
[null,null,null,"Caldas","Marquetalia","Cálido Húmedo"]
[null,null,null,"Caldas","Marquetalia","Templado"]
[null,null,null,"Caldas","Marulanda","Frio"]
[null,null,null,"Caldas","Marulanda","Templado"]
[null,null,null,"Caldas","Neira","Cálido Húmedo"]
[null,null,null,"Caldas","Neira","Frio"]
[null,null,null,"Caldas","Neira","Templado"]
[null,null,null,"Caldas","Norcasia","Cálido Húmedo"]
[null,null,null,"Caldas","Norcasia","Templado"]
[null,null,null,"Caldas","Pácora","Cálido Húmedo"]
[null,null,null,"Caldas","Pácora","Frio"]
[null,null,null,"Caldas","Pácora","Templado"]
[null,null,null,"Caldas","Palestina","Cálido Húmedo"]
[null,null,null,"Caldas","Palestina","Templado"]
[null,null,null,"Caldas","Pensilvania","Cálido Húmedo"]
[null,null,null,"Caldas","Pensilvania","Frio"]
[null,null,null,"Caldas","Pensilvania","Templado"]
[null,null,null,"Caldas","Riosucio","Cálido Húmedo"]
[null,null,null,"Caldas","Riosucio","Frio"]
[null,null,null,"Caldas","Riosucio","Templado"]
[null,null,null,"Caldas","Risaralda","Templado"]
[null,null,null,"Caldas","Salamina","Frio"]
[null,null,null,"Caldas","Salamina","Templado"]
[null,null,null,"Caldas","Samaná","Cálido Húmedo"]
[null,null,null,"Caldas","Samaná","Templado"]
[null,null,null,"Caldas","San José","Templado"]
[null,null,null,"Caldas","Supia","Cálido Húmedo"]
[null,null,null,"Caldas","Supia","Frio"]
[null,null,null,"Caldas","Supia","Templado"]
[null,null,null,"Caldas","Victoria","Cálido Húmedo"]
[null,null,null,"Caldas","Victoria","Templado"]
[null,null,null,"Caldas","Villamaria","Frio"]
[null,null,null,"Caldas","Villamaria","Templado"]
[null,null,null,"Caldas","Viterbo","Templado"]
[null,null,null,"Caquetá","Albania","Cálido Húmedo"]
[null,null,null,"Caquetá","Belén De Los Andaquíes","Cálido Húmedo"]
[null,null,null,"Caquetá","Belén De Los Andaquíes","Frio"]
[null,null,null,"Caquetá","Belén De Los Andaquíes","Templado"]
[null,null,null,"Caquetá","Cartagena Del Chairá","Cálido Húmedo"]
[null,null,null,"Caquetá","Curillo","Cálido Húmedo"]
[null,null,null,"Caquetá","El Doncello","Cálido Húmedo"]
[null,null,null,"Caquetá","El Doncello","Frio"]
[null,null,null,"Caquetá","El Doncello","Templado"]
[null,null,null,"Caquetá","El Paujil","Cálido Húmedo"]
[null,null,null,"Caquetá","El Paujil","Frio"]
[null,null,null,"Caquetá","El Paujil","Templado"]
[null,null,null,"Caquetá","Florencia","Cálido Húmedo"]
[null,null,null,"Caquetá","Florencia","Frio"]
[null,null,null,"Caquetá","Florencia","Templado"]
[null,null,null,"Caquetá","Milán","Cálido Húmedo"]
[null,null,null,"Caquetá","Montañita","Cálido Húmedo"]
[null,null,null,"Caquetá","Montañita","Templado"]
[null,null,null,"Caquetá","Morelia","Cálido Húmedo"]
[null,null,null,"Caquetá","Morelia","Templado"]
[null,null,null,"Caquetá","Puerto Rico","Cálido Húmedo"]
[null,null,null,"Caquetá","Puerto Rico","Frio"]
[null,null,null,"Caquetá","Puerto Rico","Templado"]
[null,null,null,"Caquetá","San José Del Fragua","Cálido Húmedo"]
[null,null,null,"Caquetá","San José Del Fragua","Frio"]
[null,null,null,"Caquetá","San José Del Fragua","Templado"]
[null,null,null,"Caquetá","San Vicente Del Caguán","Cálido Húmedo"]
[null,null,null,"Caquetá","San Vicente Del Caguán","Cálido Seco"]
[null,null,null,"Caquetá","San Vicente Del Caguán","Frio"]
[null,null,null,"Caquetá","San Vicente Del Caguán","Templado"]
[null,null,null,"Caquetá","Solano","Cálido Húmedo"]
[null,null,null,"Caquetá","Solita","Cálido Húmedo"]
[null,null,null,"Caquetá","Valparaíso","Cálido Húmedo"]
[null,null,null,"Casanare","Aguazul","Cálido Húmedo"]
[null,null,null,"Casanare","Aguazul","Templado"]
[null,null,null,"Casanare","Chámeza","Cálido Húmedo"]
[null,null,null,"Casanare","Chámeza","Frio"]
[null,null,null,"Casanare","Chámeza","Templado"]
[null,null,null,"Casanare","Hato Corozal","Cálido Seco"]
[null,null,null,"Casanare","Hato Corozal","Templado"]
[null,null,null,"Casanare","La Salina","Frio"]
[null,null,null,"Casanare","La Salina","Templado"]
[null,null,null,"Casanare","Maní","Cálido Húmedo"]
[null,null,null,"Casanare","Monterrey","Cálido Húmedo"]
[null,null,null,"Casanare","Monterrey","Templado"]
[null,null,null,"Casanare","Nunchía","Cálido Húmedo"]
[null,null,null,"Casanare","Nunchía","Templado"]
[null,null,null,"Casanare","Orocué","Cálido Húmedo"]
[null,null,null,"Casanare","Paz De Ariporo","Cálido Húmedo"]
[null,null,null,"Casanare","Paz De Ariporo","Cálido Seco"]
[null,null,null,"Casanare","Paz De Ariporo","Templado"]
[null,null,null,"Casanare","Pore","Cálido Húmedo"]
[null,null,null,"Casanare","Recetor","Cálido Húmedo"]
[null,null,null,"Casanare","Recetor","Frio"]
[null,null,null,"Casanare","Recetor","Templado"]
[null,null,null,"Casanare","Sabanalarga","Cálido Húmedo"]
[null,null,null,"Casanare","Sabanalarga","Templado"]
[null,null,null,"Casanare","Sácama","Cálido Húmedo"]
[null,null,null,"Casanare","Sácama","Frio"]
[null,null,null,"Casanare","Sácama","Templado"]
[null,null,null,"Casanare","San Luis De Palenque","Cálido Húmedo"]
[null,null,null,"Casanare","Támara","Cálido Húmedo"]
[null,null,null,"Casanare","Támara","Frio"]
[null,null,null,"Casanare","Támara","Templado"]
[null,null,null,"Casanare","Tauramena","Cálido Húmedo"]
[null,null,null,"Casanare","Tauramena","Templado"]
[null,null,null,"Casanare","Trinidad","Cálido Húmedo"]
[null,null,null,"Casanare","Villanueva","Cálido Húmedo"]
[null,null,null,"Casanare","Yopal","Cálido Húmedo"]
[null,null,null,"Casanare","Yopal","Templado"]
[null,null,null,"Cauca","Almaguer","Frio"]
[null,null,null,"Cauca","Almaguer","Templado"]
[null,null,null,"Cauca","Argelia","Frio"]
[null,null,null,"Cauca","Argelia","Templado"]
[null,null,null,"Cauca","Balboa","Cálido Húmedo"]
[null,null,null,"Cauca","Balboa","Frio"]
[null,null,null,"Cauca","Balboa","Templado"]
[null,null,null,"Cauca","Bolívar","Cálido Húmedo"]
[null,null,null,"Cauca","Bolívar","Frio"]
[null,null,null,"Cauca","Bolívar","Templado"]
[null,null,null,"Cauca","Buenos Aires","Frio"]
[null,null,null,"Cauca","Buenos Aires","Templado"]
[null,null,null,"Cauca","Cajibío","Frio"]
[null,null,null,"Cauca","Cajibío","Templado"]
[null,null,null,"Cauca","Caldono","Frio"]
[null,null,null,"Cauca","Caldono","Templado"]
[null,null,null,"Cauca","Caloto","Cálido Húmedo"]
[null,null,null,"Cauca","Caloto","Templado"]
[null,null,null,"Cauca","Corinto","Frio"]
[null,null,null,"Cauca","Corinto","Templado"]
[null,null,null,"Cauca","El Tambo","Cálido Húmedo"]
[null,null,null,"Cauca","El Tambo","Frio"]
[null,null,null,"Cauca","El Tambo","Templado"]
[null,null,null,"Cauca","Florencia","Frio"]
[null,null,null,"Cauca","Florencia","Templado"]
[null,null,null,"Cauca","Guachené","Cálido Húmedo"]
[null,null,null,"Cauca","Guachené","Templado"]
[null,null,null,"Cauca","Guapi","Cálido Húmedo"]
[null,null,null,"Cauca","Guapi","Frio"]
[null,null,null,"Cauca","Guapi","Templado"]
[null,null,null,"Cauca","Inzá","Frio"]
[null,null,null,"Cauca","Inzá","Templado"]
[null,null,null,"Cauca","Jambaló","Frio"]
[null,null,null,"Cauca","Jambaló","Templado"]
[null,null,null,"Cauca","La Sierra","Cálido Húmedo"]
[null,null,null,"Cauca","La Sierra","Frio"]
[null,null,null,"Cauca","La Sierra","Templado"]
[null,null,null,"Cauca","La Vega","Frio"]
[null,null,null,"Cauca","La Vega","Templado"]
[null,null,null,"Cauca","López","Cálido Húmedo"]
[null,null,null,"Cauca","López","Templado"]
[null,null,null,"Cauca","Mercaderes","Cálido Húmedo"]
[null,null,null,"Cauca","Mercaderes","Templado"]
[null,null,null,"Cauca","Miranda","Frio"]
[null,null,null,"Cauca","Miranda","Templado"]
[null,null,null,"Cauca","Morales","Frio"]
[null,null,null,"Cauca","Morales","Templado"]
[null,null,null,"Cauca","Padilla","Templado"]
[null,null,null,"Cauca","Páez","Frio"]
[null,null,null,"Cauca","Páez","Templado"]
[null,null,null,"Cauca","Patía","Cálido Húmedo"]
[null,null,null,"Cauca","Patía","Cálido Seco"]
[null,null,null,"Cauca","Patía","Frio"]
[null,null,null,"Cauca","Patía","Templado"]
[null,null,null,"Cauca","Piamonte","Cálido Húmedo"]
[null,null,null,"Cauca","Piamonte","Frio"]
[null,null,null,"Cauca","Piamonte","Templado"]
[null,null,null,"Cauca","Piendamó Tunia","Frio"]
[null,null,null,"Cauca","Piendamó Tunia","Templado"]
[null,null,null,"Cauca","Popayán","Frio"]
[null,null,null,"Cauca","Popayán","Templado"]
[null,null,null,"Cauca","Puerto Tejada","Cálido Húmedo"]
[null,null,null,"Cauca","Puerto Tejada","Templado"]
[null,null,null,"Cauca","Puracé","Frio"]
[null,null,null,"Cauca","Puracé","Templado"]
[null,null,null,"Cauca","Rosas","Frio"]
[null,null,null,"Cauca","Rosas","Templado"]
[null,null,null,"Cauca","San Sebastián","Frio"]
[null,null,null,"Cauca","San Sebastián","Templado"]
[null,null,null,"Cauca","Santa Rosa","Cálido Húmedo"]
[null,null,null,"Cauca","Santa Rosa","Frio"]
[null,null,null,"Cauca","Santa Rosa","Templado"]
[null,null,null,"Cauca","Santander De Quilichao","Cálido Húmedo"]
[null,null,null,"Cauca","Santander De Quilichao","Frio"]
[null,null,null,"Cauca","Santander De Quilichao","Templado"]
[null,null,null,"Cauca","Silvia","Frio"]
[null,null,null,"Cauca","Silvia","Templado"]
[null,null,null,"Cauca","Sotará","Frio"]
[null,null,null,"Cauca","Sotará","Templado"]
[null,null,null,"Cauca","Suárez","Templado"]
[null,null,null,"Cauca","Sucre","Cálido Húmedo"]
[null,null,null,"Cauca","Sucre","Frio"]
[null,null,null,"Cauca","Sucre","Templado"]
[null,null,null,"Cauca","Timbío","Frio"]
[null,null,null,"Cauca","Timbío","Templado"]
[null,null,null,"Cauca","Timbiquí","Cálido Húmedo"]
[null,null,null,"Cauca","Timbiquí","Frio"]
[null,null,null,"Cauca","Timbiquí","Templado"]
[null,null,null,"Cauca","Toribío","Frio"]
[null,null,null,"Cauca","Toribío","Templado"]
[null,null,null,"Cauca","Totoró","Frio"]
[null,null,null,"Cauca","Totoró","Templado"]
[null,null,null,"Cauca","Villa Rica","Cálido Húmedo"]
[null,null,null,"Cauca","Villa Rica","Templado"]
[null,null,null,"Cesar","Aguachica","Cálido Húmedo"]
[null,null,null,"Cesar","Aguachica","Templado"]
[null,null,null,"Cesar","Agustín Codazzi","Cálido Húmedo"]
[null,null,null,"Cesar","Agustín Codazzi","Cálido Seco"]
[null,null,null,"Cesar","Agustín Codazzi","Frio"]
[null,null,null,"Cesar","Agustín Codazzi","Templado"]
[null,null,null,"Cesar","Astrea","Cálido Húmedo"]
[null,null,null,"Cesar","Astrea","Cálido Seco"]
[null,null,null,"Cesar","Becerrill","Cálido Húmedo"]
[null,null,null,"Cesar","Becerrill","Cálido Seco"]
[null,null,null,"Cesar","Becerrill","Frio"]
[null,null,null,"Cesar","Becerrill","Templado"]
[null,null,null,"Cesar","Bosconia","Cálido Seco"]
[null,null,null,"Cesar","Chimichagua","Cálido Húmedo"]
[null,null,null,"Cesar","Chimichagua","Templado"]
[null,null,null,"Cesar","Chiriguaná","Cálido Húmedo"]
[null,null,null,"Cesar","Chiriguaná","Cálido Seco"]
[null,null,null,"Cesar","Chiriguaná","Templado"]
[null,null,null,"Cesar","Curumaní","Cálido Húmedo"]
[null,null,null,"Cesar","Curumaní","Templado"]
[null,null,null,"Cesar","El Copey","Cálido Húmedo"]
[null,null,null,"Cesar","El Copey","Cálido Seco"]
[null,null,null,"Cesar","El Copey","Templado"]
[null,null,null,"Cesar","El Paso","Cálido Húmedo"]
[null,null,null,"Cesar","El Paso","Cálido Seco"]
[null,null,null,"Cesar","Gamarra","Cálido Húmedo"]
[null,null,null,"Cesar","González","Templado"]
[null,null,null,"Cesar","La Gloria","Cálido Húmedo"]
[null,null,null,"Cesar","La Gloria","Templado"]
[null,null,null,"Cesar","La Jagua De Ibirico","Cálido Húmedo"]
[null,null,null,"Cesar","La Jagua De Ibirico","Cálido Seco"]
[null,null,null,"Cesar","La Jagua De Ibirico","Templado"]
[null,null,null,"Cesar","La Paz","Cálido Húmedo"]
[null,null,null,"Cesar","La Paz","Cálido Seco"]
[null,null,null,"Cesar","La Paz","Frio"]
[null,null,null,"Cesar","La Paz","Templado"]
[null,null,null,"Cesar","Manaure Balcón Del Cesar","Cálido Húmedo"]
[null,null,null,"Cesar","Manaure Balcón Del Cesar","Cálido Seco"]
[null,null,null,"Cesar","Manaure Balcón Del Cesar","Frio"]
[null,null,null,"Cesar","Manaure Balcón Del Cesar","Templado"]
[null,null,null,"Cesar","Pailitas","Cálido Húmedo"]
[null,null,null,"Cesar","Pailitas","Templado"]
[null,null,null,"Cesar","Pelaya","Cálido Húmedo"]
[null,null,null,"Cesar","Pelaya","Templado"]
[null,null,null,"Cesar","Pueblo Bello","Cálido Húmedo"]
[null,null,null,"Cesar","Pueblo Bello","Cálido Seco"]
[null,null,null,"Cesar","Pueblo Bello","Frio"]
[null,null,null,"Cesar","Pueblo Bello","Templado"]
[null,null,null,"Cesar","Río De Oro","Cálido Húmedo"]
[null,null,null,"Cesar","Río De Oro","Templado"]
[null,null,null,"Cesar","San Alberto","Cálido Húmedo"]
[null,null,null,"Cesar","San Alberto","Templado"]
[null,null,null,"Cesar","San Diego","Cálido Húmedo"]
[null,null,null,"Cesar","San Diego","Cálido Seco"]
[null,null,null,"Cesar","San Diego","Templado"]
[null,null,null,"Cesar","San Martín","Cálido Húmedo"]
[null,null,null,"Cesar","San Martín","Templado"]
[null,null,null,"Cesar","Tamalameque","Cálido Húmedo"]
[null,null,null,"Cesar","Valledupar","Cálido Húmedo"]
[null,null,null,"Cesar","Valledupar","Cálido Seco"]
[null,null,null,"Cesar","Valledupar","Frio"]
[null,null,null,"Cesar","Valledupar","Templado"]
[null,null,null,"Chocó","Acandí","Cálido Húmedo"]
[null,null,null,"Chocó","Alto Baudó","Cálido Húmedo"]
[null,null,null,"Chocó","Alto Baudó","Templado"]
[null,null,null,"Chocó","Atrato (Yuto)","Cálido Húmedo"]
[null,null,null,"Chocó","Bagadó","Cálido Húmedo"]
[null,null,null,"Chocó","Bagadó","Frio"]
[null,null,null,"Chocó","Bagadó","Templado"]
[null,null,null,"Chocó","Bahía Solano","Cálido Húmedo"]
[null,null,null,"Chocó","Bahía Solano","Templado"]
[null,null,null,"Chocó","Bajo Baudó","Cálido Húmedo"]
[null,null,null,"Chocó","Bajo Baudó","Templado"]
[null,null,null,"Chocó","Bojayá","Cálido Húmedo"]
[null,null,null,"Chocó","Bojayá","Templado"]
[null,null,null,"Chocó","Carmen Del Darién","Cálido Húmedo"]
[null,null,null,"Chocó","Carmen Del Darién","Templado"]
[null,null,null,"Chocó","Cértegui","Cálido Húmedo"]
[null,null,null,"Chocó","Condoto","Cálido Húmedo"]
[null,null,null,"Chocó","Condoto","Templado"]
[null,null,null,"Chocó","El Cantón Del San Pablo","Cálido Húmedo"]
[null,null,null,"Chocó","El Carmen","Cálido Húmedo"]
[null,null,null,"Chocó","El Carmen","Frio"]
[null,null,null,"Chocó","El Carmen","Templado"]
[null,null,null,"Chocó","El Litoral Del San Juán","Cálido Húmedo"]
[null,null,null,"Chocó","El Litoral Del San Juán","Frio"]
[null,null,null,"Chocó","El Litoral Del San Juán","Templado"]
[null,null,null,"Chocó","Istmina","Cálido Húmedo"]
[null,null,null,"Chocó","Juradó","Cálido Húmedo"]
[null,null,null,"Chocó","Lloró","Cálido Húmedo"]
[null,null,null,"Chocó","Lloró","Frio"]
[null,null,null,"Chocó","Lloró","Templado"]
[null,null,null,"Chocó","Medio Atrato","Cálido Húmedo"]
[null,null,null,"Chocó","Medio Atrato","Frio"]
[null,null,null,"Chocó","Medio Atrato","Templado"]
[null,null,null,"Chocó","Medio Baudó","Cálido Húmedo"]
[null,null,null,"Chocó","Medio San Juan","Cálido Húmedo"]
[null,null,null,"Chocó","Nóvita","Cálido Húmedo"]
[null,null,null,"Chocó","Nóvita","Templado"]
[null,null,null,"Chocó","Nuquí","Cálido Húmedo"]
[null,null,null,"Chocó","Nuquí","Templado"]
[null,null,null,"Chocó","Quibdó","Cálido Húmedo"]
[null,null,null,"Chocó","Quibdó","Frio"]
[null,null,null,"Chocó","Quibdó","Templado"]
[null,null,null,"Chocó","Rio Iró","Cálido Húmedo"]
[null,null,null,"Chocó","Rio Iró","Templado"]
[null,null,null,"Chocó","Rio Quito","Cálido Húmedo"]
[null,null,null,"Chocó","Riosucio","Cálido Húmedo"]
[null,null,null,"Chocó","Riosucio","Templado"]
[null,null,null,"Chocó","San José Del Palmar","Cálido Húmedo"]
[null,null,null,"Chocó","San José Del Palmar","Frio"]
[null,null,null,"Chocó","San José Del Palmar","Templado"]
[null,null,null,"Chocó","Sipí","Cálido Húmedo"]
[null,null,null,"Chocó","Sipí","Templado"]
[null,null,null,"Chocó","Tadó","Cálido Húmedo"]
[null,null,null,"Chocó","Tadó","Frio"]
[null,null,null,"Chocó","Tadó","Templado"]
[null,null,null,"Chocó","Unguía","Cálido Húmedo"]
[null,null,null,"Chocó","Unión Panamericana","Cálido Húmedo"]
[null,null,null,"Córdoba","Ayapel","Cálido Húmedo"]
[null,null,null,"Córdoba","Buenavista","Cálido Húmedo"]
[null,null,null,"Córdoba","Canalete","Cálido Húmedo"]
[null,null,null,"Córdoba","Cereté","Cálido Húmedo"]
[null,null,null,"Córdoba","Chima","Cálido Húmedo"]
[null,null,null,"Córdoba","Chinú","Cálido Húmedo"]
[null,null,null,"Córdoba","Ciénaga De Oro","Cálido Húmedo"]
[null,null,null,"Córdoba","Cotorra","Cálido Húmedo"]
[null,null,null,"Córdoba","La Apartada","Cálido Húmedo"]
[null,null,null,"Córdoba","Lorica","Cálido Húmedo"]
[null,null,null,"Córdoba","Los Córdobas","Cálido Húmedo"]
[null,null,null,"Córdoba","Momil","Cálido Húmedo"]
[null,null,null,"Córdoba","Montelíbano","Cálido Húmedo"]
[null,null,null,"Córdoba","Montelíbano","Templado"]
[null,null,null,"Córdoba","Montería","Cálido Húmedo"]
[null,null,null,"Córdoba","Moñitos","Cálido Húmedo"]
[null,null,null,"Córdoba","Planeta Rica","Cálido Húmedo"]
[null,null,null,"Córdoba","Pueblo Nuevo","Cálido Húmedo"]
[null,null,null,"Córdoba","Puerto Escondido","Cálido Húmedo"]
[null,null,null,"Córdoba","Puerto Libertador","Cálido Húmedo"]
[null,null,null,"Córdoba","Puerto Libertador","Frio"]
[null,null,null,"Córdoba","Puerto Libertador","Templado"]
[null,null,null,"Córdoba","Purísima","Cálido Húmedo"]
[null,null,null,"Córdoba","Sahagún","Cálido Húmedo"]
[null,null,null,"Córdoba","San Andrés De Sotavento","Cálido Húmedo"]
[null,null,null,"Córdoba","San Antero","Cálido Húmedo"]
[null,null,null,"Córdoba","San Bernardo Del Viento","Cálido Húmedo"]
[null,null,null,"Córdoba","San Carlos","Cálido Húmedo"]
[null,null,null,"Córdoba","San José De Uré","Cálido Húmedo"]
[null,null,null,"Córdoba","San José De Uré","Templado"]
[null,null,null,"Córdoba","San Pelayo","Cálido Húmedo"]
[null,null,null,"Córdoba","Tierralta","Cálido Húmedo"]
[null,null,null,"Córdoba","Tierralta","Templado"]
[null,null,null,"Córdoba","Tuchín","Cálido Húmedo"]
[null,null,null,"Córdoba","Valencia","Cálido Húmedo"]
[null,null,null,"Córdoba","Valencia","Templado"]
[null,null,null,"Cundinamarca","Agua De Dios","Cálido Húmedo"]
[null,null,null,"Cundinamarca","Agua De Dios","Cálido Seco"]
[null,null,null,"Cundinamarca","Agua De Dios","Templado"]
[null,null,null,"Cundinamarca","Albán","Frio"]
[null,null,null,"Cundinamarca","Albán","Templado"]
[null,null,null,"Cundinamarca","Anapoima","Cálido Húmedo"]
[null,null,null,"Cundinamarca","Anapoima","Templado"]
[null,null,null,"Cundinamarca","Anolaima","Frio"]
[null,null,null,"Cundinamarca","Anolaima","Templado"]
[null,null,null,"Cundinamarca","Apulo","Cálido Húmedo"]
[null,null,null,"Cundinamarca","Apulo","Templado"]
[null,null,null,"Cundinamarca","Arbeláez","Cálido Húmedo"]
[null,null,null,"Cundinamarca","Arbeláez","Cálido Seco"]
[null,null,null,"Cundinamarca","Arbeláez","Frio"]
[null,null,null,"Cundinamarca","Arbeláez","Templado"]
[null,null,null,"Cundinamarca","Beltrán","Cálido Húmedo"]
[null,null,null,"Cundinamarca","Beltrán","Cálido Seco"]
[null,null,null,"Cundinamarca","Beltrán","Templado"]
[null,null,null,"Cundinamarca","Bituima","Templado"]
[null,null,null,"Cundinamarca","Bogotá, D.C.","Frio"]
[null,null,null,"Cundinamarca","Bojacá","Frio"]
[null,null,null,"Cundinamarca","Bojacá","Templado"]
[null,null,null,"Cundinamarca","Cabrera","Frio"]
[null,null,null,"Cundinamarca","Cabrera","Templado"]
[null,null,null,"Cundinamarca","Cachipay","Cálido Húmedo"]
[null,null,null,"Cundinamarca","Cachipay","Frio"]
[null,null,null,"Cundinamarca","Cachipay","Templado"]
[null,null,null,"Cundinamarca","Cajicá","Frio"]
[null,null,null,"Cundinamarca","Caparrapí","Cálido Húmedo"]
[null,null,null,"Cundinamarca","Caparrapí","Templado"]
[null,null,null,"Cundinamarca","Cáqueza","Frio"]
[null,null,null,"Cundinamarca","Cáqueza","Templado"]
[null,null,null,"Cundinamarca","Carmen De Carupa","Frio"]
[null,null,null,"Cundinamarca","Carmen De Carupa","Templado"]
[null,null,null,"Cundinamarca","Chaguaní","Cálido Húmedo"]
[null,null,null,"Cundinamarca","Chaguaní","Templado"]
[null,null,null,"Cundinamarca","Chía","Frio"]
[null,null,null,"Cundinamarca","Chipaque","Frio"]
[null,null,null,"Cundinamarca","Chipaque","Templado"]
[null,null,null,"Cundinamarca","Choachí","Frio"]
[null,null,null,"Cundinamarca","Choachí","Templado"]
[null,null,null,"Cundinamarca","Chocontá","Frio"]
[null,null,null,"Cundinamarca","Cogua","Frio"]
[null,null,null,"Cundinamarca","Cota","Frio"]
[null,null,null,"Cundinamarca","Cucunubá","Frio"]
[null,null,null,"Cundinamarca","El Colegio","Cálido Húmedo"]
[null,null,null,"Cundinamarca","El Colegio","Frio"]
[null,null,null,"Cundinamarca","El Colegio","Templado"]
[null,null,null,"Cundinamarca","El Peñón","Templado"]
[null,null,null,"Cundinamarca","El Rosal","Frio"]
[null,null,null,"Cundinamarca","Facatativá","Frio"]
[null,null,null,"Cundinamarca","Fómeque","Frio"]
[null,null,null,"Cundinamarca","Fómeque","Templado"]
[null,null,null,"Cundinamarca","Fosca","Frio"]
[null,null,null,"Cundinamarca","Fosca","Templado"]
[null,null,null,"Cundinamarca","Funza","Frio"]
[null,null,null,"Cundinamarca","Fúquene","Frio"]
[null,null,null,"Cundinamarca","Fusagasugá","Cálido Húmedo"]
[null,null,null,"Cundinamarca","Fusagasugá","Frio"]
[null,null,null,"Cundinamarca","Fusagasugá","Templado"]
[null,null,null,"Cundinamarca","Gachalá","Cálido Húmedo"]
[null,null,null,"Cundinamarca","Gachalá","Frio"]
[null,null,null,"Cundinamarca","Gachalá","Templado"]
[null,null,null,"Cundinamarca","Gachancipá","Frio"]
[null,null,null,"Cundinamarca","Gachetá","Frio"]
[null,null,null,"Cundinamarca","Gachetá","Templado"]
[null,null,null,"Cundinamarca","Gama","Frio"]
[null,null,null,"Cundinamarca","Gama","Templado"]
[null,null,null,"Cundinamarca","Girardot","Cálido Seco"]
[null,null,null,"Cundinamarca","Granada","Frio"]
[null,null,null,"Cundinamarca","Guachetá","Frio"]
[null,null,null,"Cundinamarca","Guaduas","Cálido Húmedo"]
[null,null,null,"Cundinamarca","Guaduas","Cálido Seco"]
[null,null,null,"Cundinamarca","Guaduas","Templado"]
[null,null,null,"Cundinamarca","Guasca","Frio"]
[null,null,null,"Cundinamarca","Guataquí","Cálido Seco"]
[null,null,null,"Cundinamarca","Guatavita","Frio"]
[null,null,null,"Cundinamarca","Guayabal De Síquima","Frio"]
[null,null,null,"Cundinamarca","Guayabal De Síquima","Templado"]
[null,null,null,"Cundinamarca","Guayabetal","Frio"]
[null,null,null,"Cundinamarca","Guayabetal","Templado"]
[null,null,null,"Cundinamarca","Gutiérrez","Frio"]
[null,null,null,"Cundinamarca","Gutiérrez","Templado"]
[null,null,null,"Cundinamarca","Jerusalén","Cálido Húmedo"]
[null,null,null,"Cundinamarca","Jerusalén","Cálido Seco"]
[null,null,null,"Cundinamarca","Jerusalén","Templado"]
[null,null,null,"Cundinamarca","Junín","Frio"]
[null,null,null,"Cundinamarca","Junín","Templado"]
[null,null,null,"Cundinamarca","La Calera","Frio"]
[null,null,null,"Cundinamarca","La Calera","Templado"]
[null,null,null,"Cundinamarca","La Mesa","Cálido Húmedo"]
[null,null,null,"Cundinamarca","La Mesa","Frio"]
[null,null,null,"Cundinamarca","La Mesa","Templado"]
[null,null,null,"Cundinamarca","La Palma","Cálido Húmedo"]
[null,null,null,"Cundinamarca","La Palma","Templado"]
[null,null,null,"Cundinamarca","La Peña","Cálido Húmedo"]
[null,null,null,"Cundinamarca","La Peña","Templado"]
[null,null,null,"Cundinamarca","La Vega","Frio"]
[null,null,null,"Cundinamarca","La Vega","Templado"]
[null,null,null,"Cundinamarca","Lenguazaque","Frio"]
[null,null,null,"Cundinamarca","Machetá","Frio"]
[null,null,null,"Cundinamarca","Machetá","Templado"]
[null,null,null,"Cundinamarca","Madrid","Frio"]
[null,null,null,"Cundinamarca","Manta","Frio"]
[null,null,null,"Cundinamarca","Manta","Templado"]
[null,null,null,"Cundinamarca","Medina","Cálido Húmedo"]
[null,null,null,"Cundinamarca","Medina","Frio"]
[null,null,null,"Cundinamarca","Medina","Templado"]
[null,null,null,"Cundinamarca","Mosquera","Frio"]
[null,null,null,"Cundinamarca","Nariño","Cálido Seco"]
[null,null,null,"Cundinamarca","Nemocón","Frio"]
[null,null,null,"Cundinamarca","Nilo","Cálido Húmedo"]
[null,null,null,"Cundinamarca","Nilo","Cálido Seco"]
[null,null,null,"Cundinamarca","Nilo","Templado"]
[null,null,null,"Cundinamarca","Nimaima","Templado"]
[null,null,null,"Cundinamarca","Nocaima","Templado"]
[null,null,null,"Cundinamarca","Pacho","Frio"]
[null,null,null,"Cundinamarca","Pacho","Templado"]
[null,null,null,"Cundinamarca","Paime","Cálido Húmedo"]
[null,null,null,"Cundinamarca","Paime","Templado"]
[null,null,null,"Cundinamarca","Pandi","Cálido Húmedo"]
[null,null,null,"Cundinamarca","Pandi","Cálido Seco"]
[null,null,null,"Cundinamarca","Pandi","Templado"]
[null,null,null,"Cundinamarca","Paratebueno","Cálido Húmedo"]
[null,null,null,"Cundinamarca","Pasca","Frio"]
[null,null,null,"Cundinamarca","Pasca","Templado"]
[null,null,null,"Cundinamarca","Puerto Salgar","Cálido Húmedo"]
[null,null,null,"Cundinamarca","Puerto Salgar","Cálido Seco"]
[null,null,null,"Cundinamarca","Pulí","Cálido Húmedo"]
[null,null,null,"Cundinamarca","Pulí","Cálido Seco"]
[null,null,null,"Cundinamarca","Pulí","Templado"]
[null,null,null,"Cundinamarca","Quebradanegra","Cálido Húmedo"]
[null,null,null,"Cundinamarca","Quebradanegra","Templado"]
[null,null,null,"Cundinamarca","Quetame","Frio"]
[null,null,null,"Cundinamarca","Quetame","Templado"]
[null,null,null,"Cundinamarca","Quipile","Cálido Húmedo"]
[null,null,null,"Cundinamarca","Quipile","Templado"]
[null,null,null,"Cundinamarca","Ricaurte","Cálido Seco"]
[null,null,null,"Cundinamarca","San Antonio Del Tequendama","Frio"]
[null,null,null,"Cundinamarca","San Antonio Del Tequendama","Templado"]
[null,null,null,"Cundinamarca","San Bernardo","Frio"]
[null,null,null,"Cundinamarca","San Bernardo","Templado"]
[null,null,null,"Cundinamarca","San Cayetano","Frio"]
[null,null,null,"Cundinamarca","San Cayetano","Templado"]
[null,null,null,"Cundinamarca","San Francisco","Frio"]
[null,null,null,"Cundinamarca","San Francisco","Templado"]
[null,null,null,"Cundinamarca","San Juan De Rioseco","Cálido Húmedo"]
[null,null,null,"Cundinamarca","San Juan De Rioseco","Cálido Húmedo"]
[null,null,null,"Cundinamarca","Sasaima","Frio"]
[null,null,null,"Cundinamarca","Sasaima","Templado"]
[null,null,null,"Cundinamarca","Sesquilé","Frio"]
[null,null,null,"Cundinamarca","Sibaté","Frio"]
[null,null,null,"Cundinamarca","Silvania","Frio"]
[null,null,null,"Cundinamarca","Silvania","Templado"]
[null,null,null,"Cundinamarca","Simijaca","Frio"]
[null,null,null,"Cundinamarca","Soacha","Frio"]
[null,null,null,"Cundinamarca","Soacha","Templado"]
[null,null,null,"Cundinamarca","Sopó","Frio"]
[null,null,null,"Cundinamarca","Subachoque","Frio"]
[null,null,null,"Cundinamarca","Suesca","Frio"]
[null,null,null,"Cundinamarca","Supatá","Frio"]
[null,null,null,"Cundinamarca","Supatá","Templado"]
[null,null,null,"Cundinamarca","Susa","Frio"]
[null,null,null,"Cundinamarca","Sutatausa","Frio"]
[null,null,null,"Cundinamarca","Tabio","Frio"]
[null,null,null,"Cundinamarca","Tausa","Frio"]
[null,null,null,"Cundinamarca","Tena","Cálido Húmedo"]
[null,null,null,"Cundinamarca","Tena","Frio"]
[null,null,null,"Cundinamarca","Tena","Templado"]
[null,null,null,"Cundinamarca","Tenjo","Frio"]
[null,null,null,"Cundinamarca","Tibacuy","Cálido Húmedo"]
[null,null,null,"Cundinamarca","Tibacuy","Frio"]
[null,null,null,"Cundinamarca","Tibacuy","Templado"]
[null,null,null,"Cundinamarca","Tibirita","Frio"]
[null,null,null,"Cundinamarca","Tibirita","Templado"]
[null,null,null,"Cundinamarca","Tocaima","Cálido Húmedo"]
[null,null,null,"Cundinamarca","Tocaima","Cálido Seco"]
[null,null,null,"Cundinamarca","Tocaima","Templado"]
[null,null,null,"Cundinamarca","Tocancipá","Frio"]
[null,null,null,"Cundinamarca","Topaipí","Templado"]
[null,null,null,"Cundinamarca","Ubalá","Cálido Húmedo"]
[null,null,null,"Cundinamarca","Ubalá","Frio"]
[null,null,null,"Cundinamarca","Ubalá","Templado"]
[null,null,null,"Cundinamarca","Ubaque","Frio"]
[null,null,null,"Cundinamarca","Ubaque","Templado"]
[null,null,null,"Cundinamarca","Ubaté","Frio"]
[null,null,null,"Cundinamarca","Une","Frio"]
[null,null,null,"Cundinamarca","Une","Templado"]
[null,null,null,"Cundinamarca","Útica","Cálido Húmedo"]
[null,null,null,"Cundinamarca","Útica","Templado"]
[null,null,null,"Cundinamarca","Venecia","Frio"]
[null,null,null,"Cundinamarca","Venecia","Templado"]
[null,null,null,"Cundinamarca","Vergara","Frio"]
[null,null,null,"Cundinamarca","Vergara","Templado"]
[null,null,null,"Cundinamarca","Vianí","Templado"]
[null,null,null,"Cundinamarca","Villagómez","Frio"]
[null,null,null,"Cundinamarca","Villagómez","Templado"]
[null,null,null,"Cundinamarca","Villapinzón","Frio"]
[null,null,null,"Cundinamarca","Villeta","Templado"]
[null,null,null,"Cundinamarca","Viotá","Cálido Húmedo"]
[null,null,null,"Cundinamarca","Viotá","Frio"]
[null,null,null,"Cundinamarca","Viotá","Templado"]
[null,null,null,"Cundinamarca","Yacopí","Cálido Húmedo"]
[null,null,null,"Cundinamarca","Yacopí","Templado"]
[null,null,null,"Cundinamarca","Zipacón","Frio"]
[null,null,null,"Cundinamarca","Zipacón","Templado"]
[null,null,null,"Cundinamarca","Zipaquirá","Frio"]
[null,null,null,"Guainía","Barrancominas","Cálido Húmedo"]
[null,null,null,"Guainía","Cacahual","Cálido Húmedo"]
[null,null,null,"Guainía","Inírida","Cálido Húmedo"]
[null,null,null,"Guainía","La Guadalupe","Cálido Húmedo"]
[null,null,null,"Guainía","Morichal","Cálido Húmedo"]
[null,null,null,"Guainía","Paná-Paná","Cálido Húmedo"]
[null,null,null,"Guainía","Puerto Colombia","Cálido Húmedo"]
[null,null,null,"Guainía","San Felipe","Cálido Húmedo"]
[null,null,null,"Guaviare","Calamar","Cálido Húmedo"]
[null,null,null,"Guaviare","El Retorno","Cálido Húmedo"]
[null,null,null,"Guaviare","Miraflores","Cálido Húmedo"]
[null,null,null,"Guaviare","San José Del Guaviare","Cálido Húmedo"]
[null,null,null,"Huila","Acevedo","Frio"]
[null,null,null,"Huila","Acevedo","Templado"]
[null,null,null,"Huila","Agrado","Cálido Húmedo"]
[null,null,null,"Huila","Agrado","Templado"]
[null,null,null,"Huila","Aipe","Cálido Húmedo"]
[null,null,null,"Huila","Aipe","Cálido Seco"]
[null,null,null,"Huila","Aipe","Templado"]
[null,null,null,"Huila","Algeciras","Cálido Húmedo"]
[null,null,null,"Huila","Algeciras","Cálido Seco"]
[null,null,null,"Huila","Algeciras","Frio"]
[null,null,null,"Huila","Algeciras","Templado"]
[null,null,null,"Huila","Altamira","Cálido Húmedo"]
[null,null,null,"Huila","Altamira","Templado"]
[null,null,null,"Huila","Baraya","Cálido Húmedo"]
[null,null,null,"Huila","Baraya","Cálido Seco"]
[null,null,null,"Huila","Baraya","Frio"]
[null,null,null,"Huila","Baraya","Templado"]
[null,null,null,"Huila","Campoalegre","Cálido Seco"]
[null,null,null,"Huila","Campoalegre","Templado"]
[null,null,null,"Huila","Colombia","Cálido Húmedo"]
[null,null,null,"Huila","Colombia","Frio"]
[null,null,null,"Huila","Colombia","Templado"]
[null,null,null,"Huila","Elías","Cálido Húmedo"]
[null,null,null,"Huila","Elías","Templado"]
[null,null,null,"Huila","Garzón","Cálido Húmedo"]
[null,null,null,"Huila","Garzón","Frio"]
[null,null,null,"Huila","Garzón","Templado"]
[null,null,null,"Huila","Gigante","Cálido Húmedo"]
[null,null,null,"Huila","Gigante","Cálido Seco"]
[null,null,null,"Huila","Gigante","Frio"]
[null,null,null,"Huila","Gigante","Templado"]
[null,null,null,"Huila","Guadalupe","Cálido Húmedo"]
[null,null,null,"Huila","Guadalupe","Frio"]
[null,null,null,"Huila","Guadalupe","Templado"]
[null,null,null,"Huila","Hobo","Cálido Húmedo"]
[null,null,null,"Huila","Hobo","Cálido Seco"]
[null,null,null,"Huila","Hobo","Templado"]
[null,null,null,"Huila","Íquira","Cálido Húmedo"]
[null,null,null,"Huila","Íquira","Frio"]
[null,null,null,"Huila","Íquira","Templado"]
[null,null,null,"Huila","Isnos","Frio"]
[null,null,null,"Huila","Isnos","Templado"]
[null,null,null,"Huila","La Argentina","Frio"]
[null,null,null,"Huila","La Argentina","Templado"]
[null,null,null,"Huila","La Plata","Frio"]
[null,null,null,"Huila","La Plata","Templado"]
[null,null,null,"Huila","Nátaga","Frio"]
[null,null,null,"Huila","Nátaga","Templado"]
[null,null,null,"Huila","Neiva","Cálido Húmedo"]
[null,null,null,"Huila","Neiva","Cálido Seco"]
[null,null,null,"Huila","Neiva","Frio"]
[null,null,null,"Huila","Neiva","Templado"]
[null,null,null,"Huila","Oporapa","Frio"]
[null,null,null,"Huila","Oporapa","Templado"]
[null,null,null,"Huila","Paicol","Cálido Húmedo"]
[null,null,null,"Huila","Paicol","Templado"]
[null,null,null,"Huila","Palermo","Cálido Húmedo"]
[null,null,null,"Huila","Palermo","Cálido Seco"]
[null,null,null,"Huila","Palermo","Frio"]
[null,null,null,"Huila","Palermo","Templado"]
[null,null,null,"Huila","Palestina","Frio"]
[null,null,null,"Huila","Palestina","Templado"]
[null,null,null,"Huila","Pital","Cálido Húmedo"]
[null,null,null,"Huila","Pital","Templado"]
[null,null,null,"Huila","Pitalito","Frio"]
[null,null,null,"Huila","Pitalito","Templado"]
[null,null,null,"Huila","Rivera","Cálido Seco"]
[null,null,null,"Huila","Rivera","Templado"]
[null,null,null,"Huila","Saladoblanco","Frio"]
[null,null,null,"Huila","Saladoblanco","Templado"]
[null,null,null,"Huila","San Agustín","Frio"]
[null,null,null,"Huila","San Agustín","Templado"]
[null,null,null,"Huila","Santa María","Cálido Húmedo"]
[null,null,null,"Huila","Santa María","Frio"]
[null,null,null,"Huila","Santa María","Templado"]
[null,null,null,"Huila","Suaza","Frio"]
[null,null,null,"Huila","Suaza","Templado"]
[null,null,null,"Huila","Tarqui","Cálido Húmedo"]
[null,null,null,"Huila","Tarqui","Frio"]
[null,null,null,"Huila","Tarqui","Templado"]
[null,null,null,"Huila","Tello","Cálido Húmedo"]
[null,null,null,"Huila","Tello","Cálido Seco"]
[null,null,null,"Huila","Tello","Frio"]
[null,null,null,"Huila","Tello","Templado"]
[null,null,null,"Huila","Teruel","Cálido Húmedo"]
[null,null,null,"Huila","Teruel","Cálido Seco"]
[null,null,null,"Huila","Teruel","Frio"]
[null,null,null,"Huila","Teruel","Templado"]
[null,null,null,"Huila","Tesalia","Cálido Húmedo"]
[null,null,null,"Huila","Tesalia","Frio"]
[null,null,null,"Huila","Tesalia","Templado"]
[null,null,null,"Huila","Timaná","Cálido Húmedo"]
[null,null,null,"Huila","Timaná","Templado"]
[null,null,null,"Huila","Villavieja","Cálido Seco"]
[null,null,null,"Huila","Villavieja","Templado"]
[null,null,null,"Huila","Yaguará","Cálido Húmedo"]
[null,null,null,"Huila","Yaguará","Cálido Seco"]
[null,null,null,"Huila","Yaguará","Templado"]
[null,null,null,"La Guajira","Albania","Cálido Húmedo"]
[null,null,null,"La Guajira","Albania","Cálido Seco"]
[null,null,null,"La Guajira","Barrancas","Cálido Seco"]
[null,null,null,"La Guajira","Barrancas","Templado"]
[null,null,null,"La Guajira","Dibulla","Cálido Húmedo"]
[null,null,null,"La Guajira","Dibulla","Frio"]
[null,null,null,"La Guajira","Dibulla","Templado"]
[null,null,null,"La Guajira","Distracción","Cálido Seco"]
[null,null,null,"La Guajira","El Molino","Cálido Seco"]
[null,null,null,"La Guajira","El Molino","Templado"]
[null,null,null,"La Guajira","Fonseca","Cálido Seco"]
[null,null,null,"La Guajira","Fonseca","Templado"]
[null,null,null,"La Guajira","Hatonuevo","Cálido Seco"]
[null,null,null,"La Guajira","La Jagua Del Pilar","Cálido Húmedo"]
[null,null,null,"La Guajira","La Jagua Del Pilar","Cálido Seco"]
[null,null,null,"La Guajira","La Jagua Del Pilar","Frio"]
[null,null,null,"La Guajira","La Jagua Del Pilar","Templado"]
[null,null,null,"La Guajira","Maicao","Cálido Húmedo"]
[null,null,null,"La Guajira","Maicao","Cálido Seco"]
[null,null,null,"La Guajira","Manaure","Cálido Seco"]
[null,null,null,"La Guajira","Riohacha","Cálido Húmedo"]
[null,null,null,"La Guajira","Riohacha","Cálido Seco"]
[null,null,null,"La Guajira","Riohacha","Frio"]
[null,null,null,"La Guajira","Riohacha","Templado"]
[null,null,null,"La Guajira","San Juan Del Cesar","Cálido Húmedo"]
[null,null,null,"La Guajira","San Juan Del Cesar","Cálido Seco"]
[null,null,null,"La Guajira","San Juan Del Cesar","Frio"]
[null,null,null,"La Guajira","San Juan Del Cesar","Templado"]
[null,null,null,"La Guajira","Uribia","Cálido Húmedo"]
[null,null,null,"La Guajira","Uribia","Cálido Seco"]
[null,null,null,"La Guajira","Urumita","Cálido Húmedo"]
[null,null,null,"La Guajira","Urumita","Cálido Seco"]
[null,null,null,"La Guajira","Urumita","Frio"]
[null,null,null,"La Guajira","Urumita","Templado"]
[null,null,null,"La Guajira","Villanueva","Cálido Seco"]
[null,null,null,"La Guajira","Villanueva","Templado"]
[null,null,null,"Magdalena","Algarrobo","Cálido Húmedo"]
[null,null,null,"Magdalena","Aracataca","Cálido Húmedo"]
[null,null,null,"Magdalena","Aracataca","Frio"]
[null,null,null,"Magdalena","Aracataca","Templado"]
[null,null,null,"Magdalena","Ariguaní","Cálido Húmedo"]
[null,null,null,"Magdalena","Ariguaní","Cálido Seco"]
[null,null,null,"Magdalena","Cerro De San Antonio","Cálido Húmedo"]
[null,null,null,"Magdalena","Chivolo","Cálido Húmedo"]
[null,null,null,"Magdalena","Ciénaga","Cálido Húmedo"]
[null,null,null,"Magdalena","Ciénaga","Cálido Seco"]
[null,null,null,"Magdalena","Ciénaga","Frio"]
[null,null,null,"Magdalena","Ciénaga","Templado"]
[null,null,null,"Magdalena","Concordia","Cálido Húmedo"]
[null,null,null,"Magdalena","El Banco","Cálido Húmedo"]
[null,null,null,"Magdalena","El Banco","Cálido Seco"]
[null,null,null,"Magdalena","El Piñón","Cálido Húmedo"]
[null,null,null,"Magdalena","El Retén","Cálido Húmedo"]
[null,null,null,"Magdalena","Fundación","Cálido Húmedo"]
[null,null,null,"Magdalena","Fundación","Frio"]
[null,null,null,"Magdalena","Fundación","Templado"]
[null,null,null,"Magdalena","Guamal","Cálido Húmedo"]
[null,null,null,"Magdalena","Nueva Granada","Cálido Húmedo"]
[null,null,null,"Magdalena","Pedraza","Cálido Húmedo"]
[null,null,null,"Magdalena","Pijiño Del Carmen","Cálido Húmedo"]
[null,null,null,"Magdalena","Pijiño Del Carmen","Cálido Seco"]
[null,null,null,"Magdalena","Pivijay","Cálido Húmedo"]
[null,null,null,"Magdalena","Plato","Cálido Húmedo"]
[null,null,null,"Magdalena","Puebloviejo","Cálido Húmedo"]
[null,null,null,"Magdalena","Remolino","Cálido Húmedo"]
[null,null,null,"Magdalena","Sabanas De San Ángel","Cálido Húmedo"]
[null,null,null,"Magdalena","Sabanas De San Ángel","Cálido Seco"]
[null,null,null,"Magdalena","Salamina","Cálido Húmedo"]
[null,null,null,"Magdalena","San Sebastián De Buenavista","Cálido Húmedo"]
[null,null,null,"Magdalena","San Zenón","Cálido Húmedo"]
[null,null,null,"Magdalena","Santa Ana","Cálido Húmedo"]
[null,null,null,"Magdalena","Santa Ana","Cálido Seco"]
[null,null,null,"Magdalena","Santa Bárbara De Pinto","Cálido Húmedo"]
[null,null,null,"Magdalena","Santa Marta","Cálido Húmedo"]
[null,null,null,"Magdalena","Santa Marta","Cálido Seco"]
[null,null,null,"Magdalena","Santa Marta","Frio"]
[null,null,null,"Magdalena","Santa Marta","Templado"]
[null,null,null,"Magdalena","Sitionuevo","Cálido Húmedo"]
[null,null,null,"Magdalena","Tenerife","Cálido Húmedo"]
[null,null,null,"Magdalena","Zapayán","Cálido Húmedo"]
[null,null,null,"Magdalena","Zona Bananera","Cálido Húmedo"]
[null,null,null,"Magdalena","Zona Bananera","Templado"]
[null,null,null,"Meta","Acacías","Cálido Húmedo"]
[null,null,null,"Meta","Acacías","Frio"]
[null,null,null,"Meta","Acacías","Templado"]
[null,null,null,"Meta","Barranca De Upía","Cálido Húmedo"]
[null,null,null,"Meta","Cabuyaro","Cálido Húmedo"]
[null,null,null,"Meta","Castilla La Nueva","Cálido Húmedo"]
[null,null,null,"Meta","Cubarral","Cálido Húmedo"]
[null,null,null,"Meta","Cubarral","Frio"]
[null,null,null,"Meta","Cubarral","Templado"]
[null,null,null,"Meta","Cumaral","Cálido Húmedo"]
[null,null,null,"Meta","Cumaral","Cálido Húmedo"]
[null,null,null,"Meta","Cumaral","Cálido Húmedo"]
[null,null,null,"Meta","Cumaral","Templado"]
[null,null,null,"Meta","Cumaral","Templado"]
[null,null,null,"Meta","Cumaral","Templado"]
[null,null,null,"Meta","Cumaral","Templado"]
[null,null,null,"Meta","Cumaral","Templado"]
[null,null,null,"Meta","Cumaral","Templado"]
[null,null,null,"Meta","El Calvario","Frio"]
[null,null,null,"Meta","El Calvario","Templado"]
[null,null,null,"Meta","El Castillo","Cálido Húmedo"]
[null,null,null,"Meta","El Castillo","Frio"]
[null,null,null,"Meta","El Castillo","Templado"]
[null,null,null,"Meta","El Dorado","Cálido Húmedo"]
[null,null,null,"Meta","El Dorado","Templado"]
[null,null,null,"Meta","Fuente De Oro","Cálido Húmedo"]
[null,null,null,"Meta","Granada","Cálido Húmedo"]
[null,null,null,"Meta","Guamal","Cálido Húmedo"]
[null,null,null,"Meta","Guamal","Frio"]
[null,null,null,"Meta","Guamal","Templado"]
[null,null,null,"Meta","La Macarena","Cálido Húmedo"]
[null,null,null,"Meta","La Macarena","Templado"]
[null,null,null,"Meta","Lejanías","Cálido Húmedo"]
[null,null,null,"Meta","Lejanías","Frio"]
[null,null,null,"Meta","Lejanías","Templado"]
[null,null,null,"Meta","Mapiripán","Cálido Húmedo"]
[null,null,null,"Meta","Mesetas","Cálido Húmedo"]
[null,null,null,"Meta","Mesetas","Frio"]
[null,null,null,"Meta","Mesetas","Templado"]
[null,null,null,"Meta","Puerto Concordia","Cálido Húmedo"]
[null,null,null,"Meta","Puerto Gaitán","Cálido Húmedo"]
[null,null,null,"Meta","Puerto Lleras","Cálido Húmedo"]
[null,null,null,"Meta","Puerto López","Cálido Húmedo"]
[null,null,null,"Meta","Puerto Rico","Cálido Húmedo"]
[null,null,null,"Meta","Restrepo","Cálido Húmedo"]
[null,null,null,"Meta","Restrepo","Frio"]
[null,null,null,"Meta","Restrepo","Templado"]
[null,null,null,"Meta","San Carlos De Guaroa","Cálido Húmedo"]
[null,null,null,"Meta","San Juan De Arama","Cálido Húmedo"]
[null,null,null,"Meta","San Juan De Arama","Templado"]
[null,null,null,"Meta","San Juanito","Frio"]
[null,null,null,"Meta","San Juanito","Templado"]
[null,null,null,"Meta","San Martín","Cálido Húmedo"]
[null,null,null,"Meta","Uribe","Cálido Húmedo"]
[null,null,null,"Meta","Uribe","Frio"]
[null,null,null,"Meta","Uribe","Templado"]
[null,null,null,"Meta","Villavicencio","Cálido Húmedo"]
[null,null,null,"Meta","Villavicencio","Frio"]
[null,null,null,"Meta","Villavicencio","Templado"]
[null,null,null,"Meta","Vistahermosa","Cálido Húmedo"]
[null,null,null,"Meta","Vistahermosa","Templado"]
[null,null,null,"N/A","Area En Litigio Cauca - Huila","Frio"]
[null,null,null,"N/A","Area En Litigio Cauca - Huila","Templado"]
[null,null,null,"Nariño","Albán","Frio"]
[null,null,null,"Nariño","Albán","Templado"]
[null,null,null,"Nariño","Aldana","Frio"]
[null,null,null,"Nariño","Ancuya","Frio"]
[null,null,null,"Nariño","Ancuya","Templado"]
[null,null,null,"Nariño","Arboleda","Frio"]
[null,null,null,"Nariño","Arboleda","Templado"]
[null,null,null,"Nariño","Barbacoas","Cálido Húmedo"]
[null,null,null,"Nariño","Barbacoas","Templado"]
[null,null,null,"Nariño","Belén","Frio"]
[null,null,null,"Nariño","Belén","Templado"]
[null,null,null,"Nariño","Buesaco","Frio"]
[null,null,null,"Nariño","Buesaco","Templado"]
[null,null,null,"Nariño","Chachagüí","Cálido Húmedo"]
[null,null,null,"Nariño","Chachagüí","Frio"]
[null,null,null,"Nariño","Chachagüí","Templado"]
[null,null,null,"Nariño","Colón","Frio"]
[null,null,null,"Nariño","Colón","Templado"]
[null,null,null,"Nariño","Consacá","Frio"]
[null,null,null,"Nariño","Consacá","Templado"]
[null,null,null,"Nariño","Contadero","Frio"]
[null,null,null,"Nariño","Contadero","Templado"]
[null,null,null,"Nariño","Córdoba","Frio"]
[null,null,null,"Nariño","Córdoba","Templado"]
[null,null,null,"Nariño","Cuaspud","Frio"]
[null,null,null,"Nariño","Cumbal","Frio"]
[null,null,null,"Nariño","Cumbal","Templado"]
[null,null,null,"Nariño","Cumbitara","Cálido Húmedo"]
[null,null,null,"Nariño","Cumbitara","Frio"]
[null,null,null,"Nariño","Cumbitara","Templado"]
[null,null,null,"Nariño","El Charco","Cálido Húmedo"]
[null,null,null,"Nariño","El Charco","Frio"]
[null,null,null,"Nariño","El Charco","Templado"]
[null,null,null,"Nariño","El Peñol","Cálido Húmedo"]
[null,null,null,"Nariño","El Peñol","Templado"]
[null,null,null,"Nariño","El Rosario","Cálido Húmedo"]
[null,null,null,"Nariño","El Rosario","Frio"]
[null,null,null,"Nariño","El Rosario","Templado"]
[null,null,null,"Nariño","El Tablón","Frio"]
[null,null,null,"Nariño","El Tablón","Templado"]
[null,null,null,"Nariño","El Tambo","Cálido Húmedo"]
[null,null,null,"Nariño","El Tambo","Frio"]
[null,null,null,"Nariño","El Tambo","Templado"]
[null,null,null,"Nariño","Francisco Pizarro","Cálido Húmedo"]
[null,null,null,"Nariño","Funes","Frio"]
[null,null,null,"Nariño","Funes","Templado"]
[null,null,null,"Nariño","Guachucal","Frio"]
[null,null,null,"Nariño","Guaitarilla","Frio"]
[null,null,null,"Nariño","Guaitarilla","Templado"]
[null,null,null,"Nariño","Gualmatán","Frio"]
[null,null,null,"Nariño","Iles","Frio"]
[null,null,null,"Nariño","Iles","Templado"]
[null,null,null,"Nariño","Imués","Frio"]
[null,null,null,"Nariño","Imués","Templado"]
[null,null,null,"Nariño","Ipiales","Cálido Húmedo"]
[null,null,null,"Nariño","Ipiales","Frio"]
[null,null,null,"Nariño","Ipiales","Templado"]
[null,null,null,"Nariño","La Cruz","Frio"]
[null,null,null,"Nariño","La Cruz","Templado"]
[null,null,null,"Nariño","La Florida","Frio"]
[null,null,null,"Nariño","La Florida","Templado"]
[null,null,null,"Nariño","La Llanada","Cálido Húmedo"]
[null,null,null,"Nariño","La Llanada","Frio"]
[null,null,null,"Nariño","La Llanada","Templado"]
[null,null,null,"Nariño","La Tola","Cálido Húmedo"]
[null,null,null,"Nariño","La Unión","Cálido Húmedo"]
[null,null,null,"Nariño","La Unión","Frio"]
[null,null,null,"Nariño","La Unión","Templado"]
[null,null,null,"Nariño","Leiva","Cálido Húmedo"]
[null,null,null,"Nariño","Leiva","Frio"]
[null,null,null,"Nariño","Leiva","Templado"]
[null,null,null,"Nariño","Linares","Cálido Húmedo"]
[null,null,null,"Nariño","Linares","Frio"]
[null,null,null,"Nariño","Linares","Templado"]
[null,null,null,"Nariño","Los Andes","Cálido Húmedo"]
[null,null,null,"Nariño","Los Andes","Frio"]
[null,null,null,"Nariño","Los Andes","Templado"]
[null,null,null,"Nariño","Magüí","Cálido Húmedo"]
[null,null,null,"Nariño","Mallama","Frio"]
[null,null,null,"Nariño","Mallama","Templado"]
[null,null,null,"Nariño","Mosquera","Cálido Húmedo"]
[null,null,null,"Nariño","Nariño","Frio"]
[null,null,null,"Nariño","Nariño","Templado"]
[null,null,null,"Nariño","Olaya Herrera","Cálido Húmedo"]
[null,null,null,"Nariño","Ospina","Frio"]
[null,null,null,"Nariño","Ospina","Templado"]
[null,null,null,"Nariño","Pasto","Frio"]
[null,null,null,"Nariño","Pasto","Templado"]
[null,null,null,"Nariño","Policarpa","Cálido Húmedo"]
[null,null,null,"Nariño","Policarpa","Templado"]
[null,null,null,"Nariño","Potosí","Frio"]
[null,null,null,"Nariño","Potosí","Templado"]
[null,null,null,"Nariño","Providencia","Frio"]
[null,null,null,"Nariño","Providencia","Templado"]
[null,null,null,"Nariño","Puerres","Frio"]
[null,null,null,"Nariño","Puerres","Templado"]
[null,null,null,"Nariño","Pupiales","Frio"]
[null,null,null,"Nariño","Ricaurte","Cálido Húmedo"]
[null,null,null,"Nariño","Ricaurte","Frio"]
[null,null,null,"Nariño","Ricaurte","Templado"]
[null,null,null,"Nariño","Roberto Payán","Cálido Húmedo"]
[null,null,null,"Nariño","Samaniego","Cálido Húmedo"]
[null,null,null,"Nariño","Samaniego","Frio"]
[null,null,null,"Nariño","Samaniego","Templado"]
[null,null,null,"Nariño","San Bernardo","Frio"]
[null,null,null,"Nariño","San Bernardo","Templado"]
[null,null,null,"Nariño","San Lorenzo","Cálido Húmedo"]
[null,null,null,"Nariño","San Lorenzo","Frio"]
[null,null,null,"Nariño","San Lorenzo","Templado"]
[null,null,null,"Nariño","San Pablo","Frio"]
[null,null,null,"Nariño","San Pablo","Templado"]
[null,null,null,"Nariño","San Pedro De Cartago","Frio"]
[null,null,null,"Nariño","San Pedro De Cartago","Templado"]
[null,null,null,"Nariño","Sandoná","Frio"]
[null,null,null,"Nariño","Sandoná","Templado"]
[null,null,null,"Nariño","Santa Bárbara","Cálido Húmedo"]
[null,null,null,"Nariño","Santa Bárbara","Templado"]
[null,null,null,"Nariño","Santa Cruz","Cálido Húmedo"]
[null,null,null,"Nariño","Santa Cruz","Frio"]
[null,null,null,"Nariño","Santa Cruz","Templado"]
[null,null,null,"Nariño","Sapuyes","Frio"]
[null,null,null,"Nariño","Taminango","Cálido Húmedo"]
[null,null,null,"Nariño","Taminango","Templado"]
[null,null,null,"Nariño","Tangua","Frio"]
[null,null,null,"Nariño","Tangua","Templado"]
[null,null,null,"Nariño","Tumaco","Cálido Húmedo"]
[null,null,null,"Nariño","Tumaco","Templado"]
[null,null,null,"Nariño","Túquerres","Frio"]
[null,null,null,"Nariño","Túquerres","Templado"]
[null,null,null,"Nariño","Yacuanquer","Frio"]
[null,null,null,"Nariño","Yacuanquer","Templado"]
[null,null,null,"Norte de Santander","Ábrego","Cálido Húmedo"]
[null,null,null,"Norte de Santander","Ábrego","Frio"]
[null,null,null,"Norte de Santander","Ábrego","Templado"]
[null,null,null,"Norte de Santander","Arboledas","Cálido Húmedo"]
[null,null,null,"Norte de Santander","Arboledas","Frio"]
[null,null,null,"Norte de Santander","Arboledas","Templado"]
[null,null,null,"Norte de Santander","Bochalema","Cálido Húmedo"]
[null,null,null,"Norte de Santander","Bochalema","Frio"]
[null,null,null,"Norte de Santander","Bochalema","Templado"]
[null,null,null,"Norte de Santander","Bucarasica","Cálido Húmedo"]
[null,null,null,"Norte de Santander","Bucarasica","Frio"]
[null,null,null,"Norte de Santander","Bucarasica","Templado"]
[null,null,null,"Norte de Santander","Cáchira","Cálido Húmedo"]
[null,null,null,"Norte de Santander","Cáchira","Frio"]
[null,null,null,"Norte de Santander","Cáchira","Templado"]
[null,null,null,"Norte de Santander","Cácota","Frio"]
[null,null,null,"Norte de Santander","Cácota","Templado"]
[null,null,null,"Norte de Santander","Chinácota","Frio"]
[null,null,null,"Norte de Santander","Chinácota","Templado"]
[null,null,null,"Norte de Santander","Chitagá","Frio"]
[null,null,null,"Norte de Santander","Chitagá","Templado"]
[null,null,null,"Norte de Santander","Convención","Cálido Húmedo"]
[null,null,null,"Norte de Santander","Convención","Templado"]
[null,null,null,"Norte de Santander","Cúcuta","Cálido Húmedo"]
[null,null,null,"Norte de Santander","Cúcuta","Cálido Seco"]
[null,null,null,"Norte de Santander","Cúcuta","Templado"]
[null,null,null,"Norte de Santander","Cucutilla","Frio"]
[null,null,null,"Norte de Santander","Cucutilla","Templado"]
[null,null,null,"Norte de Santander","Durania","Cálido Húmedo"]
[null,null,null,"Norte de Santander","Durania","Cálido Seco"]
[null,null,null,"Norte de Santander","Durania","Templado"]
[null,null,null,"Norte de Santander","El Carmen","Cálido Húmedo"]
[null,null,null,"Norte de Santander","El Carmen","Templado"]
[null,null,null,"Norte de Santander","El Tarra","Cálido Húmedo"]
[null,null,null,"Norte de Santander","El Tarra","Templado"]
[null,null,null,"Norte de Santander","El Zulia","Cálido Húmedo"]
[null,null,null,"Norte de Santander","El Zulia","Cálido Seco"]
[null,null,null,"Norte de Santander","El Zulia","Templado"]
[null,null,null,"Norte de Santander","Gramalote","Cálido Húmedo"]
[null,null,null,"Norte de Santander","Gramalote","Frio"]
[null,null,null,"Norte de Santander","Gramalote","Templado"]
[null,null,null,"Norte de Santander","Hacarí","Cálido Húmedo"]
[null,null,null,"Norte de Santander","Hacarí","Templado"]
[null,null,null,"Norte de Santander","Herrán","Frio"]
[null,null,null,"Norte de Santander","Herrán","Templado"]
[null,null,null,"Norte de Santander","La Esperanza","Cálido Húmedo"]
[null,null,null,"Norte de Santander","La Esperanza","Frio"]
[null,null,null,"Norte de Santander","La Esperanza","Templado"]
[null,null,null,"Norte de Santander","La Playa","Cálido Húmedo"]
[null,null,null,"Norte de Santander","La Playa","Templado"]
[null,null,null,"Norte de Santander","Labateca","Frio"]
[null,null,null,"Norte de Santander","Labateca","Templado"]
[null,null,null,"Norte de Santander","Los Patios","Cálido Húmedo"]
[null,null,null,"Norte de Santander","Los Patios","Cálido Seco"]
[null,null,null,"Norte de Santander","Los Patios","Frio"]
[null,null,null,"Norte de Santander","Los Patios","Templado"]
[null,null,null,"Norte de Santander","Lourdes","Cálido Húmedo"]
[null,null,null,"Norte de Santander","Lourdes","Frio"]
[null,null,null,"Norte de Santander","Lourdes","Templado"]
[null,null,null,"Norte de Santander","Mutiscua","Frio"]
[null,null,null,"Norte de Santander","Mutiscua","Templado"]
[null,null,null,"Norte de Santander","Ocaña","Cálido Húmedo"]
[null,null,null,"Norte de Santander","Ocaña","Templado"]
[null,null,null,"Norte de Santander","Pamplona","Frio"]
[null,null,null,"Norte de Santander","Pamplona","Templado"]
[null,null,null,"Norte de Santander","Pamplonita","Frio"]
[null,null,null,"Norte de Santander","Pamplonita","Templado"]
[null,null,null,"Norte de Santander","Puerto Santander","Cálido Húmedo"]
[null,null,null,"Norte de Santander","Ragonvalia","Frio"]
[null,null,null,"Norte de Santander","Ragonvalia","Templado"]
[null,null,null,"Norte de Santander","Salazar","Cálido Húmedo"]
[null,null,null,"Norte de Santander","Salazar","Frio"]
[null,null,null,"Norte de Santander","Salazar","Templado"]
[null,null,null,"Norte de Santander","San Calixto","Cálido Húmedo"]
[null,null,null,"Norte de Santander","San Calixto","Templado"]
[null,null,null,"Norte de Santander","San Cayetano","Cálido Húmedo"]
[null,null,null,"Norte de Santander","San Cayetano","Cálido Seco"]
[null,null,null,"Norte de Santander","San Cayetano","Templado"]
[null,null,null,"Norte de Santander","Santiago","Cálido Húmedo"]
[null,null,null,"Norte de Santander","Santiago","Templado"]
[null,null,null,"Norte de Santander","Sardinata","Cálido Húmedo"]
[null,null,null,"Norte de Santander","Sardinata","Templado"]
[null,null,null,"Norte de Santander","Silos","Frio"]
[null,null,null,"Norte de Santander","Silos","Templado"]
[null,null,null,"Norte de Santander","Teorama","Cálido Húmedo"]
[null,null,null,"Norte de Santander","Teorama","Templado"]
[null,null,null,"Norte de Santander","Tibú","Cálido Húmedo"]
[null,null,null,"Norte de Santander","Tibú","Templado"]
[null,null,null,"Norte de Santander","Toledo","Cálido Húmedo"]
[null,null,null,"Norte de Santander","Toledo","Frio"]
[null,null,null,"Norte de Santander","Toledo","Templado"]
[null,null,null,"Norte de Santander","Villa Caro","Frio"]
[null,null,null,"Norte de Santander","Villa Caro","Templado"]
[null,null,null,"Norte de Santander","Villa Del Rosario","Cálido Húmedo"]
[null,null,null,"Norte de Santander","Villa Del Rosario","Cálido Húmedo"]
[null,null,null,"Norte de Santander","Villa Del Rosario","Cálido Seco"]
[null,null,null,"Norte de Santander","Villa Del Rosario","Cálido Seco"]
[null,null,null,"Norte de Santander","Villa Del Rosario","Templado"]
[null,null,null,"Norte de Santander","Villa Del Rosario","Templado"]
[null,null,null,"Norte de Santander","Villa Del Rosario","Templado"]
[null,null,null,"Norte de Santander","Villa Del Rosario","Templado"]
[null,null,null,"Norte de Santander","Villa Del Rosario","Templado"]
[null,null,null,"Norte de Santander","Villa Del Rosario","Templado"]
[null,null,null,"Norte de Santander","Villa Del Rosario","Templado"]
[null,null,null,"Norte de Santander","Villa Del Rosario","Templado"]
[null,null,null,"Putumayo","Colón","Frio"]
[null,null,null,"Putumayo","Leguízamo","Cálido Húmedo"]
[null,null,null,"Putumayo","Mocoa","Cálido Húmedo"]
[null,null,null,"Putumayo","Mocoa","Frio"]
[null,null,null,"Putumayo","Mocoa","Templado"]
[null,null,null,"Putumayo","Orito","Cálido Húmedo"]
[null,null,null,"Putumayo","Orito","Frio"]
[null,null,null,"Putumayo","Orito","Templado"]
[null,null,null,"Putumayo","Puerto Asís","Cálido Húmedo"]
[null,null,null,"Putumayo","Puerto Caicedo","Cálido Húmedo"]
[null,null,null,"Putumayo","Puerto Guzmán","Cálido Húmedo"]
[null,null,null,"Putumayo","San Francisco","Frio"]
[null,null,null,"Putumayo","San Francisco","Templado"]
[null,null,null,"Putumayo","San Miguel","Cálido Húmedo"]
[null,null,null,"Putumayo","Santiago","Frio"]
[null,null,null,"Putumayo","Santiago","Templado"]
[null,null,null,"Putumayo","Sibundoy","Frio"]
[null,null,null,"Putumayo","Valle Del Guamuez","Cálido Húmedo"]
[null,null,null,"Putumayo","Valle Del Guamuez","Templado"]
[null,null,null,"Putumayo","Villagarzón","Cálido Húmedo"]
[null,null,null,"Putumayo","Villagarzón","Frio"]
[null,null,null,"Putumayo","Villagarzón","Templado"]
[null,null,null,"Quindío","Armenia","Templado"]
[null,null,null,"Quindío","Buenavista","Templado"]
[null,null,null,"Quindío","Calarcá","Frio"]
[null,null,null,"Quindío","Calarcá","Templado"]
[null,null,null,"Quindío","Circasia","Templado"]
[null,null,null,"Quindío","Córdoba","Frio"]
[null,null,null,"Quindío","Córdoba","Templado"]
[null,null,null,"Quindío","Filandia","Frio"]
[null,null,null,"Quindío","Filandia","Templado"]
[null,null,null,"Quindío","Génova","Frio"]
[null,null,null,"Quindío","Génova","Templado"]
[null,null,null,"Quindío","La Tebaida","Templado"]
[null,null,null,"Quindío","Montenegro","Templado"]
[null,null,null,"Quindío","Pijao","Frio"]
[null,null,null,"Quindío","Pijao","Templado"]
[null,null,null,"Quindío","Quimbaya","Templado"]
[null,null,null,"Quindío","Salento","Frio"]
[null,null,null,"Quindío","Salento","Templado"]
[null,null,null,"Risaralda","Apía","Frio"]
[null,null,null,"Risaralda","Apía","Templado"]
[null,null,null,"Risaralda","Balboa","Templado"]
[null,null,null,"Risaralda","Belén De Umbría","Templado"]
[null,null,null,"Risaralda","Dosquebradas","Templado"]
[null,null,null,"Risaralda","Guática","Frio"]
[null,null,null,"Risaralda","Guática","Templado"]
[null,null,null,"Risaralda","La Celia","Frio"]
[null,null,null,"Risaralda","La Celia","Templado"]
[null,null,null,"Risaralda","La Virginia","Templado"]
[null,null,null,"Risaralda","Marsella","Templado"]
[null,null,null,"Risaralda","Mistrató","Cálido Húmedo"]
[null,null,null,"Risaralda","Mistrató","Frio"]
[null,null,null,"Risaralda","Mistrató","Templado"]
[null,null,null,"Risaralda","Pereira","Frio"]
[null,null,null,"Risaralda","Pereira","Templado"]
[null,null,null,"Risaralda","Pueblo Rico","Cálido Húmedo"]
[null,null,null,"Risaralda","Pueblo Rico","Frio"]
[null,null,null,"Risaralda","Pueblo Rico","Templado"]
[null,null,null,"Risaralda","Quinchía","Cálido Húmedo"]
[null,null,null,"Risaralda","Quinchía","Templado"]
[null,null,null,"Risaralda","Santa Rosa De Cabal","Frio"]
[null,null,null,"Risaralda","Santa Rosa De Cabal","Templado"]
[null,null,null,"Risaralda","Santuario","Frio"]
[null,null,null,"Risaralda","Santuario","Templado"]
[null,null,null,"Santander","Aguada","Templado"]
[null,null,null,"Santander","Albania","Frio"]
[null,null,null,"Santander","Albania","Templado"]
[null,null,null,"Santander","Aratoca","Cálido Húmedo"]
[null,null,null,"Santander","Aratoca","Templado"]
[null,null,null,"Santander","Barbosa","Templado"]
[null,null,null,"Santander","Barichara","Cálido Húmedo"]
[null,null,null,"Santander","Barichara","Templado"]
[null,null,null,"Santander","Barrancabermeja","Cálido Húmedo"]
[null,null,null,"Santander","Betulia","Cálido Húmedo"]
[null,null,null,"Santander","Betulia","Templado"]
[null,null,null,"Santander","Bolívar","Cálido Húmedo"]
[null,null,null,"Santander","Bolívar","Frio"]
[null,null,null,"Santander","Bolívar","Templado"]
[null,null,null,"Santander","Bucaramanga","Cálido Húmedo"]
[null,null,null,"Santander","Bucaramanga","Templado"]
[null,null,null,"Santander","Cabrera","Cálido Húmedo"]
[null,null,null,"Santander","Cabrera","Cálido Seco"]
[null,null,null,"Santander","Cabrera","Templado"]
[null,null,null,"Santander","California","Frio"]
[null,null,null,"Santander","California","Templado"]
[null,null,null,"Santander","Capitanejo","Frio"]
[null,null,null,"Santander","Capitanejo","Templado"]
[null,null,null,"Santander","Carcasí","Frio"]
[null,null,null,"Santander","Carcasí","Templado"]
[null,null,null,"Santander","Cepitá","Cálido Húmedo"]
[null,null,null,"Santander","Cepitá","Frio"]
[null,null,null,"Santander","Cepitá","Templado"]
[null,null,null,"Santander","Cerrito","Frio"]
[null,null,null,"Santander","Cerrito","Templado"]
[null,null,null,"Santander","Charalá","Frio"]
[null,null,null,"Santander","Charalá","Templado"]
[null,null,null,"Santander","Charta","Frio"]
[null,null,null,"Santander","Charta","Templado"]
[null,null,null,"Santander","Chima","Cálido Húmedo"]
[null,null,null,"Santander","Chima","Cálido Seco"]
[null,null,null,"Santander","Chima","Frio"]
[null,null,null,"Santander","Chima","Templado"]
[null,null,null,"Santander","Chipatá","Templado"]
[null,null,null,"Santander","Cimitarra","Cálido Húmedo"]
[null,null,null,"Santander","Cimitarra","Templado"]
[null,null,null,"Santander","Concepción","Frio"]
[null,null,null,"Santander","Concepción","Templado"]
[null,null,null,"Santander","Confines","Templado"]
[null,null,null,"Santander","Contratación","Cálido Húmedo"]
[null,null,null,"Santander","Contratación","Frio"]
[null,null,null,"Santander","Contratación","Templado"]
[null,null,null,"Santander","Coromoro","Frio"]
[null,null,null,"Santander","Coromoro","Templado"]
[null,null,null,"Santander","Curití","Cálido Húmedo"]
[null,null,null,"Santander","Curití","Templado"]
[null,null,null,"Santander","El Carmen","Cálido Húmedo"]
[null,null,null,"Santander","El Carmen","Frio"]
[null,null,null,"Santander","El Carmen","Templado"]
[null,null,null,"Santander","El Guacamayo","Cálido Húmedo"]
[null,null,null,"Santander","El Guacamayo","Templado"]
[null,null,null,"Santander","El Peñón","Cálido Húmedo"]
[null,null,null,"Santander","El Peñón","Frio"]
[null,null,null,"Santander","El Peñón","Templado"]
[null,null,null,"Santander","El Playón","Cálido Húmedo"]
[null,null,null,"Santander","El Playón","Frio"]
[null,null,null,"Santander","El Playón","Templado"]
[null,null,null,"Santander","Encino","Frio"]
[null,null,null,"Santander","Encino","Templado"]
[null,null,null,"Santander","Enciso","Frio"]
[null,null,null,"Santander","Enciso","Templado"]
[null,null,null,"Santander","Florián","Cálido Húmedo"]
[null,null,null,"Santander","Florián","Frio"]
[null,null,null,"Santander","Florián","Templado"]
[null,null,null,"Santander","Floridablanca","Cálido Húmedo"]
[null,null,null,"Santander","Floridablanca","Frio"]
[null,null,null,"Santander","Floridablanca","Templado"]
[null,null,null,"Santander","Galán","Cálido Húmedo"]
[null,null,null,"Santander","Galán","Cálido Húmedo"]
[null,null,null,"Santander","Galán","Cálido Húmedo"]
[null,null,null,"Santander","Galán","Cálido Húmedo"]
[null,null,null,"Santander","Galán","Cálido Seco"]
[null,null,null,"Santander","Galán","Cálido Seco"]
[null,null,null,"Santander","Galán","Frio"]
[null,null,null,"Santander","Galán","Frio"]
[null,null,null,"Santander","Galán","Templado"]
[null,null,null,"Santander","Galán","Templado"]
[null,null,null,"Santander","Galán","Templado"]
[null,null,null,"Santander","Galán","Templado"]
[null,null,null,"Santander","Galán","Templado"]
[null,null,null,"Santander","Galán","Templado"]
[null,null,null,"Santander","Galán","Templado"]
[null,null,null,"Santander","Galán","Templado"]
[null,null,null,"Santander","Gámbita","Frio"]
[null,null,null,"Santander","Gámbita","Frio"]
[null,null,null,"Santander","Gámbita","Frio"]
[null,null,null,"Santander","Gámbita","Frio"]
[null,null,null,"Santander","Gámbita","Templado"]
[null,null,null,"Santander","Gámbita","Templado"]
[null,null,null,"Santander","Gámbita","Templado"]
[null,null,null,"Santander","Girón","Cálido Húmedo"]
[null,null,null,"Santander","Girón","Cálido Húmedo"]
[null,null,null,"Santander","Girón","Cálido Húmedo"]
[null,null,null,"Santander","Girón","Cálido Húmedo"]
[null,null,null,"Santander","Girón","Cálido Húmedo"]
[null,null,null,"Santander","Girón","Templado"]
[null,null,null,"Santander","Girón","Templado"]
[null,null,null,"Santander","Girón","Templado"]
[null,null,null,"Santander","Girón","Templado"]
[null,null,null,"Santander","Girón","Templado"]
[null,null,null,"Santander","Girón","Templado"]
[null,null,null,"Santander","Girón","Templado"]
[null,null,null,"Santander","Guaca","Frio"]
[null,null,null,"Santander","Guaca","Frio"]
[null,null,null,"Santander","Guaca","Frio"]
[null,null,null,"Santander","Guaca","Frio"]
[null,null,null,"Santander","Guaca","Frio"]
[null,null,null,"Santander","Guaca","Frio"]
[null,null,null,"Santander","Guaca","Templado"]
[null,null,null,"Santander","Guaca","Templado"]
[null,null,null,"Santander","Guaca","Templado"]
[null,null,null,"Santander","Guadalupe","Cálido Húmedo"]
[null,null,null,"Santander","Guadalupe","Cálido Húmedo"]
[null,null,null,"Santander","Guadalupe","Templado"]
[null,null,null,"Santander","Guadalupe","Templado"]
[null,null,null,"Santander","Guadalupe","Templado"]
[null,null,null,"Santander","Guadalupe","Templado"]
[null,null,null,"Santander","Guapotá","Cálido Húmedo"]
[null,null,null,"Santander","Guapotá","Cálido Seco"]
[null,null,null,"Santander","Guapotá","Templado"]
[null,null,null,"Santander","Guapotá","Templado"]
[null,null,null,"Santander","Guapotá","Templado"]
[null,null,null,"Santander","Guavatá","Templado"]
[null,null,null,"Santander","Guavatá","Templado"]
[null,null,null,"Santander","Guavatá","Templado"]
[null,null,null,"Santander","Guavatá","Templado"]
[null,null,null,"Santander","Guavatá","Templado"]
[null,null,null,"Santander","Güepsa","Templado"]
[null,null,null,"Santander","Hato","Cálido Húmedo"]
[null,null,null,"Santander","Hato","Cálido Seco"]
[null,null,null,"Santander","Hato","Frio"]
[null,null,null,"Santander","Hato","Templado"]
[null,null,null,"Santander","Jesús María","Frio"]
[null,null,null,"Santander","Jesús María","Templado"]
[null,null,null,"Santander","Jordán","Cálido Húmedo"]
[null,null,null,"Santander","Jordán","Templado"]
[null,null,null,"Santander","La Belleza","Cálido Húmedo"]
[null,null,null,"Santander","La Belleza","Frio"]
[null,null,null,"Santander","La Belleza","Templado"]
[null,null,null,"Santander","La Paz","Cálido Húmedo"]
[null,null,null,"Santander","La Paz","Templado"]
[null,null,null,"Santander","Landázuri","Cálido Húmedo"]
[null,null,null,"Santander","Landázuri","Templado"]
[null,null,null,"Santander","Lebrija","Cálido Húmedo"]
[null,null,null,"Santander","Lebrija","Templado"]
[null,null,null,"Santander","Los Santos","Cálido Húmedo"]
[null,null,null,"Santander","Los Santos","Templado"]
[null,null,null,"Santander","Macaravita","Frio"]
[null,null,null,"Santander","Macaravita","Templado"]
[null,null,null,"Santander","Málaga","Frio"]
[null,null,null,"Santander","Málaga","Templado"]
[null,null,null,"Santander","Matanza","Frio"]
[null,null,null,"Santander","Matanza","Templado"]
[null,null,null,"Santander","Mogotes","Cálido Húmedo"]
[null,null,null,"Santander","Mogotes","Cálido Seco"]
[null,null,null,"Santander","Mogotes","Frio"]
[null,null,null,"Santander","Mogotes","Templado"]
[null,null,null,"Santander","Molagavita","Cálido Húmedo"]
[null,null,null,"Santander","Molagavita","Cálido Seco"]
[null,null,null,"Santander","Molagavita","Frio"]
[null,null,null,"Santander","Molagavita","Templado"]
[null,null,null,"Santander","Ocamonte","Templado"]
[null,null,null,"Santander","Oiba","Templado"]
[null,null,null,"Santander","Onzaga","Cálido Seco"]
[null,null,null,"Santander","Onzaga","Frio"]
[null,null,null,"Santander","Onzaga","Templado"]
[null,null,null,"Santander","Palmar","Cálido Seco"]
[null,null,null,"Santander","Palmas Del Socorro","Cálido Húmedo"]
[null,null,null,"Santander","Palmas Del Socorro","Templado"]
[null,null,null,"Santander","Páramo","Templado"]
[null,null,null,"Santander","Piedecuesta","Cálido Húmedo"]
[null,null,null,"Santander","Piedecuesta","Frio"]
[null,null,null,"Santander","Piedecuesta","Templado"]
[null,null,null,"Santander","Pinchote","Cálido Seco"]
[null,null,null,"Santander","Pinchote","Templado"]
[null,null,null,"Santander","Puente Nacional","Frio"]
[null,null,null,"Santander","Puente Nacional","Templado"]
[null,null,null,"Santander","Puerto Parra","Cálido Húmedo"]
[null,null,null,"Santander","Puerto Wilches","Cálido Húmedo"]
[null,null,null,"Santander","Rionegro","Cálido Húmedo"]
[null,null,null,"Santander","Rionegro","Frio"]
[null,null,null,"Santander","Rionegro","Templado"]
[null,null,null,"Santander","Sabana De Torres","Cálido Húmedo"]
[null,null,null,"Santander","San Andrés","Cálido Húmedo"]
[null,null,null,"Santander","San Andrés","Frio"]
[null,null,null,"Santander","San Andrés","Templado"]
[null,null,null,"Santander","San Benito","Templado"]
[null,null,null,"Santander","San Gil","Cálido Seco"]
[null,null,null,"Santander","San Gil","Templado"]
[null,null,null,"Santander","San Joaquín","Cálido Seco"]
[null,null,null,"Santander","San Joaquín","Frio"]
[null,null,null,"Santander","San Joaquín","Templado"]
[null,null,null,"Santander","San José De Miranda","Frio"]
[null,null,null,"Santander","San José De Miranda","Templado"]
[null,null,null,"Santander","San Miguel","Frio"]
[null,null,null,"Santander","San Miguel","Templado"]
[null,null,null,"Santander","San Vicente De Chucurí","Cálido Húmedo"]
[null,null,null,"Santander","San Vicente De Chucurí","Frio"]
[null,null,null,"Santander","San Vicente De Chucurí","Templado"]
[null,null,null,"Santander","Santa Bárbara","Frio"]
[null,null,null,"Santander","Santa Bárbara","Templado"]
[null,null,null,"Santander","Santa Helena Del Opón","Cálido Húmedo"]
[null,null,null,"Santander","Santa Helena Del Opón","Frio"]
[null,null,null,"Santander","Santa Helena Del Opón","Templado"]
[null,null,null,"Santander","Simacota","Cálido Húmedo"]
[null,null,null,"Santander","Simacota","Cálido Seco"]
[null,null,null,"Santander","Simacota","Frio"]
[null,null,null,"Santander","Simacota","Templado"]
[null,null,null,"Santander","Socorro","Cálido Húmedo"]
[null,null,null,"Santander","Socorro","Cálido Seco"]
[null,null,null,"Santander","Socorro","Templado"]
[null,null,null,"Santander","Suaita","Frio"]
[null,null,null,"Santander","Suaita","Templado"]
[null,null,null,"Santander","Sucre","Cálido Húmedo"]
[null,null,null,"Santander","Sucre","Frio"]
[null,null,null,"Santander","Sucre","Templado"]
[null,null,null,"Santander","Suratá","Frio"]
[null,null,null,"Santander","Suratá","Templado"]
[null,null,null,"Santander","Tona","Frio"]
[null,null,null,"Santander","Tona","Templado"]
[null,null,null,"Santander","Valle De San José","Templado"]
[null,null,null,"Santander","Vélez","Cálido Húmedo"]
[null,null,null,"Santander","Vélez","Templado"]
[null,null,null,"Santander","Vetas","Frio"]
[null,null,null,"Santander","Villanueva","Cálido Húmedo"]
[null,null,null,"Santander","Villanueva","Templado"]
[null,null,null,"Santander","Zapatoca","Cálido Húmedo"]
[null,null,null,"Santander","Zapatoca","Frio"]
[null,null,null,"Santander","Zapatoca","Templado"]
[null,null,null,"Sucre","Buenavista","Cálido Húmedo"]
[null,null,null,"Sucre","Caimito","Cálido Húmedo"]
[null,null,null,"Sucre","Chalán","Cálido Húmedo"]
[null,null,null,"Sucre","Colosó","Cálido Húmedo"]
[null,null,null,"Sucre","Corozal","Cálido Húmedo"]
[null,null,null,"Sucre","Coveñas","Cálido Húmedo"]
[null,null,null,"Sucre","El Roble","Cálido Húmedo"]
[null,null,null,"Sucre","Galeras","Cálido Húmedo"]
[null,null,null,"Sucre","Guaranda","Cálido Húmedo"]
[null,null,null,"Sucre","La Unión","Cálido Húmedo"]
[null,null,null,"Sucre","Los Palmitos","Cálido Húmedo"]
[null,null,null,"Sucre","Majagual","Cálido Húmedo"]
[null,null,null,"Sucre","Morroa","Cálido Húmedo"]
[null,null,null,"Sucre","Ovejas","Cálido Húmedo"]
[null,null,null,"Sucre","Palmito","Cálido Húmedo"]
[null,null,null,"Sucre","Sampués","Cálido Húmedo"]
[null,null,null,"Sucre","San Benito Abad","Cálido Húmedo"]
[null,null,null,"Sucre","San Juan De Betulia","Cálido Húmedo"]
[null,null,null,"Sucre","San Marcos","Cálido Húmedo"]
[null,null,null,"Sucre","San Onofre","Cálido Húmedo"]
[null,null,null,"Sucre","San Pedro","Cálido Húmedo"]
[null,null,null,"Sucre","Sincé","Cálido Húmedo"]
[null,null,null,"Sucre","Sincelejo","Cálido Húmedo"]
[null,null,null,"Sucre","Sucre","Cálido Húmedo"]
[null,null,null,"Sucre","Tolú","Cálido Húmedo"]
[null,null,null,"Sucre","Toluviejo","Cálido Húmedo"]
[null,null,null,"Tolima","Alpujarra","Cálido Húmedo"]
[null,null,null,"Tolima","Alpujarra","Cálido Seco"]
[null,null,null,"Tolima","Alpujarra","Templado"]
[null,null,null,"Tolima","Alvarado","Cálido Húmedo"]
[null,null,null,"Tolima","Alvarado","Cálido Seco"]
[null,null,null,"Tolima","Alvarado","Templado"]
[null,null,null,"Tolima","Ambalema","Cálido Húmedo"]
[null,null,null,"Tolima","Ambalema","Cálido Seco"]
[null,null,null,"Tolima","Anzoátegui","Cálido Húmedo"]
[null,null,null,"Tolima","Anzoátegui","Frio"]
[null,null,null,"Tolima","Anzoátegui","Templado"]
[null,null,null,"Tolima","Armero","Cálido Húmedo"]
[null,null,null,"Tolima","Armero","Cálido Seco"]
[null,null,null,"Tolima","Armero","Templado"]
[null,null,null,"Tolima","Ataco","Cálido Húmedo"]
[null,null,null,"Tolima","Ataco","Cálido Seco"]
[null,null,null,"Tolima","Ataco","Frio"]
[null,null,null,"Tolima","Ataco","Templado"]
[null,null,null,"Tolima","Cajamarca","Frio"]
[null,null,null,"Tolima","Cajamarca","Templado"]
[null,null,null,"Tolima","Carmen De Apicalá","Cálido Húmedo"]
[null,null,null,"Tolima","Carmen De Apicalá","Cálido Seco"]
[null,null,null,"Tolima","Casabianca","Frio"]
[null,null,null,"Tolima","Casabianca","Templado"]
[null,null,null,"Tolima","Chaparral","Cálido Húmedo"]
[null,null,null,"Tolima","Chaparral","Cálido Seco"]
[null,null,null,"Tolima","Chaparral","Frio"]
[null,null,null,"Tolima","Chaparral","Templado"]
[null,null,null,"Tolima","Coello","Cálido Seco"]
[null,null,null,"Tolima","Coyaima","Cálido Seco"]
[null,null,null,"Tolima","Cunday","Cálido Húmedo"]
[null,null,null,"Tolima","Cunday","Cálido Seco"]
[null,null,null,"Tolima","Cunday","Frio"]
[null,null,null,"Tolima","Cunday","Templado"]
[null,null,null,"Tolima","Dolores","Cálido Húmedo"]
[null,null,null,"Tolima","Dolores","Cálido Seco"]
[null,null,null,"Tolima","Dolores","Frio"]
[null,null,null,"Tolima","Dolores","Templado"]
[null,null,null,"Tolima","Espinal","Cálido Seco"]
[null,null,null,"Tolima","Falan","Cálido Húmedo"]
[null,null,null,"Tolima","Falan","Cálido Seco"]
[null,null,null,"Tolima","Falan","Templado"]
[null,null,null,"Tolima","Flandes","Cálido Seco"]
[null,null,null,"Tolima","Fresno","Cálido Húmedo"]
[null,null,null,"Tolima","Fresno","Frio"]
[null,null,null,"Tolima","Fresno","Templado"]
[null,null,null,"Tolima","Guamo","Cálido Húmedo"]
[null,null,null,"Tolima","Guamo","Cálido Seco"]
[null,null,null,"Tolima","Herveo","Frio"]
[null,null,null,"Tolima","Herveo","Templado"]
[null,null,null,"Tolima","Honda","Cálido Húmedo"]
[null,null,null,"Tolima","Honda","Cálido Seco"]
[null,null,null,"Tolima","Ibagué","Cálido Húmedo"]
[null,null,null,"Tolima","Ibagué","Cálido Seco"]
[null,null,null,"Tolima","Ibagué","Frio"]
[null,null,null,"Tolima","Ibagué","Templado"]
[null,null,null,"Tolima","Icononzo","Cálido Húmedo"]
[null,null,null,"Tolima","Icononzo","Cálido Seco"]
[null,null,null,"Tolima","Icononzo","Frio"]
[null,null,null,"Tolima","Icononzo","Templado"]
[null,null,null,"Tolima","Lérida","Cálido Húmedo"]
[null,null,null,"Tolima","Lérida","Cálido Seco"]
[null,null,null,"Tolima","Lérida","Templado"]
[null,null,null,"Tolima","Líbano","Cálido Húmedo"]
[null,null,null,"Tolima","Líbano","Frio"]
[null,null,null,"Tolima","Líbano","Templado"]
[null,null,null,"Tolima","Mariquita","Cálido Húmedo"]
[null,null,null,"Tolima","Mariquita","Templado"]
[null,null,null,"Tolima","Melgar","Cálido Húmedo"]
[null,null,null,"Tolima","Melgar","Cálido Seco"]
[null,null,null,"Tolima","Melgar","Templado"]
[null,null,null,"Tolima","Murillo","Frio"]
[null,null,null,"Tolima","Murillo","Templado"]
[null,null,null,"Tolima","Natagaima","Cálido Húmedo"]
[null,null,null,"Tolima","Natagaima","Cálido Seco"]
[null,null,null,"Tolima","Natagaima","Templado"]
[null,null,null,"Tolima","Ortega","Cálido Húmedo"]
[null,null,null,"Tolima","Ortega","Cálido Seco"]
[null,null,null,"Tolima","Ortega","Templado"]
[null,null,null,"Tolima","Palocabildo","Cálido Húmedo"]
[null,null,null,"Tolima","Palocabildo","Templado"]
[null,null,null,"Tolima","Piedras","Cálido Húmedo"]
[null,null,null,"Tolima","Piedras","Cálido Seco"]
[null,null,null,"Tolima","Planadas","Cálido Húmedo"]
[null,null,null,"Tolima","Planadas","Frio"]
[null,null,null,"Tolima","Planadas","Frio"]
[null,null,null,"Tolima","Planadas","Templado"]
[null,null,null,"Tolima","Prado","Cálido Húmedo"]
[null,null,null,"Tolima","Prado","Cálido Seco"]
[null,null,null,"Tolima","Prado","Templado"]
[null,null,null,"Tolima","Purificación","Cálido Húmedo"]
[null,null,null,"Tolima","Purificación","Cálido Seco"]
[null,null,null,"Tolima","Purificación","Templado"]
[null,null,null,"Tolima","Rioblanco","Cálido Húmedo"]
[null,null,null,"Tolima","Rioblanco","Frio"]
[null,null,null,"Tolima","Rioblanco","Templado"]
[null,null,null,"Tolima","Roncesvalles","Frio"]
[null,null,null,"Tolima","Roncesvalles","Templado"]
[null,null,null,"Tolima","Rovira","Cálido Húmedo"]
[null,null,null,"Tolima","Rovira","Cálido Seco"]
[null,null,null,"Tolima","Rovira","Frio"]
[null,null,null,"Tolima","Rovira","Templado"]
[null,null,null,"Tolima","Saldaña","Cálido Seco"]
[null,null,null,"Tolima","San Antonio","Cálido Húmedo"]
[null,null,null,"Tolima","San Antonio","Frio"]
[null,null,null,"Tolima","San Antonio","Templado"]
[null,null,null,"Tolima","San Luis","Cálido Húmedo"]
[null,null,null,"Tolima","San Luis","Cálido Seco"]
[null,null,null,"Tolima","San Luis","Templado"]
[null,null,null,"Tolima","Santa Isabel","Cálido Húmedo"]
[null,null,null,"Tolima","Santa Isabel","Frio"]
[null,null,null,"Tolima","Santa Isabel","Templado"]
[null,null,null,"Tolima","Suárez","Cálido Húmedo"]
[null,null,null,"Tolima","Suárez","Cálido Seco"]
[null,null,null,"Tolima","Valle De San Juan","Cálido Húmedo"]
[null,null,null,"Tolima","Valle De San Juan","Templado"]
[null,null,null,"Tolima","Venadillo","Cálido Húmedo"]
[null,null,null,"Tolima","Venadillo","Cálido Seco"]
[null,null,null,"Tolima","Venadillo","Templado"]
[null,null,null,"Tolima","Villahermosa","Frio"]
[null,null,null,"Tolima","Villahermosa","Templado"]
[null,null,null,"Tolima","Villarrica","Cálido Húmedo"]
[null,null,null,"Tolima","Villarrica","Frio"]
[null,null,null,"Tolima","Villarrica","Templado"]
[null,null,null,"Valle del Cauca","Alcalá","Templado"]
[null,null,null,"Valle del Cauca","Andalucía","Templado"]
[null,null,null,"Valle del Cauca","Ansermanuevo","Frio"]
[null,null,null,"Valle del Cauca","Ansermanuevo","Templado"]
[null,null,null,"Valle del Cauca","Argelia","Templado"]
[null,null,null,"Valle del Cauca","Bolívar","Cálido Húmedo"]
[null,null,null,"Valle del Cauca","Bolívar","Frio"]
[null,null,null,"Valle del Cauca","Bolívar","Templado"]
[null,null,null,"Valle del Cauca","Buenaventura","Cálido Húmedo"]
[null,null,null,"Valle del Cauca","Buenaventura","Frio"]
[null,null,null,"Valle del Cauca","Buenaventura","Templado"]
[null,null,null,"Valle del Cauca","Buga","Frio"]
[null,null,null,"Valle del Cauca","Buga","Templado"]
[null,null,null,"Valle del Cauca","Bugalagrande","Cálido Húmedo"]
[null,null,null,"Valle del Cauca","Bugalagrande","Templado"]
[null,null,null,"Valle del Cauca","Caicedonia","Templado"]
[null,null,null,"Valle del Cauca","Cali","Cálido Húmedo"]
[null,null,null,"Valle del Cauca","Cali","Cálido Seco"]
[null,null,null,"Valle del Cauca","Cali","Frio"]
[null,null,null,"Valle del Cauca","Cali","Templado"]
[null,null,null,"Valle del Cauca","Calima","Cálido Húmedo"]
[null,null,null,"Valle del Cauca","Calima","Frio"]
[null,null,null,"Valle del Cauca","Calima","Templado"]
[null,null,null,"Valle del Cauca","Candelaria","Cálido Húmedo"]
[null,null,null,"Valle del Cauca","Candelaria","Cálido Seco"]
[null,null,null,"Valle del Cauca","Candelaria","Templado"]
[null,null,null,"Valle del Cauca","Cartago","Templado"]
[null,null,null,"Valle del Cauca","Dagua","Cálido Húmedo"]
[null,null,null,"Valle del Cauca","Dagua","Frio"]
[null,null,null,"Valle del Cauca","Dagua","Templado"]
[null,null,null,"Valle del Cauca","El Águila","Frio"]
[null,null,null,"Valle del Cauca","El Águila","Templado"]
[null,null,null,"Valle del Cauca","El Cairo","Frio"]
[null,null,null,"Valle del Cauca","El Cairo","Templado"]
[null,null,null,"Valle del Cauca","El Cerrito","Cálido Húmedo"]
[null,null,null,"Valle del Cauca","El Cerrito","Cálido Seco"]
[null,null,null,"Valle del Cauca","El Cerrito","Frio"]
[null,null,null,"Valle del Cauca","El Cerrito","Templado"]
[null,null,null,"Valle del Cauca","El Dovio","Cálido Húmedo"]
[null,null,null,"Valle del Cauca","El Dovio","Templado"]
[null,null,null,"Valle del Cauca","Florida","Frio"]
[null,null,null,"Valle del Cauca","Florida","Templado"]
[null,null,null,"Valle del Cauca","Ginebra","Frio"]
[null,null,null,"Valle del Cauca","Ginebra","Templado"]
[null,null,null,"Valle del Cauca","Guacarí","Frio"]
[null,null,null,"Valle del Cauca","Guacarí","Templado"]
[null,null,null,"Valle del Cauca","Jamundí","Cálido Húmedo"]
[null,null,null,"Valle del Cauca","Jamundí","Frio"]
[null,null,null,"Valle del Cauca","Jamundí","Templado"]
[null,null,null,"Valle del Cauca","La Cumbre","Cálido Húmedo"]
[null,null,null,"Valle del Cauca","La Cumbre","Templado"]
[null,null,null,"Valle del Cauca","La Unión","Cálido Húmedo"]
[null,null,null,"Valle del Cauca","La Unión","Cálido Seco"]
[null,null,null,"Valle del Cauca","La Unión","Templado"]
[null,null,null,"Valle del Cauca","La Victoria","Cálido Húmedo"]
[null,null,null,"Valle del Cauca","La Victoria","Cálido Seco"]
[null,null,null,"Valle del Cauca","La Victoria","Templado"]
[null,null,null,"Valle del Cauca","Obando","Cálido Húmedo"]
[null,null,null,"Valle del Cauca","Obando","Templado"]
[null,null,null,"Valle del Cauca","Palmira","Cálido Húmedo"]
[null,null,null,"Valle del Cauca","Palmira","Cálido Seco"]
[null,null,null,"Valle del Cauca","Palmira","Frio"]
[null,null,null,"Valle del Cauca","Palmira","Templado"]
[null,null,null,"Valle del Cauca","Pradera","Frio"]
[null,null,null,"Valle del Cauca","Pradera","Templado"]
[null,null,null,"Valle del Cauca","Restrepo","Templado"]
[null,null,null,"Valle del Cauca","Riofrío","Frio"]
[null,null,null,"Valle del Cauca","Riofrío","Templado"]
[null,null,null,"Valle del Cauca","Roldanillo","Cálido Húmedo"]
[null,null,null,"Valle del Cauca","Roldanillo","Cálido Seco"]
[null,null,null,"Valle del Cauca","Roldanillo","Templado"]
[null,null,null,"Valle del Cauca","San Pedro","Frio"]
[null,null,null,"Valle del Cauca","San Pedro","Templado"]
[null,null,null,"Valle del Cauca","Sevilla","Frio"]
[null,null,null,"Valle del Cauca","Sevilla","Templado"]
[null,null,null,"Valle del Cauca","Toro","Cálido Húmedo"]
[null,null,null,"Valle del Cauca","Toro","Templado"]
[null,null,null,"Valle del Cauca","Trujillo","Frio"]
[null,null,null,"Valle del Cauca","Trujillo","Templado"]
[null,null,null,"Valle del Cauca","Tuluá","Frio"]
[null,null,null,"Valle del Cauca","Tuluá","Templado"]
[null,null,null,"Valle del Cauca","Ulloa","Templado"]
[null,null,null,"Valle del Cauca","Versalles","Templado"]
[null,null,null,"Valle del Cauca","Vijes","Cálido Húmedo"]
[null,null,null,"Valle del Cauca","Vijes","Templado"]
[null,null,null,"Valle del Cauca","Yotoco","Templado"]
[null,null,null,"Valle del Cauca","Yumbo","Cálido Húmedo"]
[null,null,null,"Valle del Cauca","Yumbo","Cálido Seco"]
[null,null,null,"Valle del Cauca","Yumbo","Templado"]
[null,null,null,"Valle del Cauca","Zarzal","Cálido Húmedo"]
[null,null,null,"Valle del Cauca","Zarzal","Cálido Seco"]
[null,null,null,"Valle del Cauca","Zarzal","Templado"]
[null,null,null,"Vaupés","Carurú","Cálido Húmedo"]
[null,null,null,"Vaupés","Mitú","Cálido Húmedo"]
[null,null,null,"Vaupés","Pacoa","Cálido Húmedo"]
[null,null,null,"Vaupés","Papunaua","Cálido Húmedo"]
[null,null,null,"Vaupés","Taraira","Cálido Húmedo"]
[null,null,null,"Vaupés","Yavaraté","Cálido Húmedo"]
[null,null,null,"Vichada","Cumaribo","Cálido Húmedo"]
[null,null,null,"Vichada","La Primavera","Cálido Húmedo"]
[null,null,null,"Vichada","Puerto Carreño","Cálido Húmedo"]
[null,null,null,"Vichada","Puerto Carreño","Cálido Seco"]
[null,null,null,"Vichada","Santa Rosalía","Cálido Húmedo"]

{"sheet":"Anexo 2 - municipios","index":9,"n_rows":2216,"n_cols":8,"rows_kept":2216,"cut":false,"hidden":false,"merged":[[1,1,1,2],[2,1,2,2]]}
[]
[]
[]
[]
[]
["Departamento","Municipio","Clasificación climática"]
["Amazonas","El Encanto","Calido Humedo"]
["Amazonas","La Chorrera","Calido Humedo"]
["Amazonas","La Pedrera","Calido Humedo"]
["Amazonas","La Victoria","Calido Humedo"]
["Amazonas","Leticia","Calido Humedo"]
["Amazonas","Mirití-Paraná","Calido Humedo"]
["Amazonas","Puerto Alegría","Calido Humedo"]
["Amazonas","Puerto Arica","Calido Humedo"]
["Amazonas","Puerto Nariño","Calido Humedo"]
["Amazonas","Santander","Calido Humedo"]
["Amazonas","Tarapacá","Calido Humedo"]
["Antioquia","Abejorral","Calido Humedo"]
["Antioquia","Abejorral","Frio"]
["Antioquia","Abejorral","Templado"]
["Antioquia","Abriaquí","Frio"]
["Antioquia","Abriaquí","Templado"]
["Antioquia","Alejandría","Templado"]
["Antioquia","Amagá","Calido Humedo"]
["Antioquia","Amagá","Templado"]
["Antioquia","Amalfi","Calido Humedo"]
["Antioquia","Amalfi","Templado"]
["Antioquia","Andes","Frio"]
["Antioquia","Andes","Templado"]
["Antioquia","Angelópolis","Templado"]
["Antioquia","Angostura","Frio"]
["Antioquia","Angostura","Templado"]
["Antioquia","Anorí","Calido Humedo"]
["Antioquia","Anorí","Templado"]
["Antioquia","Anorí","Templado"]
["Antioquia","Anzá","Calido Humedo"]
["Antioquia","Anzá","Frio"]
["Antioquia","Anzá","Templado"]
["Antioquia","Apartadó","Calido Humedo"]
["Antioquia","Apartadó","Templado"]
["Antioquia","Arboletes","Calido Humedo"]
["Antioquia","Argelia","Calido Humedo"]
["Antioquia","Argelia","Frio"]
["Antioquia","Argelia","Templado"]
["Antioquia","Armenia","Calido Humedo"]
["Antioquia","Armenia","Templado"]
["Antioquia","Barbosa","Templado"]
["Antioquia","Bello","Frio"]
["Antioquia","Bello","Templado"]
["Antioquia","Belmira","Frio"]
["Antioquia","Belmira","Templado"]
["Antioquia","Betania","Frio"]
["Antioquia","Betania","Templado"]
["Antioquia","Betulia","Calido Humedo"]
["Antioquia","Betulia","Frio"]
["Antioquia","Betulia","Templado"]
["Antioquia","Briceño","Calido Humedo"]
["Antioquia","Briceño","Frio"]
["Antioquia","Briceño","Templado"]
["Antioquia","Buriticá","Calido Humedo"]
["Antioquia","Buriticá","Frio"]
["Antioquia","Buriticá","Templado"]
["Antioquia","Cáceres","Calido Humedo"]
["Antioquia","Cáceres","Templado"]
["Antioquia","Caicedo","Frio"]
["Antioquia","Caicedo","Templado"]
["Antioquia","Caldas","Frio"]
["Antioquia","Caldas","Templado"]
["Antioquia","Campamento","Calido Humedo"]
["Antioquia","Campamento","Frio"]
["Antioquia","Campamento","Templado"]
["Antioquia","Cañasgordas","Frio"]
["Antioquia","Cañasgordas","Templado"]
["Antioquia","Caracolí","Calido Humedo"]
["Antioquia","Caracolí","Templado"]
["Antioquia","Caramanta","Calido Humedo"]
["Antioquia","Caramanta","Frio"]
["Antioquia","Caramanta","Templado"]
["Antioquia","Carepa","Calido Humedo"]
["Antioquia","Carepa","Templado"]
["Antioquia","Carmen De Viboral","Calido Humedo"]
["Antioquia","Carmen De Viboral","Frio"]
["Antioquia","Carmen De Viboral","Templado"]
["Antioquia","Carolina","Frio"]
["Antioquia","Carolina","Templado"]
["Antioquia","Caucasia","Calido Humedo"]
["Antioquia","Chigorodó","Calido Humedo"]
["Antioquia","Chigorodó","Templado"]
["Antioquia","Cisneros","Templado"]
["Antioquia","Ciudad Bolívar","Calido Humedo"]
["Antioquia","Ciudad Bolívar","Frio"]
["Antioquia","Ciudad Bolívar","Templado"]
["Antioquia","Cocorná","Calido Humedo"]
["Antioquia","Cocorná","Frio"]
["Antioquia","Cocorná","Templado"]
["Antioquia","Concepción","Templado"]
["Antioquia","Concordia","Calido Humedo"]
["Antioquia","Concordia","Frio"]
["Antioquia","Concordia","Templado"]
["Antioquia","Copacabana","Frio"]
["Antioquia","Copacabana","Templado"]
["Antioquia","Dabeiba","Calido Humedo"]
["Antioquia","Dabeiba","Frio"]
["Antioquia","Dabeiba","Templado"]
["Antioquia","Donmatías","Frio"]
["Antioquia","Donmatías","Templado"]
["Antioquia","Ebéjico","Calido Humedo"]
["Antioquia","Ebéjico","Templado"]
["Antioquia","El Bagre","Calido Humedo"]
["Antioquia","El Bagre","Templado"]
["Antioquia","El Retiro","Frio"]
["Antioquia","El Retiro","Templado"]
["Antioquia","Entrerrios","Frio"]
["Antioquia","Entrerrios","Templado"]
["Antioquia","Envigado","Frio"]
["Antioquia","Envigado","Templado"]
["Antioquia","Fredonia","Calido Humedo"]
["Antioquia","Fredonia","Frio"]
["Antioquia","Fredonia","Templado"]
["Antioquia","Frontino","Calido Humedo"]
["Antioquia","Frontino","Frio"]
["Antioquia","Frontino","Templado"]
["Antioquia","Giraldo","Frio"]
["Antioquia","Giraldo","Templado"]
["Antioquia","Girardota","Frio"]
["Antioquia","Girardota","Templado"]
["Antioquia","Gómez Plata","Calido Humedo"]
["Antioquia","Gómez Plata","Templado"]
["Antioquia","Granada","Calido Humedo"]
["Antioquia","Granada","Templado"]
["Antioquia","Guadalupe","Calido Humedo"]
["Antioquia","Guadalupe","Templado"]
["Antioquia","Guarne","Frio"]
["Antioquia","Guarne","Templado"]
["Antioquia","Guatapé","Templado"]
["Antioquia","Heliconia","Calido Humedo"]
["Antioquia","Heliconia","Templado"]
["Antioquia","Hispania","Calido Humedo"]
["Antioquia","Hispania","Templado"]
["Antioquia","Itagüí","Templado"]
["Antioquia","Ituango","Calido Humedo"]
["Antioquia","Ituango","Frio"]
["Antioquia","Ituango","Templado"]
["Antioquia","Jardín","Frio"]
["Antioquia","Jardín","Templado"]
["Antioquia","Jericó","Calido Humedo"]
["Antioquia","Jericó","Frio"]
["Antioquia","Jericó","Templado"]
["Antioquia","La Ceja","Frio"]
["Antioquia","La Ceja","Templado"]
["Antioquia","La Estrella","Templado"]
["Antioquia","La Pintada","Calido Humedo"]
["Antioquia","La Pintada","Templado"]
["Antioquia","La Unión","Frio"]
["Antioquia","La Unión","Templado"]
["Antioquia","Liborina","Calido Humedo"]
["Antioquia","Liborina","Frio"]
["Antioquia","Liborina","Templado"]
["Antioquia","Maceo","Calido Humedo"]
["Antioquia","Maceo","Templado"]
["Antioquia","Marinilla","Templado"]
["Antioquia","Medellín","Frio"]
["Antioquia","Medellín","Templado"]
["Antioquia","Montebello","Calido Humedo"]
["Antioquia","Montebello","Templado"]
["Antioquia","Murindó","Calido Humedo"]
["Antioquia","Murindó","Templado"]
["Antioquia","Mutatá","Calido Humedo"]
["Antioquia","Mutatá","Frio"]
["Antioquia","Mutatá","Templado"]
["Antioquia","Nariño","Calido Humedo"]
["Antioquia","Nariño","Frio"]
["Antioquia","Nariño","Templado"]
["Antioquia","Nechí","Calido Humedo"]
["Antioquia","Necoclí","Calido Humedo"]
["Antioquia","Olaya","Calido Humedo"]
["Antioquia","Olaya","Frio"]
["Antioquia","Olaya","Templado"]
["Antioquia","Peñol","Templado"]
["Antioquia","Peque","Calido Humedo"]
["Antioquia","Peque","Frio"]
["Antioquia","Peque","Templado"]
["Antioquia","Pueblorrico","Calido Humedo"]
["Antioquia","Pueblorrico","Templado"]
["Antioquia","Puerto Berrío","Calido Humedo"]
["Antioquia","Puerto Berrío","Templado"]
["Antioquia","Puerto Nare","Calido Humedo"]
["Antioquia","Puerto Nare","Templado"]
["Antioquia","Puerto Triunfo","Calido Humedo"]
["Antioquia","Remedios","Calido Humedo"]
["Antioquia","Remedios","Templado"]
["Antioquia","Rionegro","Frio"]
["Antioquia","Rionegro","Templado"]
["Antioquia","Sabanalarga","Calido Humedo"]
["Antioquia","Sabanalarga","Frio"]
["Antioquia","Sabanalarga","Templado"]
["Antioquia","Sabaneta","Frio"]
["Antioquia","Sabaneta","Templado"]
["Antioquia","Salgar","Calido Humedo"]
["Antioquia","Salgar","Frio"]
["Antioquia","Salgar","Templado"]
["Antioquia","San Andrés de Cuerquia","Calido Humedo"]
["Antioquia","San Andrés de Cuerquia","Frio"]
["Antioquia","San Andrés de Cuerquia","Templado"]
["Antioquia","San Carlos","Calido Humedo"]
["Antioquia","San Carlos","Templado"]
["Antioquia","San Francisco","Calido Humedo"]
["Antioquia","San Francisco","Templado"]
["Antioquia","San Jerónimo","Calido Humedo"]
["Antioquia","San Jerónimo","Frio"]
["Antioquia","San Jerónimo","Templado"]
["Antioquia","San José De La Montaña","Frio"]
["Antioquia","San José De La Montaña","Templado"]
["Antioquia","San Juan De Urabá","Calido Humedo"]
["Antioquia","San Luis","Calido Humedo"]
["Antioquia","San Luis","Templado"]
["Antioquia","San Pedro De Los Milagros","Frio"]
["Antioquia","San Pedro De Los Milagros","Templado"]
["Antioquia","San Pedro De Urabá","Calido Humedo"]
["Antioquia","San Rafael","Calido Humedo"]
["Antioquia","San Rafael","Templado"]
["Antioquia","San Roque","Calido Humedo"]
["Antioquia","San Roque","Templado"]
["Antioquia","San Vicente","Templado"]
["Antioquia","Santa Bárbara","Calido Humedo"]
["Antioquia","Santa Bárbara","Frio"]
["Antioquia","Santa Bárbara","Templado"]
["Antioquia","Santa Fe De Antioquia","Calido Humedo"]
["Antioquia","Santa Fe De Antioquia","Frio"]
["Antioquia","Santa Fe De Antioquia","Templado"]
["Antioquia","Santa Rosa De Osos","Frio"]
["Antioquia","Santa Rosa De Osos","Templado"]
["Antioquia","Santo Domingo","Templado"]
["Antioquia","Santuario","Frio"]
["Antioquia","Santuario","Templado"]
["Antioquia","Segovia","Calido Humedo"]
["Antioquia","Segovia","Templado"]
["Antioquia","Sonsón","Calido Humedo"]
["Antioquia","Sonsón","Frio"]
["Antioquia","Sonsón","Templado"]
["Antioquia","Sopetrán","Calido Humedo"]
["Antioquia","Sopetrán","Frio"]
["Antioquia","Sopetrán","Templado"]
["Antioquia","Támesis","Calido Humedo"]
["Antioquia","Támesis","Frio"]
["Antioquia","Támesis","Templado"]
["Antioquia","Tarazá","Calido Humedo"]
["Antioquia","Tarazá","Templado"]
["Antioquia","Tarso","Calido Humedo"]
["Antioquia","Tarso","Templado"]
["Antioquia","Titiribí","Calido Humedo"]
["Antioquia","Titiribí","Templado"]
["Antioquia","Toledo","Calido Humedo"]
["Antioquia","Toledo","Templado"]
["Antioquia","Turbo","Calido Humedo"]
["Antioquia","Turbo","Templado"]
["Antioquia","Uramita","Calido Humedo"]
["Antioquia","Uramita","Frio"]
["Antioquia","Uramita","Templado"]
["Antioquia","Urrao","Calido Humedo"]
["Antioquia","Urrao","Frio"]
["Antioquia","Urrao","Templado"]
["Antioquia","Valdivia","Calido Humedo"]
["Antioquia","Valdivia","Templado"]
["Antioquia","Valparaiso","Calido Humedo"]
["Antioquia","Valparaiso","Frio"]
["Antioquia","Valparaiso","Templado"]
["Antioquia","Vegachí","Calido Humedo"]
["Antioquia","Vegachí","Templado"]
["Antioquia","Venecia","Calido Humedo"]
["Antioquia","Venecia","Templado"]
["Antioquia","Vigía Del Fuerte","Calido Humedo"]
["Antioquia","Vigía Del Fuerte","Templado"]
["Antioquia","Yalí","Calido Humedo"]
["Antioquia","Yalí","Templado"]
["Antioquia","Yarumal","Calido Humedo"]
["Antioquia","Yarumal","Frio"]
["Antioquia","Yarumal","Templado"]
["Antioquia","Yolombó","Calido Humedo"]
["Antioquia","Yolombó","Templado"]
["Antioquia","Yondó","Calido Humedo"]
["Antioquia","Zaragoza","Calido Humedo"]
["Arauca","Arauca","Calido Humedo"]
["Arauca","Arauquita","Calido Humedo"]
["Arauca","Cravo Norte","Calido Humedo"]
["Arauca","Fortul","Calido Humedo"]
["Arauca","Fortul","Frio"]
["Arauca","Fortul","Templado"]
["Arauca","Puerto Rondón","Calido Humedo"]
["Arauca","Saravena","Calido Humedo"]
["Arauca","Saravena","Templado"]
["Arauca","Tame","Calido Humedo"]
["Arauca","Tame","Frio"]
["Arauca","Tame","Templado"]
["Archipielago de San Andrés, Providencia y Santa Catalina"," San Andrés","Calido Humedo"]
["Archipielago de San Andrés, Providencia y Santa Catalina","Providencia","Calido Humedo"]
["Atlántico","Baranoa","Calido Humedo"]
["Atlántico","Barranquilla","Calido Humedo"]
["Atlántico","Campo De La Cruz","Calido Humedo"]
["Atlántico","Candelaria","Calido Humedo"]
["Atlántico","Galapa","Calido Humedo"]
["Atlántico","Juan De Acosta","Calido Humedo"]
["Atlántico","Luruaco","Calido Humedo"]
["Atlántico","Malambo","Calido Humedo"]
["Atlántico","Manatí","Calido Humedo"]
["Atlántico","Palmar De Varela","Calido Humedo"]
["Atlántico","Piojó","Calido Humedo"]
["Atlántico","Polonuevo","Calido Humedo"]
["Atlántico","Ponedera","Calido Humedo"]
["Atlántico","Puerto Colombia","Calido Humedo"]
["Atlántico","Repelón","Calido Humedo"]
["Atlántico","Sabanagrande","Calido Humedo"]
["Atlántico","Sabanalarga","Calido Humedo"]
["Atlántico","Santa Lucía","Calido Humedo"]
["Atlántico","Santo Tomás","Calido Humedo"]
["Atlántico","Soledad","Calido Humedo"]
["Atlántico","Suan","Calido Humedo"]
["Atlántico","Tubará","Calido Humedo"]
["Atlántico","Usiacurí","Calido Humedo"]
["Bolívar","Achí","Calido Humedo"]
["Bolívar","Altos Del Rosario","Calido Humedo"]
["Bolívar","Arenal","Calido Humedo"]
["Bolívar","Arenal","Templado"]
["Bolívar","Arjona","Calido Humedo"]
["Bolívar","Arroyohondo","Calido Humedo"]
["Bolívar","Barranco De Loba","Calido Humedo"]
["Bolívar","Calamar","Calido Humedo"]
["Bolívar","Cantagallo","Calido Humedo"]
["Bolívar","Cartagena De Indias","Calido Humedo"]
["Bolívar","Cicuco","Calido Humedo"]
["Bolívar","Clemencia","Calido Humedo"]
["Bolívar","Córdoba","Calido Humedo"]
["Bolívar","El Carmen De Bolívar","Calido Humedo"]
["Bolívar","El Guamo","Calido Humedo"]
["Bolívar","El Peñón","Calido Humedo"]
["Bolívar","El Peñón","Calido Seco"]
["Bolívar","Hatillo De Loba","Calido Humedo"]
["Bolívar","Hatillo De Loba","Calido Seco"]
["Bolívar","Magangué","Calido Humedo"]
["Bolívar","Mahates","Calido Humedo"]
["Bolívar","Margarita","Calido Humedo"]
["Bolívar","María La Baja","Calido Humedo"]
["Bolívar","Mompós","Calido Humedo"]
["Bolívar","Montecristo","Calido Humedo"]
["Bolívar","Montecristo","Templado"]
["Bolívar","Morales","Calido Humedo"]
["Bolívar","Morales","Templado"]
["Bolívar","Norosí","Calido Humedo"]
["Bolívar","Pinillos","Calido Humedo"]
["Bolívar","Regidor","Calido Humedo"]
["Bolívar","Rioviejo","Calido Humedo"]
["Bolívar","Rioviejo","Templado"]
["Bolívar","San Cristóbal","Calido Humedo"]
["Bolívar","San Estanislao","Calido Humedo"]
["Bolívar","San Fernando","Calido Humedo"]
["Bolívar","San Jacinto","Calido Humedo"]
["Bolívar","San Jacinto Del Cauca","Calido Humedo"]
["Bolívar","San Juan Nepomuceno","Calido Humedo"]
["Bolívar","San Martín De Loba","Calido Humedo"]
["Bolívar","San Martín De Loba","Calido Seco"]
["Bolívar","San Pablo","Calido Humedo"]
["Bolívar","San Pablo","Templado"]
["Bolívar","Santa Catalina","Calido Humedo"]
["Bolívar","Santa Rosa","Calido Humedo"]
["Bolívar","Santa Rosa Del Sur","Calido Humedo"]
["Bolívar","Santa Rosa Del Sur","Templado"]
["Bolívar","Simití","Calido Humedo"]
["Bolívar","Simití","Templado"]
["Bolívar","Soplaviento","Calido Humedo"]
["Bolívar","Talaigua Nuevo","Calido Humedo"]
["Bolívar","Tiquisio","Calido Humedo"]
["Bolívar","Turbaco","Calido Humedo"]
["Bolívar","Turbana","Calido Humedo"]
["Bolívar","Villanueva","Calido Humedo"]
["Bolívar","Zambrano","Calido Humedo"]
["Boyacá","Almeida","Frio"]
["Boyacá","Almeida","Templado"]
["Boyacá","Aquitania","Frio"]
["Boyacá","Aquitania","Templado"]
["Boyacá","Arcabuco","Frio"]
["Boyacá","Arcabuco","Templado"]
["Boyacá","Belén","Frio"]
["Boyacá","Berbeo","Frio"]
["Boyacá","Betéitiva","Frio"]
["Boyacá","Betéitiva","Templado"]
["Boyacá","Boavita","Frio"]
["Boyacá","Boavita","Templado"]
["Boyacá","Boyacá","Frio"]
["Boyacá","Boyacá","Templado"]
["Boyacá","Briceño","Frio"]
["Boyacá","Briceño","Templado"]
["Boyacá","Buenavista","Frio"]
["Boyacá","Buenavista","Templado"]
["Boyacá","Busbanzá","Frio"]
["Boyacá","Caldas","Frio"]
["Boyacá","Campohermoso","Calido Humedo"]
["Boyacá","Campohermoso","Frio"]
["Boyacá","Campohermoso","Templado"]
["Boyacá","Cerinza","Frio"]
["Boyacá","Chinavita","Frio"]
["Boyacá","Chinavita","Templado"]
["Boyacá","Chiquinquirá","Frio"]
["Boyacá","Chiquinquirá","Templado"]
["Boyacá","Chíquiza","Frio"]
["Boyacá","Chíquiza","Templado"]
["Boyacá","Chiscas","Frio"]
["Boyacá","Chiscas","Templado"]
["Boyacá","Chita","Frio"]
["Boyacá","Chita","Templado"]
["Boyacá","Chitaraque","Frio"]
["Boyacá","Chitaraque","Templado"]
["Boyacá","Chivatá","Frio"]
["Boyacá","Chivor","Frio"]
["Boyacá","Chivor","Templado"]
["Boyacá","Ciénega","Frio"]
["Boyacá","Ciénega","Templado"]
["Boyacá","Cómbita","Frio"]
["Boyacá","Coper","Calido Humedo"]
["Boyacá","Coper","Frio"]
["Boyacá","Coper","Templado"]
["Boyacá","Corrales","Frio"]
["Boyacá","Corrales","Templado"]
["Boyacá","Covarachía","Frio"]
["Boyacá","Covarachía","Templado"]
["Boyacá","Cubará","Calido Humedo"]
["Boyacá","Cubará","Frio"]
["Boyacá","Cubará","Templado"]
["Boyacá","Cucaita","Frio"]
["Boyacá","Cuítiva","Frio"]
["Boyacá","Duitama","Frio"]
["Boyacá","El Cocuy","Frio"]
["Boyacá","El Espino","Frio"]
["Boyacá","El Espino","Templado"]
["Boyacá","Firavitoba","Frio"]
["Boyacá","Floresta","Frio"]
["Boyacá","Gachantivá","Frio"]
["Boyacá","Gachantivá","Templado"]
["Boyacá","Gámeza","Frio"]
["Boyacá","Gámeza","Templado"]
["Boyacá","Garagoa","Frio"]
["Boyacá","Garagoa","Templado"]
["Boyacá","Guacamayas","Frio"]
["Boyacá","Guacamayas","Templado"]
["Boyacá","Guateque","Frio"]
["Boyacá","Guateque","Templado"]
["Boyacá","Guayatá","Frio"]
["Boyacá","Guayatá","Templado"]
["Boyacá","Güicán De La Sierra","Frio"]
["Boyacá","Güicán De La Sierra","Templado"]
["Boyacá","Iza","Frio"]
["Boyacá","Jenesano","Frio"]
["Boyacá","Jenesano","Templado"]
["Boyacá","Jericó","Frio"]
["Boyacá","Jericó","Templado"]
["Boyacá","La Capilla","Frio"]
["Boyacá","La Capilla","Templado"]
["Boyacá","La Uvita","Frio"]
["Boyacá","La Uvita","Templado"]
["Boyacá","La Victoria","Templado"]
["Boyacá","Labranzagrande","Calido Humedo"]
["Boyacá","Labranzagrande","Frio"]
["Boyacá","Labranzagrande","Templado"]
["Boyacá","Macanal","Frio"]
["Boyacá","Macanal","Templado"]
["Boyacá","Maripí","Calido Humedo"]
["Boyacá","Maripí","Frio"]
["Boyacá","Maripí","Templado"]
["Boyacá","Miraflores","Frio"]
["Boyacá","Miraflores","Templado"]
["Boyacá","Mongua","Frio"]
["Boyacá","Mongua","Templado"]
["Boyacá","Monguí","Frio"]
["Boyacá","Moniquirá","Frio"]
["Boyacá","Moniquirá","Templado"]
["Boyacá","Motavita","Frio"]
["Boyacá","Muzo","Calido Humedo"]
["Boyacá","Muzo","Templado"]
["Boyacá","Nobsa","Frio"]
["Boyacá","Nuevo Colón","Frio"]
["Boyacá","Oicatá","Frio"]
["Boyacá","Otanche","Calido Humedo"]
["Boyacá","Otanche","Templado"]
["Boyacá","Pachavita","Frio"]
["Boyacá","Pachavita","Templado"]
["Boyacá","Páez","Calido Humedo"]
["Boyacá","Páez","Frio"]
["Boyacá","Páez","Templado"]
["Boyacá","Paipa","Frio"]
["Boyacá","Paipa","Templado"]
["Boyacá","Pajarito","Frio"]
["Boyacá","Pajarito","Templado"]
["Boyacá","Panqueba","Frio"]
["Boyacá","Panqueba","Templado"]
["Boyacá","Pauna","Calido Humedo"]
["Boyacá","Pauna","Frio"]
["Boyacá","Pauna","Templado"]
["Boyacá","Paya","Calido Humedo"]
["Boyacá","Paya","Templado"]
["Boyacá","Paz De Rio","Frio"]
["Boyacá","Paz De Rio","Templado"]
["Boyacá","Pesca","Frio"]
["Boyacá","Pesca","Templado"]
["Boyacá","Pisba","Frio"]
["Boyacá","Pisba","Templado"]
["Boyacá","Puerto Boyacá","Calido Humedo"]
["Boyacá","Puerto Boyacá","Templado"]
["Boyacá","Quípama","Calido Humedo"]
["Boyacá","Quípama","Templado"]
["Boyacá","Ramiriquí","Frio"]
["Boyacá","Ramiriquí","Templado"]
["Boyacá","Ráquira","Frio"]
["Boyacá","Ráquira","Templado"]
["Boyacá","Rondón","Frio"]
["Boyacá","Rondón","Templado"]
["Boyacá","Saboyá","Frio"]
["Boyacá","Saboyá","Templado"]
["Boyacá","Sáchica","Frio"]
["Boyacá","Sáchica","Templado"]
["Boyacá","Samacá","Frio"]
["Boyacá","San Eduardo","Frio"]
["Boyacá","San Eduardo","Templado"]
["Boyacá","San José De Pare","Templado"]
["Boyacá","San Luis De Gaceno","Calido Humedo"]
["Boyacá","San Luis De Gaceno","Templado"]
["Boyacá","San Mateo","Frio"]
["Boyacá","San Mateo","Templado"]
["Boyacá","San Miguel De Sema","Frio"]
["Boyacá","San Pablo De Borbur","Calido Humedo"]
["Boyacá","San Pablo De Borbur","Templado"]
["Boyacá","Santa María","Calido Humedo"]
["Boyacá","Santa María","Frio"]
["Boyacá","Santa María","Templado"]
["Boyacá","Santa Rosa De Viterbo","Frio"]
["Boyacá","Santa Sofía","Frio"]
["Boyacá","Santa Sofía","Templado"]
["Boyacá","Santana","Templado"]
["Boyacá","Sativanorte","Frio"]
["Boyacá","Sativanorte","Templado"]
["Boyacá","Sativasur","Frio"]
["Boyacá","Sativasur","Templado"]
["Boyacá","Siachoque","Frio"]
["Boyacá","Soatá","Frio"]
["Boyacá","Soatá","Templado"]
["Boyacá","Socha","Frio"]
["Boyacá","Socha","Templado"]
["Boyacá","Socotá","Frio"]
["Boyacá","Socotá","Templado"]
["Boyacá","Sogamoso","Frio"]
["Boyacá","Somondoco","Frio"]
["Boyacá","Somondoco","Templado"]
["Boyacá","Sora","Frio"]
["Boyacá","Soracá","Frio"]
["Boyacá","Sotaquirá","Frio"]
["Boyacá","Sotaquirá","Templado"]
["Boyacá","Susacón","Frio"]
["Boyacá","Susacón","Templado"]
["Boyacá","Sutamarchán","Frio"]
["Boyacá","Sutamarchán","Templado"]
["Boyacá","Sutatenza","Frio"]
["Boyacá","Sutatenza","Templado"]
["Boyacá","Tasco","Frio"]
["Boyacá","Tasco","Templado"]
["Boyacá","Tenza","Frio"]
["Boyacá","Tenza","Templado"]
["Boyacá","Tibaná","Frio"]
["Boyacá","Tibaná","Templado"]
["Boyacá","Tibasosa","Frio"]
["Boyacá","Tinjacá","Frio"]
["Boyacá","Tinjacá","Templado"]
["Boyacá","Tipacoque","Frio"]
["Boyacá","Tipacoque","Templado"]
["Boyacá","Toca","Frio"]
["Boyacá","Togüí","Frio"]
["Boyacá","Togüí","Templado"]
["Boyacá","Tópaga","Frio"]
["Boyacá","Tota","Frio"]
["Boyacá","Tunja","Frio"]
["Boyacá","Tununguá","Calido Humedo"]
["Boyacá","Tununguá","Templado"]
["Boyacá","Turmequé","Frio"]
["Boyacá","Tuta","Frio"]
["Boyacá","Tutazá","Frio"]
["Boyacá","Úmbita","Frio"]
["Boyacá","Úmbita","Templado"]
["Boyacá","Ventaquemada","Frio"]
["Boyacá","Villa De Leiva","Frio"]
["Boyacá","Villa De Leiva","Templado"]
["Boyacá","Viracachá","Frio"]
["Boyacá","Viracachá","Templado"]
["Boyacá","Zetaquirá","Frio"]
["Boyacá","Zetaquirá","Templado"]
["Caldas","Aguadas","Calido Humedo"]
["Caldas","Aguadas","Frio"]
["Caldas","Aguadas","Templado"]
["Caldas","Anserma","Calido Humedo"]
["Caldas","Anserma","Templado"]
["Caldas","Aranzazu","Frio"]
["Caldas","Aranzazu","Templado"]
["Caldas","Belalcázar","Templado"]
["Caldas","Chinchiná","Templado"]
["Caldas","Filadelfia","Calido Humedo"]
["Caldas","Filadelfia","Templado"]
["Caldas","La Dorada","Calido Humedo"]
["Caldas","La Dorada","Calido Seco"]
["Caldas","La Merced","Calido Humedo"]
["Caldas","La Merced","Templado"]
["Caldas","Manizales","Calido Humedo"]
["Caldas","Manizales","Frio"]
["Caldas","Manizales","Templado"]
["Caldas","Manzanares","Frio"]
["Caldas","Manzanares","Templado"]
["Caldas","Marmato","Calido Humedo"]
["Caldas","Marmato","Templado"]
["Caldas","Marquetalia","Calido Humedo"]
["Caldas","Marquetalia","Templado"]
["Caldas","Marulanda","Frio"]
["Caldas","Marulanda","Templado"]
["Caldas","Neira","Calido Humedo"]
["Caldas","Neira","Frio"]
["Caldas","Neira","Templado"]
["Caldas","Norcasia","Calido Humedo"]
["Caldas","Norcasia","Templado"]
["Caldas","Pácora","Calido Humedo"]
["Caldas","Pácora","Frio"]
["Caldas","Pácora","Templado"]
["Caldas","Palestina","Calido Humedo"]
["Caldas","Palestina","Templado"]
["Caldas","Pensilvania","Calido Humedo"]
["Caldas","Pensilvania","Frio"]
["Caldas","Pensilvania","Templado"]
["Caldas","Riosucio","Calido Humedo"]
["Caldas","Riosucio","Frio"]
["Caldas","Riosucio","Templado"]
["Caldas","Risaralda","Templado"]
["Caldas","Salamina","Frio"]
["Caldas","Salamina","Templado"]
["Caldas","Samaná","Calido Humedo"]
["Caldas","Samaná","Templado"]
["Caldas","San José","Templado"]
["Caldas","Supia","Calido Humedo"]
["Caldas","Supia","Frio"]
["Caldas","Supia","Templado"]
["Caldas","Victoria","Calido Humedo"]
["Caldas","Victoria","Templado"]
["Caldas","Villamaria","Frio"]
["Caldas","Villamaria","Templado"]
["Caldas","Viterbo","Templado"]
["Caquetá","Albania","Calido Humedo"]
["Caquetá","Belén De Los Andaquíes","Calido Humedo"]
["Caquetá","Belén De Los Andaquíes","Frio"]
["Caquetá","Belén De Los Andaquíes","Templado"]
["Caquetá","Cartagena Del Chairá","Calido Humedo"]
["Caquetá","Curillo","Calido Humedo"]
["Caquetá","El Doncello","Calido Humedo"]
["Caquetá","El Doncello","Frio"]
["Caquetá","El Doncello","Templado"]
["Caquetá","El Paujil","Calido Humedo"]
["Caquetá","El Paujil","Frio"]
["Caquetá","El Paujil","Templado"]
["Caquetá","Florencia","Calido Humedo"]
["Caquetá","Florencia","Frio"]
["Caquetá","Florencia","Templado"]
["Caquetá","Milán","Calido Humedo"]
["Caquetá","Montañita","Calido Humedo"]
["Caquetá","Montañita","Templado"]
["Caquetá","Morelia","Calido Humedo"]
["Caquetá","Morelia","Templado"]
["Caquetá","Puerto Rico","Calido Humedo"]
["Caquetá","Puerto Rico","Frio"]
["Caquetá","Puerto Rico","Templado"]
["Caquetá","San José Del Fragua","Calido Humedo"]
["Caquetá","San José Del Fragua","Frio"]
["Caquetá","San José Del Fragua","Templado"]
["Caquetá","San Vicente Del Caguán","Calido Humedo"]
["Caquetá","San Vicente Del Caguán","Calido Seco"]
["Caquetá","San Vicente Del Caguán","Frio"]
["Caquetá","San Vicente Del Caguán","Templado"]
["Caquetá","Solano","Calido Humedo"]
["Caquetá","Solita","Calido Humedo"]
["Caquetá","Valparaíso","Calido Humedo"]
["Casanare","Aguazul","Calido Humedo"]
["Casanare","Aguazul","Templado"]
["Casanare","Chámeza","Calido Humedo"]
["Casanare","Chámeza","Frio"]
["Casanare","Chámeza","Templado"]
["Casanare","Hato Corozal","Calido Seco"]
["Casanare","Hato Corozal","Templado"]
["Casanare","La Salina","Frio"]
["Casanare","La Salina","Templado"]
["Casanare","Maní","Calido Humedo"]
["Casanare","Monterrey","Calido Humedo"]
["Casanare","Monterrey","Templado"]
["Casanare","Nunchía","Calido Humedo"]
["Casanare","Nunchía","Templado"]
["Casanare","Orocué","Calido Humedo"]
["Casanare","Paz De Ariporo","Calido Humedo"]
["Casanare","Paz De Ariporo","Calido Seco"]
["Casanare","Paz De Ariporo","Templado"]
["Casanare","Pore","Calido Humedo"]
["Casanare","Recetor","Calido Humedo"]
["Casanare","Recetor","Frio"]
["Casanare","Recetor","Templado"]
["Casanare","Sabanalarga","Calido Humedo"]
["Casanare","Sabanalarga","Templado"]
["Casanare","Sácama","Calido Humedo"]
["Casanare","Sácama","Frio"]
["Casanare","Sácama","Templado"]
["Casanare","San Luis De Palenque","Calido Humedo"]
["Casanare","Támara","Calido Humedo"]
["Casanare","Támara","Frio"]
["Casanare","Támara","Templado"]
["Casanare","Tauramena","Calido Humedo"]
["Casanare","Tauramena","Templado"]
["Casanare","Trinidad","Calido Humedo"]
["Casanare","Villanueva","Calido Humedo"]
["Casanare","Yopal","Calido Humedo"]
["Casanare","Yopal","Templado"]
["Cauca","Almaguer","Frio"]
["Cauca","Almaguer","Templado"]
["Cauca","Argelia","Frio"]
["Cauca","Argelia","Templado"]
["Cauca","Balboa","Calido Humedo"]
["Cauca","Balboa","Frio"]
["Cauca","Balboa","Templado"]
["Cauca","Bolívar","Calido Humedo"]
["Cauca","Bolívar","Frio"]
["Cauca","Bolívar","Templado"]
["Cauca","Buenos Aires","Frio"]
["Cauca","Buenos Aires","Templado"]
["Cauca","Cajibío","Frio"]
["Cauca","Cajibío","Templado"]
["Cauca","Caldono","Frio"]
["Cauca","Caldono","Templado"]
["Cauca","Caloto","Calido Humedo"]
["Cauca","Caloto","Templado"]
["Cauca","Corinto","Frio"]
["Cauca","Corinto","Templado"]
["Cauca","El Tambo","Calido Humedo"]
["Cauca","El Tambo","Frio"]
["Cauca","El Tambo","Templado"]
["Cauca","Florencia","Frio"]
["Cauca","Florencia","Templado"]
["Cauca","Guachené","Calido Humedo"]
["Cauca","Guachené","Templado"]
["Cauca","Guapi","Calido Humedo"]
["Cauca","Guapi","Frio"]
["Cauca","Guapi","Templado"]
["Cauca","Inzá","Frio"]
["Cauca","Inzá","Templado"]
["Cauca","Jambaló","Frio"]
["Cauca","Jambaló","Templado"]
["Cauca","La Sierra","Calido Humedo"]
["Cauca","La Sierra","Frio"]
["Cauca","La Sierra","Templado"]
["Cauca","La Vega","Frio"]
["Cauca","La Vega","Templado"]
["Cauca","López","Calido Humedo"]
["Cauca","López","Templado"]
["Cauca","Mercaderes","Calido Humedo"]
["Cauca","Mercaderes","Templado"]
["Cauca","Miranda","Frio"]
["Cauca","Miranda","Templado"]
["Cauca","Morales","Frio"]
["Cauca","Morales","Templado"]
["Cauca","Padilla","Templado"]
["Cauca","Páez","Frio"]
["Cauca","Páez","Templado"]
["Cauca","Patía","Calido Humedo"]
["Cauca","Patía","Calido Seco"]
["Cauca","Patía","Frio"]
["Cauca","Patía","Templado"]
["Cauca","Piamonte","Calido Humedo"]
["Cauca","Piamonte","Frio"]
["Cauca","Piamonte","Templado"]
["Cauca","Piendamó Tunia","Frio"]
["Cauca","Piendamó Tunia","Templado"]
["Cauca","Popayán","Frio"]
["Cauca","Popayán","Templado"]
["Cauca","Puerto Tejada","Calido Humedo"]
["Cauca","Puerto Tejada","Templado"]
["Cauca","Puracé","Frio"]
["Cauca","Puracé","Templado"]
["Cauca","Rosas","Frio"]
["Cauca","Rosas","Templado"]
["Cauca","San Sebastián","Frio"]
["Cauca","San Sebastián","Templado"]
["Cauca","Santa Rosa","Calido Humedo"]
["Cauca","Santa Rosa","Frio"]
["Cauca","Santa Rosa","Templado"]
["Cauca","Santander De Quilichao","Calido Humedo"]
["Cauca","Santander De Quilichao","Frio"]
["Cauca","Santander De Quilichao","Templado"]
["Cauca","Silvia","Frio"]
["Cauca","Silvia","Templado"]
["Cauca","Sotará","Frio"]
["Cauca","Sotará","Templado"]
["Cauca","Suárez","Templado"]
["Cauca","Sucre","Calido Humedo"]
["Cauca","Sucre","Frio"]
["Cauca","Sucre","Templado"]
["Cauca","Timbío","Frio"]
["Cauca","Timbío","Templado"]
["Cauca","Timbiquí","Calido Humedo"]
["Cauca","Timbiquí","Frio"]
["Cauca","Timbiquí","Templado"]
["Cauca","Toribío","Frio"]
["Cauca","Toribío","Templado"]
["Cauca","Totoró","Frio"]
["Cauca","Totoró","Templado"]
["Cauca","Villa Rica","Calido Humedo"]
["Cauca","Villa Rica","Templado"]
["Cesar","Aguachica","Calido Humedo"]
["Cesar","Aguachica","Templado"]
["Cesar","Agustín Codazzi","Calido Humedo"]
["Cesar","Agustín Codazzi","Calido Seco"]
["Cesar","Agustín Codazzi","Frio"]
["Cesar","Agustín Codazzi","Templado"]
["Cesar","Astrea","Calido Humedo"]
["Cesar","Astrea","Calido Seco"]
["Cesar","Becerrill","Calido Humedo"]
["Cesar","Becerrill","Calido Seco"]
["Cesar","Becerrill","Frio"]
["Cesar","Becerrill","Templado"]
["Cesar","Bosconia","Calido Seco"]
["Cesar","Chimichagua","Calido Humedo"]
["Cesar","Chimichagua","Templado"]
["Cesar","Chiriguaná","Calido Humedo"]
["Cesar","Chiriguaná","Calido Seco"]
["Cesar","Chiriguaná","Templado"]
["Cesar","Curumaní","Calido Humedo"]
["Cesar","Curumaní","Templado"]
["Cesar","El Copey","Calido Humedo"]
["Cesar","El Copey","Calido Seco"]
["Cesar","El Copey","Templado"]
["Cesar","El Paso","Calido Humedo"]
["Cesar","El Paso","Calido Seco"]
["Cesar","Gamarra","Calido Humedo"]
["Cesar","González","Templado"]
["Cesar","La Gloria","Calido Humedo"]
["Cesar","La Gloria","Templado"]
["Cesar","La Jagua De Ibirico","Calido Humedo"]
["Cesar","La Jagua De Ibirico","Calido Seco"]
["Cesar","La Jagua De Ibirico","Templado"]
["Cesar","La Paz","Calido Humedo"]
["Cesar","La Paz","Calido Seco"]
["Cesar","La Paz","Frio"]
["Cesar","La Paz","Templado"]
["Cesar","Manaure Balcón Del Cesar","Calido Humedo"]
["Cesar","Manaure Balcón Del Cesar","Calido Seco"]
["Cesar","Manaure Balcón Del Cesar","Frio"]
["Cesar","Manaure Balcón Del Cesar","Templado"]
["Cesar","Pailitas","Calido Humedo"]
["Cesar","Pailitas","Templado"]
["Cesar","Pelaya","Calido Humedo"]
["Cesar","Pelaya","Templado"]
["Cesar","Pueblo Bello","Calido Humedo"]
["Cesar","Pueblo Bello","Calido Seco"]
["Cesar","Pueblo Bello","Frio"]
["Cesar","Pueblo Bello","Templado"]
["Cesar","Río De Oro","Calido Humedo"]
["Cesar","Río De Oro","Templado"]
["Cesar","San Alberto","Calido Humedo"]
["Cesar","San Alberto","Templado"]
["Cesar","San Diego","Calido Humedo"]
["Cesar","San Diego","Calido Seco"]
["Cesar","San Diego","Templado"]
["Cesar","San Martín","Calido Humedo"]
["Cesar","San Martín","Templado"]
["Cesar","Tamalameque","Calido Humedo"]
["Cesar","Valledupar","Calido Humedo"]
["Cesar","Valledupar","Calido Seco"]
["Cesar","Valledupar","Frio"]
["Cesar","Valledupar","Templado"]
["Chocó","Acandí","Calido Humedo"]
["Chocó","Alto Baudó","Calido Humedo"]
["Chocó","Alto Baudó","Templado"]
["Chocó","Atrato (Yuto)","Calido Humedo"]
["Chocó","Bagadó","Calido Humedo"]
["Chocó","Bagadó","Frio"]
["Chocó","Bagadó","Templado"]
["Chocó","Bahía Solano","Calido Humedo"]
["Chocó","Bahía Solano","Templado"]
["Chocó","Bajo Baudó","Calido Humedo"]
["Chocó","Bajo Baudó","Templado"]
["Chocó","Bojayá","Calido Humedo"]
["Chocó","Bojayá","Templado"]
["Chocó","Carmen Del Darién","Calido Humedo"]
["Chocó","Carmen Del Darién","Templado"]
["Chocó","Cértegui","Calido Humedo"]
["Chocó","Condoto","Calido Humedo"]
["Chocó","Condoto","Templado"]
["Chocó","El Cantón Del San Pablo","Calido Humedo"]
["Chocó","El Carmen","Calido Humedo"]
["Chocó","El Carmen","Frio"]
["Chocó","El Carmen","Templado"]
["Chocó","El Litoral Del San Juán","Calido Humedo"]
["Chocó","El Litoral Del San Juán","Frio"]
["Chocó","El Litoral Del San Juán","Templado"]
["Chocó","Istmina","Calido Humedo"]
["Chocó","Juradó","Calido Humedo"]
["Chocó","Lloró","Calido Humedo"]
["Chocó","Lloró","Frio"]
["Chocó","Lloró","Templado"]
["Chocó","Medio Atrato","Calido Humedo"]
["Chocó","Medio Atrato","Frio"]
["Chocó","Medio Atrato","Templado"]
["Chocó","Medio Baudó","Calido Humedo"]
["Chocó","Medio San Juan","Calido Humedo"]
["Chocó","Nóvita","Calido Humedo"]
["Chocó","Nóvita","Templado"]
["Chocó","Nuquí","Calido Humedo"]
["Chocó","Nuquí","Templado"]
["Chocó","Quibdó","Calido Humedo"]
["Chocó","Quibdó","Frio"]
["Chocó","Quibdó","Templado"]
["Chocó","Rio Iró","Calido Humedo"]
["Chocó","Rio Iró","Templado"]
["Chocó","Rio Quito","Calido Humedo"]
["Chocó","Riosucio","Calido Humedo"]
["Chocó","Riosucio","Templado"]
["Chocó","San José Del Palmar","Calido Humedo"]
["Chocó","San José Del Palmar","Frio"]
["Chocó","San José Del Palmar","Templado"]
["Chocó","Sipí","Calido Humedo"]
["Chocó","Sipí","Templado"]
["Chocó","Tadó","Calido Humedo"]
["Chocó","Tadó","Frio"]
["Chocó","Tadó","Templado"]
["Chocó","Unguía","Calido Humedo"]
["Chocó","Unión Panamericana","Calido Humedo"]
["Córdoba","Ayapel","Calido Humedo"]
["Córdoba","Buenavista","Calido Humedo"]
["Córdoba","Canalete","Calido Humedo"]
["Córdoba","Cereté","Calido Humedo"]
["Córdoba","Chima","Calido Humedo"]
["Córdoba","Chinú","Calido Humedo"]
["Córdoba","Ciénaga De Oro","Calido Humedo"]
["Córdoba","Cotorra","Calido Humedo"]
["Córdoba","La Apartada","Calido Humedo"]
["Córdoba","Lorica","Calido Humedo"]
["Córdoba","Los Córdobas","Calido Humedo"]
["Córdoba","Momil","Calido Humedo"]
["Córdoba","Montelíbano","Calido Humedo"]
["Córdoba","Montelíbano","Templado"]
["Córdoba","Montería","Calido Humedo"]
["Córdoba","Moñitos","Calido Humedo"]
["Córdoba","Planeta Rica","Calido Humedo"]
["Córdoba","Pueblo Nuevo","Calido Humedo"]
["Córdoba","Puerto Escondido","Calido Humedo"]
["Córdoba","Puerto Libertador","Calido Humedo"]
["Córdoba","Puerto Libertador","Frio"]
["Córdoba","Puerto Libertador","Templado"]
["Córdoba","Purísima","Calido Humedo"]
["Córdoba","Sahagún","Calido Humedo"]
["Córdoba","San Andrés De Sotavento","Calido Humedo"]
["Córdoba","San Antero","Calido Humedo"]
["Córdoba","San Bernardo Del Viento","Calido Humedo"]
["Córdoba","San Carlos","Calido Humedo"]
["Córdoba","San José De Uré","Calido Humedo"]
["Córdoba","San José De Uré","Templado"]
["Córdoba","San Pelayo","Calido Humedo"]
["Córdoba","Tierralta","Calido Humedo"]
["Córdoba","Tierralta","Templado"]
["Córdoba","Tuchín","Calido Humedo"]
["Córdoba","Valencia","Calido Humedo"]
["Córdoba","Valencia","Templado"]
["Cundinamarca","Agua De Dios","Calido Humedo"]
["Cundinamarca","Agua De Dios","Calido Seco"]
["Cundinamarca","Agua De Dios","Templado"]
["Cundinamarca","Albán","Frio"]
["Cundinamarca","Albán","Templado"]
["Cundinamarca","Anapoima","Calido Humedo"]
["Cundinamarca","Anapoima","Templado"]
["Cundinamarca","Anolaima","Frio"]
["Cundinamarca","Anolaima","Templado"]
["Cundinamarca","Apulo","Calido Humedo"]
["Cundinamarca","Apulo","Templado"]
["Cundinamarca","Arbeláez","Calido Humedo"]
["Cundinamarca","Arbeláez","Calido Seco"]
["Cundinamarca","Arbeláez","Frio"]
["Cundinamarca","Arbeláez","Templado"]
["Cundinamarca","Beltrán","Calido Humedo"]
["Cundinamarca","Beltrán","Calido Seco"]
["Cundinamarca","Beltrán","Templado"]
["Cundinamarca","Bituima","Templado"]
["Cundinamarca","Bogotá, D.C.","Frio"]
["Cundinamarca","Bojacá","Frio"]
["Cundinamarca","Bojacá","Templado"]
["Cundinamarca","Cabrera","Frio"]
["Cundinamarca","Cabrera","Templado"]
["Cundinamarca","Cachipay","Calido Humedo"]
["Cundinamarca","Cachipay","Frio"]
["Cundinamarca","Cachipay","Templado"]
["Cundinamarca","Cajicá","Frio"]
["Cundinamarca","Caparrapí","Calido Humedo"]
["Cundinamarca","Caparrapí","Templado"]
["Cundinamarca","Cáqueza","Frio"]
["Cundinamarca","Cáqueza","Templado"]
["Cundinamarca","Carmen De Carupa","Frio"]
["Cundinamarca","Carmen De Carupa","Templado"]
["Cundinamarca","Chaguaní","Calido Humedo"]
["Cundinamarca","Chaguaní","Templado"]
["Cundinamarca","Chía","Frio"]
["Cundinamarca","Chipaque","Frio"]
["Cundinamarca","Chipaque","Templado"]
["Cundinamarca","Choachí","Frio"]
["Cundinamarca","Choachí","Templado"]
["Cundinamarca","Chocontá","Frio"]
["Cundinamarca","Cogua","Frio"]
["Cundinamarca","Cota","Frio"]
["Cundinamarca","Cucunubá","Frio"]
["Cundinamarca","El Colegio","Calido Humedo"]
["Cundinamarca","El Colegio","Frio"]
["Cundinamarca","El Colegio","Templado"]
["Cundinamarca","El Peñón","Templado"]
["Cundinamarca","El Rosal","Frio"]
["Cundinamarca","Facatativá","Frio"]
["Cundinamarca","Fómeque","Frio"]
["Cundinamarca","Fómeque","Templado"]
["Cundinamarca","Fosca","Frio"]
["Cundinamarca","Fosca","Templado"]
["Cundinamarca","Funza","Frio"]
["Cundinamarca","Fúquene","Frio"]
["Cundinamarca","Fusagasugá","Calido Humedo"]
["Cundinamarca","Fusagasugá","Frio"]
["Cundinamarca","Fusagasugá","Templado"]
["Cundinamarca","Gachalá","Calido Humedo"]
["Cundinamarca","Gachalá","Frio"]
["Cundinamarca","Gachalá","Templado"]
["Cundinamarca","Gachancipá","Frio"]
["Cundinamarca","Gachetá","Frio"]
["Cundinamarca","Gachetá","Templado"]
["Cundinamarca","Gama","Frio"]
["Cundinamarca","Gama","Templado"]
["Cundinamarca","Girardot","Calido Seco"]
["Cundinamarca","Granada","Frio"]
["Cundinamarca","Guachetá","Frio"]
["Cundinamarca","Guaduas","Calido Humedo"]
["Cundinamarca","Guaduas","Calido Seco"]
["Cundinamarca","Guaduas","Templado"]
["Cundinamarca","Guasca","Frio"]
["Cundinamarca","Guataquí","Calido Seco"]
["Cundinamarca","Guatavita","Frio"]
["Cundinamarca","Guayabal De Síquima","Frio"]
["Cundinamarca","Guayabal De Síquima","Templado"]
["Cundinamarca","Guayabetal","Frio"]
["Cundinamarca","Guayabetal","Templado"]
["Cundinamarca","Gutiérrez","Frio"]
["Cundinamarca","Gutiérrez","Templado"]
["Cundinamarca","Jerusalén","Calido Humedo"]
["Cundinamarca","Jerusalén","Calido Seco"]
["Cundinamarca","Jerusalén","Templado"]
["Cundinamarca","Junín","Frio"]
["Cundinamarca","Junín","Templado"]
["Cundinamarca","La Calera","Frio"]
["Cundinamarca","La Calera","Templado"]
["Cundinamarca","La Mesa","Calido Humedo"]
["Cundinamarca","La Mesa","Frio"]
["Cundinamarca","La Mesa","Templado"]
["Cundinamarca","La Palma","Calido Humedo"]
["Cundinamarca","La Palma","Templado"]
["Cundinamarca","La Peña","Calido Humedo"]
["Cundinamarca","La Peña","Templado"]
["Cundinamarca","La Vega","Frio"]
["Cundinamarca","La Vega","Templado"]
["Cundinamarca","Lenguazaque","Frio"]
["Cundinamarca","Machetá","Frio"]
["Cundinamarca","Machetá","Templado"]
["Cundinamarca","Madrid","Frio"]
["Cundinamarca","Manta","Frio"]
["Cundinamarca","Manta","Templado"]
["Cundinamarca","Medina","Calido Humedo"]
["Cundinamarca","Medina","Frio"]
["Cundinamarca","Medina","Templado"]
["Cundinamarca","Mosquera","Frio"]
["Cundinamarca","Nariño","Calido Seco"]
["Cundinamarca","Nemocón","Frio"]
["Cundinamarca","Nilo","Calido Humedo"]
["Cundinamarca","Nilo","Calido Seco"]
["Cundinamarca","Nilo","Templado"]
["Cundinamarca","Nimaima","Templado"]
["Cundinamarca","Nocaima","Templado"]
["Cundinamarca","Pacho","Frio"]
["Cundinamarca","Pacho","Templado"]
["Cundinamarca","Paime","Calido Humedo"]
["Cundinamarca","Paime","Templado"]
["Cundinamarca","Pandi","Calido Humedo"]
["Cundinamarca","Pandi","Calido Seco"]
["Cundinamarca","Pandi","Templado"]
["Cundinamarca","Paratebueno","Calido Humedo"]
["Cundinamarca","Pasca","Frio"]
["Cundinamarca","Pasca","Templado"]
["Cundinamarca","Puerto Salgar","Calido Humedo"]
["Cundinamarca","Puerto Salgar","Calido Seco"]
["Cundinamarca","Pulí","Calido Humedo"]
["Cundinamarca","Pulí","Calido Seco"]
["Cundinamarca","Pulí","Templado"]
["Cundinamarca","Quebradanegra","Calido Humedo"]
["Cundinamarca","Quebradanegra","Templado"]
["Cundinamarca","Quetame","Frio"]
["Cundinamarca","Quetame","Templado"]
["Cundinamarca","Quipile","Calido Humedo"]
["Cundinamarca","Quipile","Templado"]
["Cundinamarca","Ricaurte","Calido Seco"]
["Cundinamarca","San Antonio Del Tequendama","Frio"]
["Cundinamarca","San Antonio Del Tequendama","Templado"]
["Cundinamarca","San Bernardo","Frio"]
["Cundinamarca","San Bernardo","Templado"]
["Cundinamarca","San Cayetano","Frio"]
["Cundinamarca","San Cayetano","Templado"]
["Cundinamarca","San Francisco","Frio"]
["Cundinamarca","San Francisco","Templado"]
["Cundinamarca","San Juan De Rioseco","Calido Humedo"]
["Cundinamarca","San Juan De Rioseco","Calido Humedo"]
["Cundinamarca","Sasaima","Frio"]
["Cundinamarca","Sasaima","Templado"]
["Cundinamarca","Sesquilé","Frio"]
["Cundinamarca","Sibaté","Frio"]
["Cundinamarca","Silvania","Frio"]
["Cundinamarca","Silvania","Templado"]
["Cundinamarca","Simijaca","Frio"]
["Cundinamarca","Soacha","Frio"]
["Cundinamarca","Soacha","Templado"]
["Cundinamarca","Sopó","Frio"]
["Cundinamarca","Subachoque","Frio"]
["Cundinamarca","Suesca","Frio"]
["Cundinamarca","Supatá","Frio"]
["Cundinamarca","Supatá","Templado"]
["Cundinamarca","Susa","Frio"]
["Cundinamarca","Sutatausa","Frio"]
["Cundinamarca","Tabio","Frio"]
["Cundinamarca","Tausa","Frio"]
["Cundinamarca","Tena","Calido Humedo"]
["Cundinamarca","Tena","Frio"]
["Cundinamarca","Tena","Templado"]
["Cundinamarca","Tenjo","Frio"]
["Cundinamarca","Tibacuy","Calido Humedo"]
["Cundinamarca","Tibacuy","Frio"]
["Cundinamarca","Tibacuy","Templado"]
["Cundinamarca","Tibirita","Frio"]
["Cundinamarca","Tibirita","Templado"]
["Cundinamarca","Tocaima","Calido Humedo"]
["Cundinamarca","Tocaima","Calido Seco"]
["Cundinamarca","Tocaima","Templado"]
["Cundinamarca","Tocancipá","Frio"]
["Cundinamarca","Topaipí","Templado"]
["Cundinamarca","Ubalá","Calido Humedo"]
["Cundinamarca","Ubalá","Frio"]
["Cundinamarca","Ubalá","Templado"]
["Cundinamarca","Ubaque","Frio"]
["Cundinamarca","Ubaque","Templado"]
["Cundinamarca","Ubaté","Frio"]
["Cundinamarca","Une","Frio"]
["Cundinamarca","Une","Templado"]
["Cundinamarca","Útica","Calido Humedo"]
["Cundinamarca","Útica","Templado"]
["Cundinamarca","Venecia","Frio"]
["Cundinamarca","Venecia","Templado"]
["Cundinamarca","Vergara","Frio"]
["Cundinamarca","Vergara","Templado"]
["Cundinamarca","Vianí","Templado"]
["Cundinamarca","Villagómez","Frio"]
["Cundinamarca","Villagómez","Templado"]
["Cundinamarca","Villapinzón","Frio"]
["Cundinamarca","Villeta","Templado"]
["Cundinamarca","Viotá","Calido Humedo"]
["Cundinamarca","Viotá","Frio"]
["Cundinamarca","Viotá","Templado"]
["Cundinamarca","Yacopí","Calido Humedo"]
["Cundinamarca","Yacopí","Templado"]
["Cundinamarca","Zipacón","Frio"]
["Cundinamarca","Zipacón","Templado"]
["Cundinamarca","Zipaquirá","Frio"]
["Guainía","Barrancominas","Calido Humedo"]
["Guainía","Cacahual","Calido Humedo"]
["Guainía","Inírida","Calido Humedo"]
["Guainía","La Guadalupe","Calido Humedo"]
["Guainía","Morichal","Calido Humedo"]
["Guainía","Paná-Paná","Calido Humedo"]
["Guainía","Puerto Colombia","Calido Humedo"]
["Guainía","San Felipe","Calido Humedo"]
["Guaviare","Calamar","Calido Humedo"]
["Guaviare","El Retorno","Calido Humedo"]
["Guaviare","Miraflores","Calido Humedo"]
["Guaviare","San José Del Guaviare","Calido Humedo"]
["Huila","Acevedo","Frio"]
["Huila","Acevedo","Templado"]
["Huila","Agrado","Calido Humedo"]
["Huila","Agrado","Templado"]
["Huila","Aipe","Calido Humedo"]
["Huila","Aipe","Calido Seco"]
["Huila","Aipe","Templado"]
["Huila","Algeciras","Calido Humedo"]
["Huila","Algeciras","Calido Seco"]
["Huila","Algeciras","Frio"]
["Huila","Algeciras","Templado"]
["Huila","Altamira","Calido Humedo"]
["Huila","Altamira","Templado"]
["Huila","Baraya","Calido Humedo"]
["Huila","Baraya","Calido Seco"]
["Huila","Baraya","Frio"]
["Huila","Baraya","Templado"]
["Huila","Campoalegre","Calido Seco"]
["Huila","Campoalegre","Templado"]
["Huila","Colombia","Calido Humedo"]
["Huila","Colombia","Frio"]
["Huila","Colombia","Templado"]
["Huila","Elías","Calido Humedo"]
["Huila","Elías","Templado"]
["Huila","Garzón","Calido Humedo"]
["Huila","Garzón","Frio"]
["Huila","Garzón","Templado"]
["Huila","Gigante","Calido Humedo"]
["Huila","Gigante","Calido Seco"]
["Huila","Gigante","Frio"]
["Huila","Gigante","Templado"]
["Huila","Guadalupe","Calido Humedo"]
["Huila","Guadalupe","Frio"]
["Huila","Guadalupe","Templado"]
["Huila","Hobo","Calido Humedo"]
["Huila","Hobo","Calido Seco"]
["Huila","Hobo","Templado"]
["Huila","Íquira","Calido Humedo"]
["Huila","Íquira","Frio"]
["Huila","Íquira","Templado"]
["Huila","Isnos","Frio"]
["Huila","Isnos","Templado"]
["Huila","La Argentina","Frio"]
["Huila","La Argentina","Templado"]
["Huila","La Plata","Frio"]
["Huila","La Plata","Templado"]
["Huila","Nátaga","Frio"]
["Huila","Nátaga","Templado"]
["Huila","Neiva","Calido Humedo"]
["Huila","Neiva","Calido Seco"]
["Huila","Neiva","Frio"]
["Huila","Neiva","Templado"]
["Huila","Oporapa","Frio"]
["Huila","Oporapa","Templado"]
["Huila","Paicol","Calido Humedo"]
["Huila","Paicol","Templado"]
["Huila","Palermo","Calido Humedo"]
["Huila","Palermo","Calido Seco"]
["Huila","Palermo","Frio"]
["Huila","Palermo","Templado"]
["Huila","Palestina","Frio"]
["Huila","Palestina","Templado"]
["Huila","Pital","Calido Humedo"]
["Huila","Pital","Templado"]
["Huila","Pitalito","Frio"]
["Huila","Pitalito","Templado"]
["Huila","Rivera","Calido Seco"]
["Huila","Rivera","Templado"]
["Huila","Saladoblanco","Frio"]
["Huila","Saladoblanco","Templado"]
["Huila","San Agustín","Frio"]
["Huila","San Agustín","Templado"]
["Huila","Santa María","Calido Humedo"]
["Huila","Santa María","Frio"]
["Huila","Santa María","Templado"]
["Huila","Suaza","Frio"]
["Huila","Suaza","Templado"]
["Huila","Tarqui","Calido Humedo"]
["Huila","Tarqui","Frio"]
["Huila","Tarqui","Templado"]
["Huila","Tello","Calido Humedo"]
["Huila","Tello","Calido Seco"]
["Huila","Tello","Frio"]
["Huila","Tello","Templado"]
["Huila","Teruel","Calido Humedo"]
["Huila","Teruel","Calido Seco"]
["Huila","Teruel","Frio"]
["Huila","Teruel","Templado"]
["Huila","Tesalia","Calido Humedo"]
["Huila","Tesalia","Frio"]
["Huila","Tesalia","Templado"]
["Huila","Timaná","Calido Humedo"]
["Huila","Timaná","Templado"]
["Huila","Villavieja","Calido Seco"]
["Huila","Villavieja","Templado"]
["Huila","Yaguará","Calido Humedo"]
["Huila","Yaguará","Calido Seco"]
["Huila","Yaguará","Templado"]
["La Guajira","Albania","Calido Humedo"]
["La Guajira","Albania","Calido Seco"]
["La Guajira","Barrancas","Calido Seco"]
["La Guajira","Barrancas","Templado"]
["La Guajira","Dibulla","Calido Humedo"]
["La Guajira","Dibulla","Frio"]
["La Guajira","Dibulla","Templado"]
["La Guajira","Distracción","Calido Seco"]
["La Guajira","El Molino","Calido Seco"]
["La Guajira","El Molino","Templado"]
["La Guajira","Fonseca","Calido Seco"]
["La Guajira","Fonseca","Templado"]
["La Guajira","Hatonuevo","Calido Seco"]
["La Guajira","La Jagua Del Pilar","Calido Humedo"]
["La Guajira","La Jagua Del Pilar","Calido Seco"]
["La Guajira","La Jagua Del Pilar","Frio"]
["La Guajira","La Jagua Del Pilar","Templado"]
["La Guajira","Maicao","Calido Humedo"]
["La Guajira","Maicao","Calido Seco"]
["La Guajira","Manaure","Calido Seco"]
["La Guajira","Riohacha","Calido Humedo"]
["La Guajira","Riohacha","Calido Seco"]
["La Guajira","Riohacha","Frio"]
["La Guajira","Riohacha","Templado"]
["La Guajira","San Juan Del Cesar","Calido Humedo"]
["La Guajira","San Juan Del Cesar","Calido Seco"]
["La Guajira","San Juan Del Cesar","Frio"]
["La Guajira","San Juan Del Cesar","Templado"]
["La Guajira","Uribia","Calido Humedo"]
["La Guajira","Uribia","Calido Seco"]
["La Guajira","Urumita","Calido Humedo"]
["La Guajira","Urumita","Calido Seco"]
["La Guajira","Urumita","Frio"]
["La Guajira","Urumita","Templado"]
["La Guajira","Villanueva","Calido Seco"]
["La Guajira","Villanueva","Templado"]
["Magdalena","Algarrobo","Calido Humedo"]
["Magdalena","Aracataca","Calido Humedo"]
["Magdalena","Aracataca","Frio"]
["Magdalena","Aracataca","Templado"]
["Magdalena","Ariguaní","Calido Humedo"]
["Magdalena","Ariguaní","Calido Seco"]
["Magdalena","Cerro De San Antonio","Calido Humedo"]
["Magdalena","Chivolo","Calido Humedo"]
["Magdalena","Ciénaga","Calido Humedo"]
["Magdalena","Ciénaga","Calido Seco"]
["Magdalena","Ciénaga","Frio"]
["Magdalena","Ciénaga","Templado"]
["Magdalena","Concordia","Calido Humedo"]
["Magdalena","El Banco","Calido Humedo"]
["Magdalena","El Banco","Calido Seco"]
["Magdalena","El Piñón","Calido Humedo"]
["Magdalena","El Retén","Calido Humedo"]
["Magdalena","Fundación","Calido Humedo"]
["Magdalena","Fundación","Frio"]
["Magdalena","Fundación","Templado"]
["Magdalena","Guamal","Calido Humedo"]
["Magdalena","Nueva Granada","Calido Humedo"]
["Magdalena","Pedraza","Calido Humedo"]
["Magdalena","Pijiño Del Carmen","Calido Humedo"]
["Magdalena","Pijiño Del Carmen","Calido Seco"]
["Magdalena","Pivijay","Calido Humedo"]
["Magdalena","Plato","Calido Humedo"]
["Magdalena","Puebloviejo","Calido Humedo"]
["Magdalena","Remolino","Calido Humedo"]
["Magdalena","Sabanas De San Ángel","Calido Humedo"]
["Magdalena","Sabanas De San Ángel","Calido Seco"]
["Magdalena","Salamina","Calido Humedo"]
["Magdalena","San Sebastián De Buenavista","Calido Humedo"]
["Magdalena","San Zenón","Calido Humedo"]
["Magdalena","Santa Ana","Calido Humedo"]
["Magdalena","Santa Ana","Calido Seco"]
["Magdalena","Santa Bárbara De Pinto","Calido Humedo"]
["Magdalena","Santa Marta","Calido Humedo"]
["Magdalena","Santa Marta","Calido Seco"]
["Magdalena","Santa Marta","Frio"]
["Magdalena","Santa Marta","Templado"]
["Magdalena","Sitionuevo","Calido Humedo"]
["Magdalena","Tenerife","Calido Humedo"]
["Magdalena","Zapayán","Calido Humedo"]
["Magdalena","Zona Bananera","Calido Humedo"]
["Magdalena","Zona Bananera","Templado"]
["Meta","Acacías","Calido Humedo"]
["Meta","Acacías","Frio"]
["Meta","Acacías","Templado"]
["Meta","Barranca De Upía","Calido Humedo"]
["Meta","Cabuyaro","Calido Humedo"]
["Meta","Castilla La Nueva","Calido Humedo"]
["Meta","Cubarral","Calido Humedo"]
["Meta","Cubarral","Frio"]
["Meta","Cubarral","Templado"]
["Meta","Cumaral","Calido Humedo"]
["Meta","Cumaral","Calido Humedo"]
["Meta","Cumaral","Calido Humedo"]
["Meta","Cumaral","Templado"]
["Meta","Cumaral","Templado"]
["Meta","Cumaral","Templado"]
["Meta","Cumaral","Templado"]
["Meta","Cumaral","Templado"]
["Meta","Cumaral","Templado"]
["Meta","El Calvario","Frio"]
["Meta","El Calvario","Templado"]
["Meta","El Castillo","Calido Humedo"]
["Meta","El Castillo","Frio"]
["Meta","El Castillo","Templado"]
["Meta","El Dorado","Calido Humedo"]
["Meta","El Dorado","Templado"]
["Meta","Fuente De Oro","Calido Humedo"]
["Meta","Granada","Calido Humedo"]
["Meta","Guamal","Calido Humedo"]
["Meta","Guamal","Frio"]
["Meta","Guamal","Templado"]
["Meta","La Macarena","Calido Humedo"]
["Meta","La Macarena","Templado"]
["Meta","Lejanías","Calido Humedo"]
["Meta","Lejanías","Frio"]
["Meta","Lejanías","Templado"]
["Meta","Mapiripán","Calido Humedo"]
["Meta","Mesetas","Calido Humedo"]
["Meta","Mesetas","Frio"]
["Meta","Mesetas","Templado"]
["Meta","Puerto Concordia","Calido Humedo"]
["Meta","Puerto Gaitán","Calido Humedo"]
["Meta","Puerto Lleras","Calido Humedo"]
["Meta","Puerto López","Calido Humedo"]
["Meta","Puerto Rico","Calido Humedo"]
["Meta","Restrepo","Calido Humedo"]
["Meta","Restrepo","Frio"]
["Meta","Restrepo","Templado"]
["Meta","San Carlos De Guaroa","Calido Humedo"]
["Meta","San Juan De Arama","Calido Humedo"]
["Meta","San Juan De Arama","Templado"]
["Meta","San Juanito","Frio"]
["Meta","San Juanito","Templado"]
["Meta","San Martín","Calido Humedo"]
["Meta","Uribe","Calido Humedo"]
["Meta","Uribe","Frio"]
["Meta","Uribe","Templado"]
["Meta","Villavicencio","Calido Humedo"]
["Meta","Villavicencio","Frio"]
["Meta","Villavicencio","Templado"]
["Meta","Vistahermosa","Calido Humedo"]
["Meta","Vistahermosa","Templado"]
["N/A","Area En Litigio Cauca - Huila","Frio"]
["N/A","Area En Litigio Cauca - Huila","Templado"]
["Nariño","Albán","Frio"]
["Nariño","Albán","Templado"]
["Nariño","Aldana","Frio"]
["Nariño","Ancuya","Frio"]
["Nariño","Ancuya","Templado"]
["Nariño","Arboleda","Frio"]
["Nariño","Arboleda","Templado"]
["Nariño","Barbacoas","Calido Humedo"]
["Nariño","Barbacoas","Templado"]
["Nariño","Belén","Frio"]
["Nariño","Belén","Templado"]
["Nariño","Buesaco","Frio"]
["Nariño","Buesaco","Templado"]
["Nariño","Chachagüí","Calido Humedo"]
["Nariño","Chachagüí","Frio"]
["Nariño","Chachagüí","Templado"]
["Nariño","Colón","Frio"]
["Nariño","Colón","Templado"]
["Nariño","Consacá","Frio"]
["Nariño","Consacá","Templado"]
["Nariño","Contadero","Frio"]
["Nariño","Contadero","Templado"]
["Nariño","Córdoba","Frio"]
["Nariño","Córdoba","Templado"]
["Nariño","Cuaspud","Frio"]
["Nariño","Cumbal","Frio"]
["Nariño","Cumbal","Templado"]
["Nariño","Cumbitara","Calido Humedo"]
["Nariño","Cumbitara","Frio"]
["Nariño","Cumbitara","Templado"]
["Nariño","El Charco","Calido Humedo"]
["Nariño","El Charco","Frio"]
["Nariño","El Charco","Templado"]
["Nariño","El Peñol","Calido Humedo"]
["Nariño","El Peñol","Templado"]
["Nariño","El Rosario","Calido Humedo"]
["Nariño","El Rosario","Frio"]
["Nariño","El Rosario","Templado"]
["Nariño","El Tablón","Frio"]
["Nariño","El Tablón","Templado"]
["Nariño","El Tambo","Calido Humedo"]
["Nariño","El Tambo","Frio"]
["Nariño","El Tambo","Templado"]
["Nariño","Francisco Pizarro","Calido Humedo"]
["Nariño","Funes","Frio"]
["Nariño","Funes","Templado"]
["Nariño","Guachucal","Frio"]
["Nariño","Guaitarilla","Frio"]
["Nariño","Guaitarilla","Templado"]
["Nariño","Gualmatán","Frio"]
["Nariño","Iles","Frio"]
["Nariño","Iles","Templado"]
["Nariño","Imués","Frio"]
["Nariño","Imués","Templado"]
["Nariño","Ipiales","Calido Humedo"]
["Nariño","Ipiales","Frio"]
["Nariño","Ipiales","Templado"]
["Nariño","La Cruz","Frio"]
["Nariño","La Cruz","Templado"]
["Nariño","La Florida","Frio"]
["Nariño","La Florida","Templado"]
["Nariño","La Llanada","Calido Humedo"]
["Nariño","La Llanada","Frio"]
["Nariño","La Llanada","Templado"]
["Nariño","La Tola","Calido Humedo"]
["Nariño","La Unión","Calido Humedo"]
["Nariño","La Unión","Frio"]
["Nariño","La Unión","Templado"]
["Nariño","Leiva","Calido Humedo"]
["Nariño","Leiva","Frio"]
["Nariño","Leiva","Templado"]
["Nariño","Linares","Calido Humedo"]
["Nariño","Linares","Frio"]
["Nariño","Linares","Templado"]
["Nariño","Los Andes","Calido Humedo"]
["Nariño","Los Andes","Frio"]
["Nariño","Los Andes","Templado"]
["Nariño","Magüí","Calido Humedo"]
["Nariño","Mallama","Frio"]
["Nariño","Mallama","Templado"]
["Nariño","Mosquera","Calido Humedo"]
["Nariño","Nariño","Frio"]
["Nariño","Nariño","Templado"]
["Nariño","Olaya Herrera","Calido Humedo"]
["Nariño","Ospina","Frio"]
["Nariño","Ospina","Templado"]
["Nariño","Pasto","Frio"]
["Nariño","Pasto","Templado"]
["Nariño","Policarpa","Calido Humedo"]
["Nariño","Policarpa","Templado"]
["Nariño","Potosí","Frio"]
["Nariño","Potosí","Templado"]
["Nariño","Providencia","Frio"]
["Nariño","Providencia","Templado"]
["Nariño","Puerres","Frio"]
["Nariño","Puerres","Templado"]
["Nariño","Pupiales","Frio"]
["Nariño","Ricaurte","Calido Humedo"]
["Nariño","Ricaurte","Frio"]
["Nariño","Ricaurte","Templado"]
["Nariño","Roberto Payán","Calido Humedo"]
["Nariño","Samaniego","Calido Humedo"]
["Nariño","Samaniego","Frio"]
["Nariño","Samaniego","Templado"]
["Nariño","San Bernardo","Frio"]
["Nariño","San Bernardo","Templado"]
["Nariño","San Lorenzo","Calido Humedo"]
["Nariño","San Lorenzo","Frio"]
["Nariño","San Lorenzo","Templado"]
["Nariño","San Pablo","Frio"]
["Nariño","San Pablo","Templado"]
["Nariño","San Pedro De Cartago","Frio"]
["Nariño","San Pedro De Cartago","Templado"]
["Nariño","Sandoná","Frio"]
["Nariño","Sandoná","Templado"]
["Nariño","Santa Bárbara","Calido Humedo"]
["Nariño","Santa Bárbara","Templado"]
["Nariño","Santa Cruz","Calido Humedo"]
["Nariño","Santa Cruz","Frio"]
["Nariño","Santa Cruz","Templado"]
["Nariño","Sapuyes","Frio"]
["Nariño","Taminango","Calido Humedo"]
["Nariño","Taminango","Templado"]
["Nariño","Tangua","Frio"]
["Nariño","Tangua","Templado"]
["Nariño","Tumaco","Calido Humedo"]
["Nariño","Tumaco","Templado"]
["Nariño","Túquerres","Frio"]
["Nariño","Túquerres","Templado"]
["Nariño","Yacuanquer","Frio"]
["Nariño","Yacuanquer","Templado"]
["Norte de Santander","Ábrego","Calido Humedo"]
["Norte de Santander","Ábrego","Frio"]
["Norte de Santander","Ábrego","Templado"]
["Norte de Santander","Arboledas","Calido Humedo"]
["Norte de Santander","Arboledas","Frio"]
["Norte de Santander","Arboledas","Templado"]
["Norte de Santander","Bochalema","Calido Humedo"]
["Norte de Santander","Bochalema","Frio"]
["Norte de Santander","Bochalema","Templado"]
["Norte de Santander","Bucarasica","Calido Humedo"]
["Norte de Santander","Bucarasica","Frio"]
["Norte de Santander","Bucarasica","Templado"]
["Norte de Santander","Cáchira","Calido Humedo"]
["Norte de Santander","Cáchira","Frio"]
["Norte de Santander","Cáchira","Templado"]
["Norte de Santander","Cácota","Frio"]
["Norte de Santander","Cácota","Templado"]
["Norte de Santander","Chinácota","Frio"]
["Norte de Santander","Chinácota","Templado"]
["Norte de Santander","Chitagá","Frio"]
["Norte de Santander","Chitagá","Templado"]
["Norte de Santander","Convención","Calido Humedo"]
["Norte de Santander","Convención","Templado"]
["Norte de Santander","Cúcuta","Calido Humedo"]
["Norte de Santander","Cúcuta","Calido Seco"]
["Norte de Santander","Cúcuta","Templado"]
["Norte de Santander","Cucutilla","Frio"]
["Norte de Santander","Cucutilla","Templado"]
["Norte de Santander","Durania","Calido Humedo"]
["Norte de Santander","Durania","Calido Seco"]
["Norte de Santander","Durania","Templado"]
["Norte de Santander","El Carmen","Calido Humedo"]
["Norte de Santander","El Carmen","Templado"]
["Norte de Santander","El Tarra","Calido Humedo"]
["Norte de Santander","El Tarra","Templado"]
["Norte de Santander","El Zulia","Calido Humedo"]
["Norte de Santander","El Zulia","Calido Seco"]
["Norte de Santander","El Zulia","Templado"]
["Norte de Santander","Gramalote","Calido Humedo"]
["Norte de Santander","Gramalote","Frio"]
["Norte de Santander","Gramalote","Templado"]
["Norte de Santander","Hacarí","Calido Humedo"]
["Norte de Santander","Hacarí","Templado"]
["Norte de Santander","Herrán","Frio"]
["Norte de Santander","Herrán","Templado"]
["Norte de Santander","La Esperanza","Calido Humedo"]
["Norte de Santander","La Esperanza","Frio"]
["Norte de Santander","La Esperanza","Templado"]
["Norte de Santander","La Playa","Calido Humedo"]
["Norte de Santander","La Playa","Templado"]
["Norte de Santander","Labateca","Frio"]
["Norte de Santander","Labateca","Templado"]
["Norte de Santander","Los Patios","Calido Humedo"]
["Norte de Santander","Los Patios","Calido Seco"]
["Norte de Santander","Los Patios","Frio"]
["Norte de Santander","Los Patios","Templado"]
["Norte de Santander","Lourdes","Calido Humedo"]
["Norte de Santander","Lourdes","Frio"]
["Norte de Santander","Lourdes","Templado"]
["Norte de Santander","Mutiscua","Frio"]
["Norte de Santander","Mutiscua","Templado"]
["Norte de Santander","Ocaña","Calido Humedo"]
["Norte de Santander","Ocaña","Templado"]
["Norte de Santander","Pamplona","Frio"]
["Norte de Santander","Pamplona","Templado"]
["Norte de Santander","Pamplonita","Frio"]
["Norte de Santander","Pamplonita","Templado"]
["Norte de Santander","Puerto Santander","Calido Humedo"]
["Norte de Santander","Ragonvalia","Frio"]
["Norte de Santander","Ragonvalia","Templado"]
["Norte de Santander","Salazar","Calido Humedo"]
["Norte de Santander","Salazar","Frio"]
["Norte de Santander","Salazar","Templado"]
["Norte de Santander","San Calixto","Calido Humedo"]
["Norte de Santander","San Calixto","Templado"]
["Norte de Santander","San Cayetano","Calido Humedo"]
["Norte de Santander","San Cayetano","Calido Seco"]
["Norte de Santander","San Cayetano","Templado"]
["Norte de Santander","Santiago","Calido Humedo"]
["Norte de Santander","Santiago","Templado"]
["Norte de Santander","Sardinata","Calido Humedo"]
["Norte de Santander","Sardinata","Templado"]
["Norte de Santander","Silos","Frio"]
["Norte de Santander","Silos","Templado"]
["Norte de Santander","Teorama","Calido Humedo"]
["Norte de Santander","Teorama","Templado"]
["Norte de Santander","Tibú","Calido Humedo"]
["Norte de Santander","Tibú","Templado"]
["Norte de Santander","Toledo","Calido Humedo"]
["Norte de Santander","Toledo","Frio"]
["Norte de Santander","Toledo","Templado"]
["Norte de Santander","Villa Caro","Frio"]
["Norte de Santander","Villa Caro","Templado"]
["Norte de Santander","Villa Del Rosario","Calido Humedo"]
["Norte de Santander","Villa Del Rosario","Calido Humedo"]
["Norte de Santander","Villa Del Rosario","Calido Seco"]
["Norte de Santander","Villa Del Rosario","Calido Seco"]
["Norte de Santander","Villa Del Rosario","Templado"]
["Norte de Santander","Villa Del Rosario","Templado"]
["Norte de Santander","Villa Del Rosario","Templado"]
["Norte de Santander","Villa Del Rosario","Templado"]
["Norte de Santander","Villa Del Rosario","Templado"]
["Norte de Santander","Villa Del Rosario","Templado"]
["Norte de Santander","Villa Del Rosario","Templado"]
["Norte de Santander","Villa Del Rosario","Templado"]
["Putumayo","Colón","Frio"]
["Putumayo","Leguízamo","Calido Humedo"]
["Putumayo","Mocoa","Calido Humedo"]
["Putumayo","Mocoa","Frio"]
["Putumayo","Mocoa","Templado"]
["Putumayo","Orito","Calido Humedo"]
["Putumayo","Orito","Frio"]
["Putumayo","Orito","Templado"]
["Putumayo","Puerto Asís","Calido Humedo"]
["Putumayo","Puerto Caicedo","Calido Humedo"]
["Putumayo","Puerto Guzmán","Calido Humedo"]
["Putumayo","San Francisco","Frio"]
["Putumayo","San Francisco","Templado"]
["Putumayo","San Miguel","Calido Humedo"]
["Putumayo","Santiago","Frio"]
["Putumayo","Santiago","Templado"]
["Putumayo","Sibundoy","Frio"]
["Putumayo","Valle Del Guamuez","Calido Humedo"]
["Putumayo","Valle Del Guamuez","Templado"]
["Putumayo","Villagarzón","Calido Humedo"]
["Putumayo","Villagarzón","Frio"]
["Putumayo","Villagarzón","Templado"]
["Quindío","Armenia","Templado"]
["Quindío","Buenavista","Templado"]
["Quindío","Calarcá","Frio"]
["Quindío","Calarcá","Templado"]
["Quindío","Circasia","Templado"]
["Quindío","Córdoba","Frio"]
["Quindío","Córdoba","Templado"]
["Quindío","Filandia","Frio"]
["Quindío","Filandia","Templado"]
["Quindío","Génova","Frio"]
["Quindío","Génova","Templado"]
["Quindío","La Tebaida","Templado"]
["Quindío","Montenegro","Templado"]
["Quindío","Pijao","Frio"]
["Quindío","Pijao","Templado"]
["Quindío","Quimbaya","Templado"]
["Quindío","Salento","Frio"]
["Quindío","Salento","Templado"]
["Risaralda","Apía","Frio"]
["Risaralda","Apía","Templado"]
["Risaralda","Balboa","Templado"]
["Risaralda","Belén De Umbría","Templado"]
["Risaralda","Dosquebradas","Templado"]
["Risaralda","Guática","Frio"]
["Risaralda","Guática","Templado"]
["Risaralda","La Celia","Frio"]
["Risaralda","La Celia","Templado"]
["Risaralda","La Virginia","Templado"]
["Risaralda","Marsella","Templado"]
["Risaralda","Mistrató","Calido Humedo"]
["Risaralda","Mistrató","Frio"]
["Risaralda","Mistrató","Templado"]
["Risaralda","Pereira","Frio"]
["Risaralda","Pereira","Templado"]
["Risaralda","Pueblo Rico","Calido Humedo"]
["Risaralda","Pueblo Rico","Frio"]
["Risaralda","Pueblo Rico","Templado"]
["Risaralda","Quinchía","Calido Humedo"]
["Risaralda","Quinchía","Templado"]
["Risaralda","Santa Rosa De Cabal","Frio"]
["Risaralda","Santa Rosa De Cabal","Templado"]
["Risaralda","Santuario","Frio"]
["Risaralda","Santuario","Templado"]
["Santander","Aguada","Templado"]
["Santander","Albania","Frio"]
["Santander","Albania","Templado"]
["Santander","Aratoca","Calido Humedo"]
["Santander","Aratoca","Templado"]
["Santander","Barbosa","Templado"]
["Santander","Barichara","Calido Humedo"]
["Santander","Barichara","Templado"]
["Santander","Barrancabermeja","Calido Humedo"]
["Santander","Betulia","Calido Humedo"]
["Santander","Betulia","Templado"]
["Santander","Bolívar","Calido Humedo"]
["Santander","Bolívar","Frio"]
["Santander","Bolívar","Templado"]
["Santander","Bucaramanga","Calido Humedo"]
["Santander","Bucaramanga","Templado"]
["Santander","Cabrera","Calido Humedo"]
["Santander","Cabrera","Calido Seco"]
["Santander","Cabrera","Templado"]
["Santander","California","Frio"]
["Santander","California","Templado"]
["Santander","Capitanejo","Frio"]
["Santander","Capitanejo","Templado"]
["Santander","Carcasí","Frio"]
["Santander","Carcasí","Templado"]
["Santander","Cepitá","Calido Humedo"]
["Santander","Cepitá","Frio"]
["Santander","Cepitá","Templado"]
["Santander","Cerrito","Frio"]
["Santander","Cerrito","Templado"]
["Santander","Charalá","Frio"]
["Santander","Charalá","Templado"]
["Santander","Charta","Frio"]
["Santander","Charta","Templado",null,null,null,null,"<"]
["Santander","Chima","Calido Humedo"]
["Santander","Chima","Calido Seco"]
["Santander","Chima","Frio"]
["Santander","Chima","Templado"]
["Santander","Chipatá","Templado"]
["Santander","Cimitarra","Calido Humedo"]
["Santander","Cimitarra","Templado"]
["Santander","Concepción","Frio"]
["Santander","Concepción","Templado"]
["Santander","Confines","Templado"]
["Santander","Contratación","Calido Humedo"]
["Santander","Contratación","Frio"]
["Santander","Contratación","Templado"]
["Santander","Coromoro","Frio"]
["Santander","Coromoro","Templado"]
["Santander","Curití","Calido Humedo"]
["Santander","Curití","Templado"]
["Santander","El Carmen","Calido Humedo"]
["Santander","El Carmen","Frio"]
["Santander","El Carmen","Templado"]
["Santander","El Guacamayo","Calido Humedo"]
["Santander","El Guacamayo","Templado"]
["Santander","El Peñón","Calido Humedo"]
["Santander","El Peñón","Frio"]
["Santander","El Peñón","Templado"]
["Santander","El Playón","Calido Humedo"]
["Santander","El Playón","Frio"]
["Santander","El Playón","Templado"]
["Santander","Encino","Frio"]
["Santander","Encino","Templado"]
["Santander","Enciso","Frio"]
["Santander","Enciso","Templado"]
["Santander","Florián","Calido Humedo"]
["Santander","Florián","Frio"]
["Santander","Florián","Templado"]
["Santander","Floridablanca","Calido Humedo"]
["Santander","Floridablanca","Frio"]
["Santander","Floridablanca","Templado"]
["Santander","Galán","Calido Humedo"]
["Santander","Galán","Calido Humedo"]
["Santander","Galán","Calido Humedo"]
["Santander","Galán","Calido Humedo"]
["Santander","Galán","Calido Seco"]
["Santander","Galán","Calido Seco"]
["Santander","Galán","Frio"]
["Santander","Galán","Frio"]
["Santander","Galán","Templado"]
["Santander","Galán","Templado"]
["Santander","Galán","Templado"]
["Santander","Galán","Templado"]
["Santander","Galán","Templado"]
["Santander","Galán","Templado"]
["Santander","Galán","Templado"]
["Santander","Galán","Templado"]
["Santander","Gámbita","Frio"]
["Santander","Gámbita","Frio"]
["Santander","Gámbita","Frio"]
["Santander","Gámbita","Frio"]
["Santander","Gámbita","Templado"]
["Santander","Gámbita","Templado"]
["Santander","Gámbita","Templado"]
["Santander","Girón","Calido Humedo"]
["Santander","Girón","Calido Humedo"]
["Santander","Girón","Calido Humedo"]
["Santander","Girón","Calido Humedo"]
["Santander","Girón","Calido Humedo"]
["Santander","Girón","Templado"]
["Santander","Girón","Templado"]
["Santander","Girón","Templado"]
["Santander","Girón","Templado"]
["Santander","Girón","Templado"]
["Santander","Girón","Templado"]
["Santander","Girón","Templado"]
["Santander","Guaca","Frio"]
["Santander","Guaca","Frio"]
["Santander","Guaca","Frio"]
["Santander","Guaca","Frio"]
["Santander","Guaca","Frio"]
["Santander","Guaca","Frio"]
["Santander","Guaca","Templado"]
["Santander","Guaca","Templado"]
["Santander","Guaca","Templado"]
["Santander","Guadalupe","Calido Humedo"]
["Santander","Guadalupe","Calido Humedo"]
["Santander","Guadalupe","Templado"]
["Santander","Guadalupe","Templado"]
["Santander","Guadalupe","Templado"]
["Santander","Guadalupe","Templado"]
["Santander","Guapotá","Calido Humedo"]
["Santander","Guapotá","Calido Seco"]
["Santander","Guapotá","Templado"]
["Santander","Guapotá","Templado"]
["Santander","Guapotá","Templado"]
["Santander","Guavatá","Templado"]
["Santander","Guavatá","Templado"]
["Santander","Guavatá","Templado"]
["Santander","Guavatá","Templado"]
["Santander","Guavatá","Templado"]
["Santander","Güepsa","Templado"]
["Santander","Hato","Calido Humedo"]
["Santander","Hato","Calido Seco"]
["Santander","Hato","Frio"]
["Santander","Hato","Templado"]
["Santander","Jesús María","Frio"]
["Santander","Jesús María","Templado"]
["Santander","Jordán","Calido Humedo"]
["Santander","Jordán","Templado"]
["Santander","La Belleza","Calido Humedo"]
["Santander","La Belleza","Frio"]
["Santander","La Belleza","Templado"]
["Santander","La Paz","Calido Humedo"]
["Santander","La Paz","Templado"]
["Santander","Landázuri","Calido Humedo"]
["Santander","Landázuri","Templado"]
["Santander","Lebrija","Calido Humedo"]
["Santander","Lebrija","Templado"]
["Santander","Los Santos","Calido Humedo"]
["Santander","Los Santos","Templado"]
["Santander","Macaravita","Frio"]
["Santander","Macaravita","Templado"]
["Santander","Málaga","Frio"]
["Santander","Málaga","Templado"]
["Santander","Matanza","Frio"]
["Santander","Matanza","Templado"]
["Santander","Mogotes","Calido Humedo"]
["Santander","Mogotes","Calido Seco"]
["Santander","Mogotes","Frio"]
["Santander","Mogotes","Templado"]
["Santander","Molagavita","Calido Humedo"]
["Santander","Molagavita","Calido Seco"]
["Santander","Molagavita","Frio"]
["Santander","Molagavita","Templado"]
["Santander","Ocamonte","Templado"]
["Santander","Oiba","Templado"]
["Santander","Onzaga","Calido Seco"]
["Santander","Onzaga","Frio"]
["Santander","Onzaga","Templado"]
["Santander","Palmar","Calido Seco"]
["Santander","Palmas Del Socorro","Calido Humedo"]
["Santander","Palmas Del Socorro","Templado"]
["Santander","Páramo","Templado"]
["Santander","Piedecuesta","Calido Humedo"]
["Santander","Piedecuesta","Frio"]
["Santander","Piedecuesta","Templado"]
["Santander","Pinchote","Calido Seco"]
["Santander","Pinchote","Templado"]
["Santander","Puente Nacional","Frio"]
["Santander","Puente Nacional","Templado"]
["Santander","Puerto Parra","Calido Humedo"]
["Santander","Puerto Wilches","Calido Humedo"]
["Santander","Rionegro","Calido Humedo"]
["Santander","Rionegro","Frio"]
["Santander","Rionegro","Templado"]
["Santander","Sabana De Torres","Calido Humedo"]
["Santander","San Andrés","Calido Humedo"]
["Santander","San Andrés","Frio"]
["Santander","San Andrés","Templado"]
["Santander","San Benito","Templado"]
["Santander","San Gil","Calido Seco"]
["Santander","San Gil","Templado"]
["Santander","San Joaquín","Calido Seco"]
["Santander","San Joaquín","Frio"]
["Santander","San Joaquín","Templado"]
["Santander","San José De Miranda","Frio"]
["Santander","San José De Miranda","Templado"]
["Santander","San Miguel","Frio"]
["Santander","San Miguel","Templado"]
["Santander","San Vicente De Chucurí","Calido Humedo"]
["Santander","San Vicente De Chucurí","Frio"]
["Santander","San Vicente De Chucurí","Templado"]
["Santander","Santa Bárbara","Frio"]
["Santander","Santa Bárbara","Templado"]
["Santander","Santa Helena Del Opón","Calido Humedo"]
["Santander","Santa Helena Del Opón","Frio"]
["Santander","Santa Helena Del Opón","Templado"]
["Santander","Simacota","Calido Humedo"]
["Santander","Simacota","Calido Seco"]
["Santander","Simacota","Frio"]
["Santander","Simacota","Templado"]
["Santander","Socorro","Calido Humedo"]
["Santander","Socorro","Calido Seco"]
["Santander","Socorro","Templado"]
["Santander","Suaita","Frio"]
["Santander","Suaita","Templado"]
["Santander","Sucre","Calido Humedo"]
["Santander","Sucre","Frio"]
["Santander","Sucre","Templado"]
["Santander","Suratá","Frio"]
["Santander","Suratá","Templado"]
["Santander","Tona","Frio"]
["Santander","Tona","Templado"]
["Santander","Valle De San José","Templado"]
["Santander","Vélez","Calido Humedo"]
["Santander","Vélez","Templado"]
["Santander","Vetas","Frio"]
["Santander","Villanueva","Calido Humedo"]
["Santander","Villanueva","Templado"]
["Santander","Zapatoca","Calido Humedo"]
["Santander","Zapatoca","Frio"]
["Santander","Zapatoca","Templado"]
["Sucre","Buenavista","Calido Humedo"]
["Sucre","Caimito","Calido Humedo"]
["Sucre","Chalán","Calido Humedo"]
["Sucre","Colosó","Calido Humedo"]
["Sucre","Corozal","Calido Humedo"]
["Sucre","Coveñas","Calido Humedo"]
["Sucre","El Roble","Calido Humedo"]
["Sucre","Galeras","Calido Humedo"]
["Sucre","Guaranda","Calido Humedo"]
["Sucre","La Unión","Calido Humedo"]
["Sucre","Los Palmitos","Calido Humedo"]
["Sucre","Majagual","Calido Humedo"]
["Sucre","Morroa","Calido Humedo"]
["Sucre","Ovejas","Calido Humedo"]
["Sucre","Palmito","Calido Humedo"]
["Sucre","Sampués","Calido Humedo"]
["Sucre","San Benito Abad","Calido Humedo"]
["Sucre","San Juan De Betulia","Calido Humedo"]
["Sucre","San Marcos","Calido Humedo"]
["Sucre","San Onofre","Calido Humedo"]
["Sucre","San Pedro","Calido Humedo"]
["Sucre","Sincé","Calido Humedo"]
["Sucre","Sincelejo","Calido Humedo"]
["Sucre","Sucre","Calido Humedo"]
["Sucre","Tolú","Calido Humedo"]
["Sucre","Toluviejo","Calido Humedo"]
["Tolima","Alpujarra","Calido Humedo"]
["Tolima","Alpujarra","Calido Seco"]
["Tolima","Alpujarra","Templado"]
["Tolima","Alvarado","Calido Humedo"]
["Tolima","Alvarado","Calido Seco"]
["Tolima","Alvarado","Templado"]
["Tolima","Ambalema","Calido Humedo"]
["Tolima","Ambalema","Calido Seco"]
["Tolima","Anzoátegui","Calido Humedo"]
["Tolima","Anzoátegui","Frio"]
["Tolima","Anzoátegui","Templado"]
["Tolima","Armero","Calido Humedo"]
["Tolima","Armero","Calido Seco"]
["Tolima","Armero","Templado"]
["Tolima","Ataco","Calido Humedo"]
["Tolima","Ataco","Calido Seco"]
["Tolima","Ataco","Frio"]
["Tolima","Ataco","Templado"]
["Tolima","Cajamarca","Frio"]
["Tolima","Cajamarca","Templado"]
["Tolima","Carmen De Apicalá","Calido Humedo"]
["Tolima","Carmen De Apicalá","Calido Seco"]
["Tolima","Casabianca","Frio"]
["Tolima","Casabianca","Templado"]
["Tolima","Chaparral","Calido Humedo"]
["Tolima","Chaparral","Calido Seco"]
["Tolima","Chaparral","Frio"]
["Tolima","Chaparral","Templado"]
["Tolima","Coello","Calido Seco"]
["Tolima","Coyaima","Calido Seco"]
["Tolima","Cunday","Calido Humedo"]
["Tolima","Cunday","Calido Seco"]
["Tolima","Cunday","Frio"]
["Tolima","Cunday","Templado"]
["Tolima","Dolores","Calido Humedo"]
["Tolima","Dolores","Calido Seco"]
["Tolima","Dolores","Frio"]
["Tolima","Dolores","Templado"]
["Tolima","Espinal","Calido Seco"]
["Tolima","Falan","Calido Humedo"]
["Tolima","Falan","Calido Seco"]
["Tolima","Falan","Templado"]
["Tolima","Flandes","Calido Seco"]
["Tolima","Fresno","Calido Humedo"]
["Tolima","Fresno","Frio"]
["Tolima","Fresno","Templado"]
["Tolima","Guamo","Calido Humedo"]
["Tolima","Guamo","Calido Seco"]
["Tolima","Herveo","Frio"]
["Tolima","Herveo","Templado"]
["Tolima","Honda","Calido Humedo"]
["Tolima","Honda","Calido Seco"]
["Tolima","Ibagué","Calido Humedo"]
["Tolima","Ibagué","Calido Seco"]
["Tolima","Ibagué","Frio"]
["Tolima","Ibagué","Templado"]
["Tolima","Icononzo","Calido Humedo"]
["Tolima","Icononzo","Calido Seco"]
["Tolima","Icononzo","Frio"]
["Tolima","Icononzo","Templado"]
["Tolima","Lérida","Calido Humedo"]
["Tolima","Lérida","Calido Seco"]
["Tolima","Lérida","Templado"]
["Tolima","Líbano","Calido Humedo"]
["Tolima","Líbano","Frio"]
["Tolima","Líbano","Templado"]
["Tolima","Mariquita","Calido Humedo"]
["Tolima","Mariquita","Templado"]
["Tolima","Melgar","Calido Humedo"]
["Tolima","Melgar","Calido Seco"]
["Tolima","Melgar","Templado"]
["Tolima","Murillo","Frio"]
["Tolima","Murillo","Templado"]
["Tolima","Natagaima","Calido Humedo"]
["Tolima","Natagaima","Calido Seco"]
["Tolima","Natagaima","Templado"]
["Tolima","Ortega","Calido Humedo"]
["Tolima","Ortega","Calido Seco"]
["Tolima","Ortega","Templado"]
["Tolima","Palocabildo","Calido Humedo"]
["Tolima","Palocabildo","Templado"]
["Tolima","Piedras","Calido Humedo"]
["Tolima","Piedras","Calido Seco"]
["Tolima","Planadas","Calido Humedo"]
["Tolima","Planadas","Frio"]
["Tolima","Planadas","Frio"]
["Tolima","Planadas","Templado"]
["Tolima","Prado","Calido Humedo"]
["Tolima","Prado","Calido Seco"]
["Tolima","Prado","Templado"]
["Tolima","Purificación","Calido Humedo"]
["Tolima","Purificación","Calido Seco"]
["Tolima","Purificación","Templado"]
["Tolima","Rioblanco","Calido Humedo"]
["Tolima","Rioblanco","Frio"]
["Tolima","Rioblanco","Templado"]
["Tolima","Roncesvalles","Frio"]
["Tolima","Roncesvalles","Templado"]
["Tolima","Rovira","Calido Humedo"]
["Tolima","Rovira","Calido Seco"]
["Tolima","Rovira","Frio"]
["Tolima","Rovira","Templado"]
["Tolima","Saldaña","Calido Seco"]
["Tolima","San Antonio","Calido Humedo"]
["Tolima","San Antonio","Frio"]
["Tolima","San Antonio","Templado"]
["Tolima","San Luis","Calido Humedo"]
["Tolima","San Luis","Calido Seco"]
["Tolima","San Luis","Templado"]
["Tolima","Santa Isabel","Calido Humedo"]
["Tolima","Santa Isabel","Frio"]
["Tolima","Santa Isabel","Templado"]
["Tolima","Suárez","Calido Humedo"]
["Tolima","Suárez","Calido Seco"]
["Tolima","Valle De San Juan","Calido Humedo"]
["Tolima","Valle De San Juan","Templado"]
["Tolima","Venadillo","Calido Humedo"]
["Tolima","Venadillo","Calido Seco"]
["Tolima","Venadillo","Templado"]
["Tolima","Villahermosa","Frio"]
["Tolima","Villahermosa","Templado"]
["Tolima","Villarrica","Calido Humedo"]
["Tolima","Villarrica","Frio"]
["Tolima","Villarrica","Templado"]
["Valle del Cauca","Alcalá","Templado"]
["Valle del Cauca","Andalucía","Templado"]
["Valle del Cauca","Ansermanuevo","Frio"]
["Valle del Cauca","Ansermanuevo","Templado"]
["Valle del Cauca","Argelia","Templado"]
["Valle del Cauca","Bolívar","Calido Humedo"]
["Valle del Cauca","Bolívar","Frio"]
["Valle del Cauca","Bolívar","Templado"]
["Valle del Cauca","Buenaventura","Calido Humedo"]
["Valle del Cauca","Buenaventura","Frio"]
["Valle del Cauca","Buenaventura","Templado"]
["Valle del Cauca","Buga","Frio"]
["Valle del Cauca","Buga","Templado"]
["Valle del Cauca","Bugalagrande","Calido Humedo"]
["Valle del Cauca","Bugalagrande","Templado"]
["Valle del Cauca","Caicedonia","Templado"]
["Valle del Cauca","Cali","Calido Humedo"]
["Valle del Cauca","Cali","Calido Seco"]
["Valle del Cauca","Cali","Frio"]
["Valle del Cauca","Cali","Templado"]
["Valle del Cauca","Calima","Calido Humedo"]
["Valle del Cauca","Calima","Frio"]
["Valle del Cauca","Calima","Templado"]
["Valle del Cauca","Candelaria","Calido Humedo"]
["Valle del Cauca","Candelaria","Calido Seco"]
["Valle del Cauca","Candelaria","Templado"]
["Valle del Cauca","Cartago","Templado"]
["Valle del Cauca","Dagua","Calido Humedo"]
["Valle del Cauca","Dagua","Frio"]
["Valle del Cauca","Dagua","Templado"]
["Valle del Cauca","El Águila","Frio"]
["Valle del Cauca","El Águila","Templado"]
["Valle del Cauca","El Cairo","Frio"]
["Valle del Cauca","El Cairo","Templado"]
["Valle del Cauca","El Cerrito","Calido Humedo"]
["Valle del Cauca","El Cerrito","Calido Seco"]
["Valle del Cauca","El Cerrito","Frio"]
["Valle del Cauca","El Cerrito","Templado"]
["Valle del Cauca","El Dovio","Calido Humedo"]
["Valle del Cauca","El Dovio","Templado"]
["Valle del Cauca","Florida","Frio"]
["Valle del Cauca","Florida","Templado"]
["Valle del Cauca","Ginebra","Frio"]
["Valle del Cauca","Ginebra","Templado"]
["Valle del Cauca","Guacarí","Frio"]
["Valle del Cauca","Guacarí","Templado"]
["Valle del Cauca","Jamundí","Calido Humedo"]
["Valle del Cauca","Jamundí","Frio"]
["Valle del Cauca","Jamundí","Templado"]
["Valle del Cauca","La Cumbre","Calido Humedo"]
["Valle del Cauca","La Cumbre","Templado"]
["Valle del Cauca","La Unión","Calido Humedo"]
["Valle del Cauca","La Unión","Calido Seco"]
["Valle del Cauca","La Unión","Templado"]
["Valle del Cauca","La Victoria","Calido Humedo"]
["Valle del Cauca","La Victoria","Calido Seco"]
["Valle del Cauca","La Victoria","Templado"]
["Valle del Cauca","Obando","Calido Humedo"]
["Valle del Cauca","Obando","Templado"]
["Valle del Cauca","Palmira","Calido Humedo"]
["Valle del Cauca","Palmira","Calido Seco"]
["Valle del Cauca","Palmira","Frio"]
["Valle del Cauca","Palmira","Templado"]
["Valle del Cauca","Pradera","Frio"]
["Valle del Cauca","Pradera","Templado"]
["Valle del Cauca","Restrepo","Templado"]
["Valle del Cauca","Riofrío","Frio"]
["Valle del Cauca","Riofrío","Templado"]
["Valle del Cauca","Roldanillo","Calido Humedo"]
["Valle del Cauca","Roldanillo","Calido Seco"]
["Valle del Cauca","Roldanillo","Templado"]
["Valle del Cauca","San Pedro","Frio"]
["Valle del Cauca","San Pedro","Templado"]
["Valle del Cauca","Sevilla","Frio"]
["Valle del Cauca","Sevilla","Templado"]
["Valle del Cauca","Toro","Calido Humedo"]
["Valle del Cauca","Toro","Templado"]
["Valle del Cauca","Trujillo","Frio"]
["Valle del Cauca","Trujillo","Templado"]
["Valle del Cauca","Tuluá","Frio"]
["Valle del Cauca","Tuluá","Templado"]
["Valle del Cauca","Ulloa","Templado"]
["Valle del Cauca","Versalles","Templado"]
["Valle del Cauca","Vijes","Calido Humedo"]
["Valle del Cauca","Vijes","Templado"]
["Valle del Cauca","Yotoco","Templado"]
["Valle del Cauca","Yumbo","Calido Humedo"]
["Valle del Cauca","Yumbo","Calido Seco"]
["Valle del Cauca","Yumbo","Templado"]
["Valle del Cauca","Zarzal","Calido Humedo"]
["Valle del Cauca","Zarzal","Calido Seco"]
["Valle del Cauca","Zarzal","Templado"]
["Vaupés","Carurú","Calido Humedo"]
["Vaupés","Mitú","Calido Humedo"]
["Vaupés","Pacoa","Calido Humedo"]
["Vaupés","Papunaua","Calido Humedo"]
["Vaupés","Taraira","Calido Humedo"]
["Vaupés","Yavaraté","Calido Humedo"]
["Vichada","Cumaribo","Calido Humedo"]
["Vichada","La Primavera","Calido Humedo"]
["Vichada","Puerto Carreño","Calido Humedo"]
["Vichada","Puerto Carreño","Calido Seco"]
["Vichada","Santa Rosalía","Calido Humedo"]